Workbook

Sheet 总成绩排名及入围体检
A1: 榕江县2019年事业单位公开招聘工作人员入围体检人员名
A2: 考场 | B2: 准考证号 | D2: 序号 | E2: 姓名 | F2: 报考级别 | G2: 报考专业 | H2: 档案号 | I2: 证书号 | J2: 身份证号 | K2: 工作单位 | L2: 考区 | M2: 报名点 | N2: 报名序号 | O2: 专业技术职务 | P2: 性别 | Q2: 出生年月 | R2: 籍贯 | S2: 民族 | T2: 面试 | U2: 毕业院校 | V2: 所学专业 | W2: 所学专业具体名称 | X2: 学历 | Y2: 学位 | Z2: 学历学位 | AA2: 毕业时间 | AB2: 现户口所在地 | AC2: 是否全日制 | AD2: 家庭详细住址 | AE2: 现工作单位 | AF2: 本人身份 | AG2: 生源地 | AH2: 执业资格证书 | AI2: 所要求的资格条件 | AJ2: 手机 | AK2: 座机 | AL2: 本人联系电话 | AM2: 其他联系方式 | AN2: 报考单位及代码 | AO2: 岗位 | AP2: 主要简历 | AQ2: 专业技术职务DM | AR2: 性别DM | AS2: 民族DM | AT2: 政治面貌DM | AU2: 所学专业DM | AV2: 学历DM | AW2: 学位DM | AX2: 是否全日制DM | AY2: 本人身份DM | AZ2: 所要求的资格条件DM | BA2: 报考单位及代码DM | BB2: 岗位DM | BC2: 主键编号2 | BE2: 笔试成绩 | BG2: 面试成绩 | BJ2: 总分 | BK2: 备注 | BL2: 复审结果 | BM2: 抽签号 | BN2: 考生签名 | BP2: 总分 | BQ2: 总成绩排名 | BR2: 备注 | BS2: 体检时间
BE3: 笔试成绩 | BF3: 笔试成绩占总成绩的50% | BG3: 面试成绩 | BH3: 面试成绩占总成绩的50% | BI3: 面试成绩占总成绩的50%（直接入围面试成绩占100%）
A4: 第一考场 | B4: 1320190101 | D4: 1 | E4: 盘娟娟 | F4: 专业技术岗位 | G4: 《综合知识》类 | H4: T362019071522613080138 | J4: 52263219970315382X | L4: 贵州省黔东南自治州 | M4: 榕江县 | N4: 080138 | P4: 女 | Q4: 1997.03.15 | R4: 贵州省榕江县 | S4: 瑶族 | T4: 中国共产主义青年团团员 | U4: 福建江夏学院 | W4: 电子信息工程 | X4: 大学本科毕业 | Y4: 学士 | AA4: 2019.06 | AB4: 贵州省榕江县塔石乡新街16号 | AC4: 是 | AD4: 贵州省榕江县古榕名苑1栋 | AE4: 无 | AF4: 其他（临时工、未就业人员等） | AG4: 贵州省榕江县 | AH4: 无 | AI4: 是 | AJ4: 13015718092 | AK4: 13015718092 | AM4: 13985274378 | AN4: 榕江县扶贫开发信息服务中心 | AO4: 13001专业技术岗位 | AP4: 2012.09-2015.06贵州省榕江县民族中学高中学习 2015.09-2019.07福建省福建江夏学院电子信息工程专业本科学习 | AR4: 2 | AS4: 13 | AT4: 03 | AV4: 21 | AW4: 3 | AX4: 1 | AY4: 05 | AZ4: 1 | BA4: 126130906 | BB4: 126130906001 | BC4: 362019071522613080138 | BE4: 76.9 | BF4: =BE4*0.5 -> 38.45 | BG4: 85.67 | BH4: =BG4*0.5 -> 42.84 | BI4: =RANK(BE4,$BE$4:$BE$9) -> 4 | BJ4: 入围资格复审 | BK4: 2019年8月－9日 | BL4: 合格 | BP4: =BF4+BH4 -> 81.29 | BQ4: =RANK(BP4,$BP$4:$BP$9) -> 1 | BR4: 入围体检 | BS4: 2019-09-08
B5: 1320190102 | D5: 2 | E5: 徐东升 | F5: 专业技术岗位 | G5: 《综合知识》类 | H5: T362019071522613060409 | J5: 522632199408180032 | L5: 贵州省黔东南自治州 | M5: 榕江县 | N5: 060409 | P5: 男 | Q5: 19940818 | R5: 贵州省榕江县 | S5: 侗族 | T5: 群众 | U5: 四川大学锦城学院 | W5: 网络工程 | X5: 大学本科毕业 | Y5: 学士 | AA5: 2018.10 | AB5: 贵州省榕江县古州镇 | AC5: 是 | AD5: 贵州省榕江县古州镇常驰财富广场3栋2单元404 | AE5: 榕江县人民法院 | AF5: 其他（临时工、未就业人员等） | AG5: 贵州省榕江县 | AH5: 无 | AI5: 是 | AJ5: 18585592285 | AK5: 无 | AM5: 18508556710 | AN5: 榕江县扶贫开发信息服务中心 | AO5: 13001专业技术岗位 | AP5: 2010.9-2013.7在贵州省榕江县第一中学学习。 2013.9-2018.7在四川省成都市四川大学锦城学院网络工程专业本科学习。 2018.7-至今在家待业。 | AR5: 1 | AS5: 12 | AT5: 13 | AV5: 21 | AW5: 3 | AX5: 1 | AY5: 05 | AZ5: 1 | BA5: 126130906 | BB5: 126130906001 | BC5: 362019071522613060409 | BE5: 75.35 | BF5: 37.68 | BG5: 86 | BH5: 43.00 | BI5: 6 | BJ5: 递补入围资格复审 | BL5: 合格 | BP5: 80.68 | BQ5: 2 | BR5: 入围体检 | BS5: 2019-09-08
B6: 1320190103 | D6: 3 | E6: 王戡 | F6: 专业技术岗位 | G6: 《综合知识》类 | H6: T362019071522613018329 | J6: 522632199302127815 | L6: 贵州省黔东南自治州 | M6: 榕江县 | N6: 018329 | P6: 男 | Q6: 1993.02.12 | R6: 贵州榕江县 | S6: 汉族 | T6: 中国共产主义青年团团员 | U6: 贵州师范大学 | W6: 电子信息工程 | X6: 大学本科毕业 | Y6: 学士 | AA6: 2016.07 | AB6: 贵州省榕江县朗洞镇宰练村三组 | AC6: 是 | AD6: 贵州省榕江县朗洞镇宰练村三组 | AE6: 无 | AF6: 其他（临时工、未就业人员等） | AG6: 贵州省榕江县 | AH6: 无 | AI6: 是 | AJ6: 18708519251 | AK6: 无 | AM6: 13638081341 | AN6: 榕江县扶贫开发信息服务中心 | AO6: 13001专业技术岗位 | AP6: 2008/9—2011/6黔东南州振华民族中学 2011/9—2012/6黔东南州振华民族中学 2012/9—2016/7贵州师范大学 2016/7—至今待业 | AR6: 1 | AS6: 01 | AT6: 03 | AV6: 21 | AW6: 3 | AX6: 1 | AY6: 05 | AZ6: 1 | BA6: 126130906 | BB6: 126130906001 | BC6: 362019071522613018329 | BE6: 76.6 | BF6: 38.30 | BG6: 84 | BH6: 42.00 | BI6: 5 | BJ6: 入围资格复审 | BK6: 2019年8月－9日 | BL6: 合格 | BP6: 80.30 | BQ6: 3
B7: 1320190104 | D7: 4 | E7: 杨坚 | F7: 专业技术岗位 | G7: 《综合知识》类 | H7: T362019071522613020951 | J7: 522632199508276816 | L7: 贵州省黔东南自治州 | M7: 榕江县 | N7: 020951 | P7: 男 | Q7: 1955.08.27 | R7: 贵州省榕江县 | S7: 苗族 | T7: 群众 | U7: 贵州民族大学 | W7: 物联网工程 | X7: 大学本科毕业 | Y7: 学士 | AA7: 2018.07 | AB7: 贵州省榕江县 | AC7: 是 | AD7: 贵州省榕江县两汪乡 | AE7: 无 | AF7: 其他（临时工、未就业人员等） | AG7: 贵州省榕江县 | AH7: 无 | AI7: 是 | AJ7: 18212221714 | AK7: 18212221714 | AM7: 15685501358 | AN7: 榕江县扶贫开发信息服务中心 | AO7: 13001专业技术岗位 | AP7: 2008.08——2011.08两汪中心毕业 2011.09——2014.06榕江县第一中学 2014.10——2018.07贵州民族大学本科毕业 2018.08——2019.07贵州省黔东南州小博通广告工程有限公司 | AR7: 1 | AS7: 06 | AT7: 13 | AV7: 21 | AW7: 3 | AX7: 1 | AY7: 05 | AZ7: 1 | BA7: 126130906 | BB7: 126130906001 | BC7: 362019071522613020951 | BE7: 77.3 | BF7: 38.65 | BG7: 78 | BH7: 39.00 | BI7: 2 | BJ7: 入围资格复审 | BK7: 2019年8月－9日 | BL7: 合格 | BP7: 77.65 | BQ7: 4
B8: 1320190105 | D8: 5 | E8: 胡婷婷 | F8: 专业技术岗位 | G8: 《综合知识》类 | H8: T362019071522613002715 | J8: 522632199710023062 | L8: 贵州省黔东南自治州 | M8: 榕江县 | N8: 002715 | P8: 女 | Q8: 1997.10.02 | R8: 贵州省榕江县 | S8: 畲族 | T8: 中国共产主义青年团团员 | U8: 西南交通大学 | W8: 通信工程（计算机通信） | X8: 大学本科毕业 | Y8: 学士 | AA8: 2019.06 | AB8: 贵州省榕江县三江乡 | AC8: 是 | AD8: 贵州省榕江县卧龙小区六栋一单元 | AE8: 无 | AF8: 其他（临时工、未就业人员等） | AG8: 贵州省榕江县 | AH8: 无 | AI8: 是 | AJ8: 18398624181 | AK8: 18398624181 | AM8: 15185634231 | AN8: 榕江县扶贫开发信息服务中心 | AO8: 13001专业技术岗位 | AP8: 2012.09-2015.07就读于贵州省榕江县第一中学 2015.09-2019.07就读于四川省西南交通大学 | AR8: 2 | AS8: 22 | AT8: 03 | AV8: 21 | AW8: 3 | AX8: 1 | AY8: 05 | AZ8: 1 | BA8: 126130906 | BB8: 126130906001 | BC8: 362019071522613002715 | BE8: 80.95 | BF8: 40.48 | BG8: 73.67 | BH8: 36.84 | BI8: 1 | BJ8: 入围资格复审 | BK8: 2019年8月－9日 | BL8: 合格 | BP8: 77.31 | BQ8: 5
B9: 1320190106 | D9: 6 | E9: 杨维 | F9: 专业技术岗位 | G9: 《综合知识》类 | H9: T362019071522613077229 | J9: 522632199308170574 | L9: 贵州省黔东南自治州 | M9: 榕江县 | N9: 077229 | P9: 男 | Q9: 19930817 | R9: 贵州省榕江县 | S9: 侗族 | T9: 群众 | U9: 大连交通大学 | W9: 电子信息工程 | X9: 大学本科毕业 | Y9: 学士 | AA9: 2016.07 | AB9: 贵州省榕江县车江乡六村二组 | AC9: 是 | AD9: 贵州省榕江县车江乡六村二组 | AE9: 无 | AF9: 其他（临时工、未就业人员等） | AG9: 贵州省榕江县 | AH9: 无 | AI9: 是 | AJ9: 13908556497 | AK9: 18840823635 | AM9: 15985501865 | AN9: 榕江县扶贫开发信息服务中心 | AO9: 13001专业技术岗位 | AP9: 2008.9－－2012.7就读于榕江县第一中学 2012.9－－2016.7就读于大连交通大学电气信息学院 | AR9: 1 | AS9: 12 | AT9: 13 | AV9: 21 | AW9: 3 | AX9: 1 | AY9: 05 | AZ9: 1 | BA9: 126130906 | BB9: 126130906001 | BC9: 362019071522613077229 | BE9: 77.05 | BF9: 38.53 | BG9: 69.33 | BH9: 34.67 | BI9: 3 | BJ9: 入围资格复审 | BK9: 2019年8月－9日 | BL9: 合格 | BP9: 73.19 | BQ9: 6
B10: 1320190107 | E10: 潘成定 | F10: 管理岗位 | G10: 《综合知识》类 | H10: T362019071522613043704 | J10: 522632199306213315 | L10: 贵州省黔东南自治州 | M10: 榕江县 | N10: 043704 | P10: 男 | Q10: 1993.06.21 | R10: 贵州省榕江县 | S10: 水族 | T10: 群众 | U10: 安顺职业技术学院 | W10: 机电一体化技术 | X10: 大学专科毕业 | Y10: 无 | AA10: 2015.07 | AB10: 贵州省榕江县仁里乡 | AC10: 是 | AD10: 贵州省榕江县仁里乡乔腮村五组 | AE10: 无 | AF10: 其他（临时工、未就业人员等） | AG10: 贵州省榕江县 | AH10: 无 | AI10: 是 | AJ10: 18985832326 | AK10: 18985832326 | AM10: 唐秋15761644628 | AN10: 榕江县兴华水族乡扶贫工作站 | AO10: 13117管理岗位 | AP10: 2009.09-2012.07就读于榕江县第一中学，2012.09-2015.07就读于安顺职业技术学院，2015.07-2018.10任职于贵州汇通华城股份有限公司，2018.10至今无业 | AR10: 1 | AS10: 25 | AT10: 13 | AV10: 31 | AW10: 4 | AX10: 1 | AY10: 05 | AZ10: 1 | BA10: 126130986 | BB10: 126130986117 | BC10: 362019071522613043704 | BE10: 81.9 | BF10: =BE10*0.5 -> 40.95 | BG10: 82.67 | BH10: =BG10*0.5 -> 41.34 | BI10: =RANK(BE10,$BE$10:$BE$12) -> 1 | BJ10: 入围资格复审 | BK10: 2019年8月－9日 | BL10: 合格 | BP10: =BF10+BH10 -> 82.29 | BQ10: =RANK(BP10,$BP$10:$BP$12) -> 1 | BR10: 入围体检 | BS10: 2019-09-08
B11: 1320190108 | E11: 潘宏美 | F11: 管理岗位 | G11: 《综合知识》类 | H11: T362019071522613049874 | J11: 522632199202090568 | L11: 贵州省黔东南自治州 | M11: 榕江县 | N11: 049874 | P11: 女 | Q11: 1992.02.09 | R11: 贵州省榕江县 | S11: 水族 | T11: 中国共产主义青年团团员 | U11: 贵州财经大学 | W11: 物流管理 | X11: 大学本科毕业 | Y11: 学士 | AA11: 2017.07 | AB11: 贵州省榕江县车江乡 | AC11: 是 | AD11: 贵州省榕江县古州镇华优村第一组 | AE11: 无 | AF11: 其他（临时工、未就业人员等） | AG11: 贵州省榕江县 | AH11: 无 | AI11: 是 | AJ11: 18302598603 | AK11: 18302598603 | AM11: 15985501079 | AN11: 榕江县兴华水族乡扶贫工作站 | AO11: 13117管理岗位 | AP11: 2010.9-2013.6凯里市博南高级中学普通高中 2013.9-2017.7贵州财经大学工商学院物流管理专业大学本科 2017.9-2017.11榕江县古州镇人民政府见习 2017.12至今待业 | AR11: 2 | AS11: 25 | AT11: 03 | AV11: 21 | AW11: 3 | AX11: 1 | AY11: 05 | AZ11: 1 | BA11: 126130986 | BB11: 126130986117 | BC11: 362019071522613049874 | BE11: 81.65 | BF11: 40.83 | BG11: 81.67 | BH11: 40.84 | BI11: =RANK(BE11,$BE$10:$BE$12) -> 2 | BJ11: 入围资格复审 | BK11: 2019年8月－9日 | BL11: 合格 | BP11: 81.66 | BQ11: =RANK(BP11,$BP$10:$BP$12) -> 2
B12: 1320190109 | E12: 潘正举 | F12: 管理岗位 | G12: 《综合知识》类 | H12: T362019071522613044430 | J12: 522632198512070015 | L12: 贵州省黔东南自治州 | M12: 榕江县 | N12: 044430 | P12: 男 | Q12: 1985.12.07 | R12: 贵州省榕江县 | S12: 水族 | T12: 群众 | U12: 贵州大学 | W12: 电子商务 | X12: 大学本科毕业 | Y12: 学士 | AA12: 2008.07 | AB12: 贵州省榕江县古州镇料里村34号 | AC12: 是 | AD12: 贵州省榕江县古州镇九龙嘉园1单元1102 | AE12: 黔东南州住房公积金管理中心榕江县管理部 | AF12: 其他（临时工、未就业人员等） | AG12: 贵州省榕江县 | AH12: 无 | AI12: 是 | AJ12: 13885577093 | AK12: 13885577093 | AM12: 15285299473 | AN12: 榕江县兴华水族乡扶贫工作站 | AO12: 13117管理岗位 | AP12: 2001.09—2004.06榕江县第一中学 2004.09—2008.07贵州大学 2008.08—2009.01东莞宏立基实业有限公司 2009.02—2011.12金华市绿源集团有限公司 2012.2至今黔东南州住房公积金管理中心榕江县管理部临聘人员 | AR12: 1 | AS12: 25 | AT12: 13 | AV12: 21 | AW12: 3 | AX12: 1 | AY12: 05 | AZ12: 1 | BA12: 126130986 | BB12: 126130986117 | BC12: 362019071522613044430 | BE12: 79.7 | BF12: 39.85 | BG12: 73 | BH12: 36.50 | BI12: =RANK(BE12,$BE$10:$BE$12) -> 3 | BJ12: 入围资格复审 | BK12: 2019年8月－9日 | BL12: 合格 | BP12: 76.35 | BQ12: 3
B13: 1320190110 | D13: 10 | E13: 江滋伟 | F13: 专业技术岗位 | G13: 《综合知识》类 | H13: T362019071522613003445 | J13: 522632199410130018 | L13: 贵州省黔东南自治州 | M13: 榕江县 | N13: 003445 | P13: 男 | Q13: 1994.10.13 | R13: 贵州省榕江县 | S13: 苗族 | T13: 中国共产主义青年团团员 | U13: 贵州民族大学 | W13: 传播学 | X13: 大学本科毕业 | Y13: 学士 | AA13: 2017.07 | AB13: 贵州省榕江县古州镇兴隆街 | AC13: 是 | AD13: 贵州省榕江县滨江花园二栋三单元 | AE13: 榕江县民政局（临聘，公益性岗位） | AF13: 其他（临时工、未就业人员等） | AG13: 贵州省榕江县 | AH13: 无 | AI13: 是 | AJ13: 17886198170 | AK13: 6625405 | AM13: 13096857088 | AN13: 榕江县融媒体中心 | AO13: 13010专业技术岗位 | AP13: 2010.08-2013.06，就读于黔东南州民族高级中学 2013.08-2017.07，就读于贵州民族大学 2017.09-2018.02，工作于凯里营运中心 2018.05-至今，工作于榕江县民政局（临聘） | AR13: 1 | AS13: 06 | AT13: 03 | AV13: 21 | AW13: 3 | AX13: 1 | AY13: 05 | AZ13: 1 | BA13: 126130913 | BB13: 126130913010 | BC13: 362019071522613003445 | BE13: 79.7 | BF13: 39.85 | BG13: 81 | BH13: 40.50 | BI13: =RANK(BE13,$BE$13:$BE$15) -> 1 | BJ13: 入围资格复审 | BK13: 2019年8月－9日 | BL13: 合格 | BP13: 80.35 | BQ13: =RANK(BP13,$BP$13:$BP$15) -> 1 | BR13: 入围体检 | BS13: 2019-09-08
B14: 1320190111 | D14: 11 | E14: 田景涛 | F14: 专业技术岗位 | G14: 《综合知识》类 | H14: T362019071522613049060 | J14: 522632199508092574 | L14: 贵州省黔东南自治州 | M14: 榕江县 | N14: 049060 | P14: 男 | Q14: 1995.08.09 | R14: 贵州省榕江县 | S14: 侗族 | T14: 群众 | U14: 贵州民族大学 | W14: 网络与新媒体 | X14: 大学本科毕业 | Y14: 学士 | AA14: 2018.07 | AB14: 贵州省榕江县平永镇平由村二组 | AC14: 是 | AD14: 贵州省榕江县平永镇平由村二组 | AE14: 无 | AF14: 其他（临时工、未就业人员等） | AG14: 贵州省榕江县 | AH14: 无 | AI14: 是 | AJ14: 15599109248 | AK14: 无 | AM14: 18212249117 | AN14: 榕江县融媒体中心 | AO14: 13010专业技术岗位 | AP14: 2010.09—2013.07就读于黔东南州民族高级中学； 2013.09—2014.07到榕江县第一中学复读； 2014.09—2018.07就读于贵州民族大学 2018.07—2019.07在家待业. | AR14: 1 | AS14: 12 | AT14: 13 | AV14: 21 | AW14: 3 | AX14: 1 | AY14: 05 | AZ14: 1 | BA14: 126130913 | BB14: 126130913010 | BC14: 362019071522613049060 | BE14: 76.55 | BF14: 38.28 | BG14: 84 | BH14: 42.00 | BI14: =RANK(BE14,$BE$13:$BE$15) -> 3 | BJ14: 入围资格复审 | BK14: 2019年8月－9日 | BL14: 合格 | BP14: 80.28 | BQ14: =RANK(BP14,$BP$13:$BP$15) -> 2
B15: 1320190112 | D15: 12 | E15: 范含曦 | F15: 专业技术岗位 | G15: 《综合知识》类 | H15: T362019071522613019129 | J15: 522632199209200029 | L15: 贵州省黔东南自治州 | M15: 榕江县 | N15: 019129 | P15: 女 | Q15: 1992.09.20 | R15: 贵州省榕江县 | S15: 水族 | T15: 中国共产主义青年团团员 | U15: 首都师范大学科德学院 | W15: 广播影视编导 | X15: 大学本科毕业 | Y15: 学士 | AA15: 2016.06 | AB15: 贵州省榕江县古州镇 | AC15: 是 | AD15: 榕江县古州镇五榕南路附一路11号 | AE15: 中共榕江县委政法委员会（公益岗） | AF15: 其他（临时工、未就业人员等） | AG15: 贵州省榕江县 | AH15: 无 | AI15: 是 | AJ15: 18985287081 | AK15: 0855-6625518 | AM15: 13985812139 | AN15: 榕江县融媒体中心 | AO15: 13010专业技术岗位 | AP15: 2005年9月-2008年6月榕江县第二中学 2008年9月-2012年6月榕江县第一中学 2012年9月-2016年6月首都师范大学科德学院 2016年7月-2017年12月待业 2017年1月-至今中共榕江县委政法委员会（公益岗） | AR15: 2 | AS15: 25 | AT15: 03 | AV15: 21 | AW15: 3 | AX15: 1 | AY15: 05 | AZ15: 1 | BA15: 126130913 | BB15: 126130913010 | BC15: 362019071522613019129 | BE15: 78.75 | BF15: 39.38 | BG15: 45 | BH15: 22.50 | BI15: =RANK(BE15,$BE$13:$BE$15) -> 2 | BJ15: 入围资格复审 | BK15: 2019年8月－9日 | BL15: 合格 | BP15: 61.88 | BQ15: =RANK(BP15,$BP$13:$BP$15) -> 3
B16: 1320190113 | D16: 13 | E16: 蒋媛媛 | F16: 管理岗位 | G16: 《综合知识》类 | H16: T362019071522613055252 | J16: 522632199501202582 | L16: 贵州省黔东南自治州 | M16: 榕江县 | N16: 055252 | P16: 女 | Q16: 1995.01.20 | R16: 贵州省榕江县 | S16: 瑶族 | T16: 中国共产主义青年团团员 | U16: 中南民族大学 | W16: 汉语言文学 | X16: 大学本科毕业 | Y16: 学士 | AA16: 2018.06 | AB16: 贵州省榕江县古州镇 | AC16: 是 | AD16: 贵州省榕江县古州镇古州北路附一路2-9号20室 | AE16: 无 | AF16: 其他（临时工、未就业人员等） | AG16: 贵州省榕江县 | AH16: 2016年6月取得大学英语四级合格证 2018年6月取得高中语文教师资格证 | AI16: 是 | AJ16: 18212250423 | AK16: 18212250423 | AM16: 15908552575 | AN16: 榕江县社会扶贫服务中心 | AO16: 13003管理岗位 | AP16: 2011.09-2014.06雷山民族中学 2014.09-2018.06中南民族大学 2018.06-2019.05榕江纽曼教育 | AR16: 2 | AS16: 13 | AT16: 03 | AV16: 21 | AW16: 3 | AX16: 1 | AY16: 05 | AZ16: 1 | BA16: 126130908 | BB16: 126130908003 | BC16: 362019071522613055252 | BE16: 75.45 | BF16: 37.73 | BG16: 82.33 | BH16: 41.17 | BI16: =RANK(BE16,$BE$16:$BE$18) -> 1 | BJ16: 入围资格复审 | BK16: 2019年8月－9日 | BL16: 合格 | BP16: 78.89 | BQ16: =RANK(BP16,$BP$16:$BP$18) -> 1 | BR16: 入围体检 | BS16: 2019-09-08
B17: 1320190114 | D17: 14 | E17: 杨雯雯 | F17: 管理岗位 | G17: 《综合知识》类 | H17: T362019071522613060441 | J17: 522228199609131046 | L17: 贵州省黔东南自治州 | M17: 榕江县 | N17: 060441 | P17: 女 | Q17: 1996.09.13 | R17: 贵州省沿河县 | S17: 土家族 | T17: 中国共产主义青年团团员 | U17: 贵州师范大学求是学院 | W17: 汉语言文学 | X17: 大学本科毕业 | Y17: 学士 | AA17: 2019.07 | AB17: 贵州省沿河土家族自治县中界镇中界村土溪组 | AC17: 是 | AD17: 贵州省沿河土家族自治县中界镇中界村土溪组 | AE17: 无 | AF17: 其他（临时工、未就业人员等） | AG17: 贵州省贵阳市 | AH17: 2019年7月取得高中语文教师资格证书 | AI17: 是 | AJ17: 13116491187 | AK17: 16685823872 | AM17: 15185932303 | AN17: 榕江县社会扶贫服务中心 | AO17: 13003管理岗位 | AP17: 2012.09-2015.07就读于沿河土家族自治县第二高级中学 2015.09-2019.07就读于贵州师范大学求是学院 | AR17: 2 | AS17: 15 | AT17: 03 | AV17: 21 | AW17: 3 | AX17: 1 | AY17: 05 | AZ17: 1 | BA17: 126130908 | BB17: 126130908003 | BC17: 362019071522613060441 | BE17: 74.25 | BF17: 37.13 | BG17: 81.67 | BH17: 40.84 | BI17: =RANK(BE17,$BE$16:$BE$18) -> 2 | BJ17: 入围资格复审 | BK17: 2019年8月－9日 | BL17: 合格 | BP17: 77.96 | BQ17: =RANK(BP17,$BP$16:$BP$18) -> 2
B18: 1320190115 | D18: 15 | E18: 何贵川 | F18: 管理岗位 | G18: 《综合知识》类 | H18: T362019071522613087191 | J18: 522128199304193515 | L18: 贵州省黔东南自治州 | M18: 榕江县 | N18: 087191 | P18: 男 | Q18: 19930419 | R18: 贵州省湄潭县 | S18: 汉族 | T18: 群众 | U18: 西南大学育才学院 | W18: 汉语言文学 | X18: 大学本科毕业 | Y18: 学士 | AA18: 2016.07 | AB18: 贵州省湄潭县复兴镇 | AC18: 是 | AD18: 贵州省湄潭县复兴镇随阳山村街上组37号 | AE18: 无 | AF18: 其他（临时工、未就业人员等） | AG18: 贵州省湄潭县 | AH18: 无 | AI18: 是 | AJ18: 15348690419 | AK18: 15348690419 | AM18: 13639249987 | AN18: 榕江县社会扶贫服务中心 | AO18: 13003管理岗位 | AP18: 2009.09-2012.07贵州省湄潭县湄江中学 2012.09-2016.07重庆市西南大学育才学院 2016.07至今私企工作 | AR18: 1 | AS18: 01 | AT18: 13 | AV18: 21 | AW18: 3 | AX18: 1 | AY18: 05 | AZ18: 1 | BA18: 126130908 | BB18: 126130908003 | BC18: 362019071522613087191 | BE18: 68.95 | BF18: 34.48 | BG18: 80.67 | BH18: 40.34 | BI18: =RANK(BE18,$BE$16:$BE$18) -> 3 | BJ18: 入围资格复审 | BK18: 2019年8月－9日 | BL18: 合格 | BP18: 74.81 | BQ18: 3
B19: 1320190116 | D19: 16 | E19: 杨秀成 | F19: 管理岗位 | G19: 《综合知识》类 | H19: T362019071522613016242 | J19: 522632199412183818 | L19: 贵州省黔东南自治州 | M19: 榕江县 | N19: 016242 | P19: 男 | Q19: 1994.12 | R19: 贵州省榕江县 | S19: 苗族 | T19: 中国共产主义青年团团员 | U19: 枣庄学院 | W19: 电子信息工程 | X19: 大学本科毕业 | Y19: 学士 | AA19: 2017.07 | AB19: 贵州省榕江县塔石乡 | AC19: 是 | AD19: 贵州省榕江县塔石乡塔石村第二组17号 | AE19: 塔石乡人民政府 | AF19: 其他（临时工、未就业人员等） | AG19: 贵州省榕江县 | AH19: 无 | AI19: 是 | AJ19: 15185743918 | AK19: 15185743918 | AM19: 15185736956 | AN19: 榕江县保密技术中心 | AO19: 13004管理岗位 | AP19: 201009-201307就读于凯里学院附属中学 201309-201707就读于枣庄学院 201708-201808作为西部计划自愿者服务于重庆酉阳 201812至今塔石乡扶贫助理 | AR19: 1 | AS19: 06 | AT19: 03 | AV19: 21 | AW19: 3 | AX19: 1 | AY19: 05 | AZ19: 1 | BA19: 126130909 | BB19: 126130909004 | BC19: 362019071522613016242 | BE19: 75.05 | BF19: 37.53 | BG19: 83 | BH19: 41.50 | BI19: =RANK(BE19,$BE$19:$BE$21) -> 1 | BJ19: 入围资格复审 | BK19: 2019年8月－9日 | BL19: 合格 | BP19: 79.03 | BQ19: =RANK(BP19,$BP$19:$BP$21) -> 1 | BR19: 入围体检 | BS19: 2019-09-08
B20: 1320190117 | D20: 17 | E20: 郑晶晶 | F20: 管理岗位 | G20: 《综合知识》类 | H20: T362019071522613012652 | J20: 522632198409172320 | L20: 贵州省黔东南自治州 | M20: 榕江县 | N20: 012652 | P20: 女 | Q20: 1984.09.17 | R20: 贵州省榕江县 | S20: 苗族 | T20: 群众 | U20: 防灾科技学院 | W20: 网络与信息安全 | X20: 大学专科毕业 | Y20: 无 | AA20: 2006.07 | AB20: 贵州省榕江县忠城镇王岭村 | AC20: 是 | AD20: 贵州省榕江县忠城镇王岭村 | AE20: 无 | AF20: 其他（临时工、未就业人员等） | AG20: 贵州省榕江县 | AH20: 2016年12月取得会计从业资格证 2018年9月取得会计初级证 | AI20: 是 | AJ20: 18685561692 | AK20: 18685561692 | AM20: 15585329932 | AN20: 榕江县保密技术中心 | AO20: 13004管理岗位 | AP20: 2001年9月-2003年7月在榕江一中上高中 2003年9月-2006年7月在防灾科技学院上大学 2006年7月至今待业 | AR20: 2 | AS20: 06 | AT20: 13 | AV20: 31 | AW20: 4 | AX20: 1 | AY20: 05 | AZ20: 1 | BA20: 126130909 | BB20: 126130909004 | BC20: 362019071522613012652 | BE20: 73.5 | BF20: 36.75 | BG20: 58.33 | BH20: 29.17 | BI20: =RANK(BE20,$BE$19:$BE$21) -> 2 | BJ20: 入围资格复审 | BK20: 2019年8月－9日 | BL20: 合格 | BP20: 65.92 | BQ20: =RANK(BP20,$BP$19:$BP$21) -> 2
B21: 1320190118 | D21: 18 | E21: 石昌建 | F21: 管理岗位 | G21: 《综合知识》类 | H21: T362019071522613065905 | J21: 522632199202252571 | L21: 贵州省黔东南自治州 | M21: 榕江县 | N21: 065905 | P21: 男 | Q21: 1992.02.25 | R21: 贵州省榕江县 | S21: 汉族 | T21: 群众 | U21: 毕节职业技术学院 | W21: 计算机应用技术 | X21: 大学专科毕业 | Y21: 无 | AA21: 2014.07 | AB21: 贵州省榕江县平永镇平永村 | AC21: 是 | AD21: 贵州省榕江县平永镇平永村第二组 | AE21: 榕江县市场监督管理局 | AF21: 其他（临时工、未就业人员等） | AG21: 贵州省榕江县 | AH21: 无 | AI21: 是 | AJ21: 18230821652 | AK21: 15585393354 | AM21: 18184524977 | AN21: 榕江县保密技术中心 | AO21: 13004管理岗位 | AP21: 2008年9月-2011年7月就读于榕江县第一中学 2011年9月-2014年7月就读于毕节职业技术学院 2015年4月-2017年12月就职于中国邮政集团公司贵州省榕江县分公司 2018年1月至今就职于榕江县市场监督管理局 | AR21: 1 | AS21: 01 | AT21: 13 | AV21: 31 | AW21: 4 | AX21: 1 | AY21: 05 | AZ21: 1 | BA21: 126130909 | BB21: 126130909004 | BC21: 362019071522613065905 | BE21: 71.6 | BF21: 35.80 | BG21: 51.33 | BH21: 25.67 | BI21: =RANK(BE21,$BE$19:$BE$21) -> 3 | BJ21: 递补入围资格复审 | BL21: 合格 | BP21: 61.47 | BQ21: 3
B22: 1320190119 | D22: 19 | E22: 蒙保安 | F22: 专业技术岗位 | G22: 《综合知识》类 | H22: T362019071522613044350 | J22: 522732199402126516 | L22: 贵州省黔东南自治州 | M22: 榕江县 | N22: 044350 | P22: 男 | Q22: 199402 | R22: 贵州省三都县 | S22: 布依族 | T22: 群众 | U22: 贵州财经大学 | W22: 农林经济管理 | X22: 大学本科毕业 | Y22: 无 | AA22: 2017.07 | AB22: 贵州省三都水族自治县大河镇合江村二组 | AC22: 是 | AD22: 贵州省三都水族自治县大河镇合江村二组 | AE22: 无 | AF22: 其他（临时工、未就业人员等） | AG22: 贵州省三都县 | AH22: 无 | AI22: 是 | AJ22: 15685311655 | AK22: 15086119262 | AM22: 15508515460 | AN22: 榕江县营林总站 | AO22: 13028专业技术岗位 | AP22: 2010.09-2013.06贵州省三都民族中学 2013.09-2017.07贵州财经大学 2017.07-至今待业 | AR22: 1 | AS22: 09 | AT22: 13 | AV22: 21 | AW22: 4 | AX22: 1 | AY22: 05 | AZ22: 1 | BA22: 126130923 | BB22: 126130923028 | BC22: 362019071522613044350 | BE22: 84.6 | BF22: =BE22*0.5 -> 42.30 | BG22: 78.67 | BH22: =BG22*0.5 -> 39.34 | BI22: =RANK(BE22,$BE$22:$BE$24) -> 1 | BJ22: 入围资格复审 | BK22: 2019年8月－9日 | BL22: 合格 | BP22: =BF22+BH22 -> 81.64 | BQ22: =RANK(BP22,$BP$22:$BP$24) -> 1 | BR22: 入围体检 | BS22: 2019-09-08
B23: 1320190120 | D23: 20 | E23: 潘鑫章 | F23: 专业技术岗位 | G23: 《综合知识》类 | H23: T362019071522613057512 | J23: 522632199701080196 | L23: 贵州省黔东南自治州 | M23: 榕江县 | N23: 057512 | P23: 男 | Q23: 1997.01.08 | R23: 贵州省凯里市榕江县 | S23: 侗族 | T23: 群众 | U23: 中南林业科技大学 | W23: 林学 | X23: 大学本科毕业 | Y23: 学士 | AA23: 2019.06 | AB23: 贵州省榕江县寨蒿镇扒王村二组 | AC23: 是 | AD23: 贵州省榕江县寨蒿镇扒王村二组 | AE23: 无 | AF23: 其他（临时工、未就业人员等） | AG23: 贵州省榕江县 | AH23: 无 | AI23: 是 | AJ23: 15286380784 | AK23: 15286380784 | AM23: 13711982487 | AN23: 榕江县营林总站 | AO23: 13028专业技术岗位 | AP23: 2012.09-2015.06榕江第一中学 2015.09-2019.06中南林业科技大学 | AR23: 1 | AS23: 12 | AT23: 13 | AV23: 21 | AW23: 3 | AX23: 1 | AY23: 05 | AZ23: 1 | BA23: 126130923 | BB23: 126130923028 | BC23: 362019071522613057512 | BE23: 76.75 | BF23: 38.38 | BG23: 80 | BH23: 40.00 | BI23: =RANK(BE23,$BE$22:$BE$24) -> 3 | BJ23: 入围资格复审 | BK23: 2019年8月－9日 | BL23: 合格 | BP23: 78.38 | BQ23: =RANK(BP23,$BP$22:$BP$24) -> 2
B24: 1320190121 | D24: 21 | E24: 蒙思彤 | F24: 专业技术岗位 | G24: 《综合知识》类 | H24: T362019071522613070060 | J24: 522722199210240522 | L24: 贵州省黔东南自治州 | M24: 榕江县 | N24: 070060 | P24: 女 | Q24: 1992.10.24 | R24: 贵州省荔波县 | S24: 水族 | T24: 中国共产主义青年团团员 | U24: 黔南民族师范学院 | W24: 农林经济管理 | X24: 大学本科毕业 | Y24: 学士 | AA24: 2016.07 | AB24: 贵州省荔波县 | AC24: 是 | AD24: 贵州省荔波县黎明关乡懂朋村娃寨组1号 | AE24: 2017年9月考上贵州省荔波县黎明关水族乡扶贫工作站“三支一扶”在岗，服务期2年，2019年9月到期。 | AF24: 其他（临时工、未就业人员等） | AG24: 贵州省荔波县 | AH24: 2015年9月取得会计从业资格证 | AI24: 是 | AJ24: 15285397855 | AK24: 13765754914 | AM24: 18286447890 | AN24: 榕江县营林总站 | AO24: 13028专业技术岗位 | AP24: 2008年9月至2011年7月，就读荔波高级中学高中；2011年9月至2016年7月，就读黔南民族师范学院大学本科；2017年9月至今，贵州省荔波县黎明关水族乡扶贫工作站“三支一扶”在岗。 | AR24: 2 | AS24: 25 | AT24: 03 | AV24: 21 | AW24: 3 | AX24: 1 | AY24: 05 | AZ24: 1 | BA24: 126130923 | BB24: 126130923028 | BC24: 362019071522613070060 | BE24: 82.15 | BF24: 41.08 | BG24: 71.33 | BH24: 35.67 | BI24: =RANK(BE24,$BE$22:$BE$24) -> 2 | BJ24: 入围资格复审 | BK24: 2019年8月－9日 | BL24: 合格 | BP24: 76.74 | BQ24: =RANK(BP24,$BP$22:$BP$24) -> 3
B25: 1320190122 | E25: 陈丽梨 | F25: 管理岗位 | G25: 《综合知识》类 | H25: T362019071522613014451 | J25: 52263219951024002X | L25: 贵州省黔东南自治州 | M25: 榕江县 | N25: 014451 | P25: 女 | Q25: 19951024 | R25: 贵州省榕江县 | S25: 汉族 | T25: 中国共产主义青年团团员 | U25: 黔东南民族职业技术学院 | W25: 林业技术 | X25: 大学专科毕业 | Y25: 无 | AA25: 201707 | AB25: 贵州省榕江县古州镇丰乐村二组 | AC25: 是 | AD25: 贵州省榕江县古州镇丰乐村二组 | AE25: 在家待业 | AF25: 其他（临时工、未就业人员等） | AG25: 贵州榕江 | AH25: 无 | AI25: 是 | AJ25: 152586635421 | AK25: 无 | AM25: 18785514660 | AN25: 榕江县平阳乡林业站 | AO25: 13140管理岗位 | AP25: 2011年9月至2014年6月在榕江一中第一中学就读高中 2014年9月至2017年7月在黔东南民族职业技术学院就读大学 毕业至今一直在家待业 | AR25: 2 | AS25: 01 | AT25: 03 | AV25: 31 | AW25: 4 | AX25: 1 | AY25: 05 | AZ25: 1 | BA25: 126131009 | BB25: 126131009140 | BC25: 362019071522613014451 | BE25: 62.55 | BF25: 31.28 | BG25: 75.33 | BH25: 37.67 | BI25: =RANK(BE25,$BE$25:$BE$27) -> 2 | BJ25: 入围资格复审 | BK25: 2019年8月－9日 | BL25: 合格 | BP25: 68.94 | BQ25: =RANK(BP25,$BP$25:$BP$27) -> 1 | BR25: 入围体检 | BS25: 2019-09-08
B26: 1320190123 | E26: 李成福 | F26: 管理岗位 | G26: 《综合知识》类 | H26: T362019071522613012054 | J26: 522634199207024431 | L26: 贵州省黔东南自治州 | M26: 榕江县 | N26: 012054 | P26: 男 | Q26: 19920702 | R26: 贵州雷山 | S26: 苗族 | T26: 中国共产党党员 | U26: 贵阳职业技术学院 | W26: 园林技术 | X26: 大学专科毕业 | Y26: 无 | AA26: 201507 | AB26: 贵州省雷山县永乐镇乔配村老寨一组 | AC26: 是 | AD26: 贵州省雷山县永乐镇乔配村老寨一组 | AE26: 无 | AF26: 其他（临时工、未就业人员等） | AG26: 贵州省雷山县 | AH26: 无 | AI26: 是 | AJ26: 18798591365 | AK26: 18798591365 | AM26: 18798591365 | AN26: 榕江县平阳乡林业站 | AO26: 13140管理岗位 | AP26: 2008年9月-2012年7月雷山民族中学 2012年9月-2015年7月贵阳职业技术学院 2015年7月-2017年8月雷山银枫农林生态公司种植技术人员 2017年8月-2019年7月贵州恒到丹林农业科技开发有限公司基地管理人员 | AR26: 1 | AS26: 06 | AT26: 01 | AV26: 31 | AW26: 4 | AX26: 1 | AY26: 05 | AZ26: 1 | BA26: 126131009 | BB26: 126131009140 | BC26: 362019071522613012054 | BE26: 68 | BF26: 34.00 | BG26: 65.33 | BH26: 32.67 | BI26: =RANK(BE26,$BE$25:$BE$27) -> 1 | BJ26: 入围资格复审 | BK26: 2019年8月－9日 | BL26: 合格 | BP26: 66.67 | BQ26: =RANK(BP26,$BP$25:$BP$27) -> 2
B27: 1320190124 | E27: 杨胜隆 | F27: 管理岗位 | G27: 《综合知识》类 | H27: T362019071522613002876 | J27: 522632199706237076 | L27: 贵州省黔东南自治州 | M27: 榕江县 | N27: 002876 | P27: 男 | Q27: 1997.06.23 | R27: 贵州省榕江县 | S27: 苗族 | T27: 群众 | U27: 黔东南民族职业技术学院 | W27: 林业技术 | X27: 大学专科毕业 | Y27: 无 | AA27: 2019.07 | AB27: 贵州省榕江县平阳乡 | AC27: 是 | AD27: 贵州省榕江县平阳乡丹江村4组 | AE27: 无 | AF27: 其他（临时工、未就业人员等） | AG27: 贵州省榕江县 | AH27: 2018年9月取得农业植保员证书 | AI27: 是 | AJ27: 15185560607 | AK27: 15185560607 | AM27: 15185560607 | AN27: 榕江县平阳乡林业站 | AO27: 13140管理岗位 | AP27: 2013.09-2016.07贵州省雷山民族中学学习； 2016.09-2019.07贵州省黔东南民族职业技术学院生物与环境工程系林业技术专业学习。 | AR27: 1 | AS27: 06 | AT27: 13 | AV27: 31 | AW27: 4 | AX27: 1 | AY27: 05 | AZ27: 1 | BA27: 126131009 | BB27: 126131009140 | BC27: 362019071522613002876 | BE27: 55.85 | BF27: 27.93 | BG27: 68.33 | BH27: 34.17 | BI27: =RANK(BE27,$BE$25:$BE$27) -> 3 | BJ27: 入围资格复审 | BK27: 2019年8月－9日 | BL27: 合格 | BP27: 62.09 | BQ27: =RANK(BP27,$BP$25:$BP$27) -> 3
B28: 1320190125 | E28: 石昌毫 | F28: 专业技术岗位 | G28: 《综合知识》类 | H28: T362019071522613056143 | J28: 522632199505133318 | L28: 贵州省黔东南自治州 | M28: 榕江县 | N28: 056143 | P28: 男 | Q28: 1995.05.13 | R28: 贵州省榕江县 | S28: 侗族 | T28: 中国共产主义青年团团员 | U28: 怀化职业技术学院 | W28: 畜牧兽医 | X28: 大学专科毕业 | Y28: 无 | AA28: 2017.07 | AB28: 贵州省榕江县仁里乡仁吉村12组 | AC28: 是 | AD28: 贵州省榕江县仁里乡仁吉村12组 | AE28: 待业 | AF28: 其他（临时工、未就业人员等） | AG28: 贵州省榕江县 | AH28: 无 | AI28: 是 | AJ28: 15286370532 | AK28: 15286370532 | AM28: 18286595337 | AN28: 榕江县乐里镇农业服务中心 | AO28: 13146专业技术岗位 | AP28: 2011.9－－2014.7就读于榕江实验中学 2014.9－－2017.7就读于怀化职业技术学院 | AR28: 1 | AS28: 12 | AT28: 03 | AV28: 31 | AW28: 4 | AX28: 1 | AY28: 05 | AZ28: 1 | BA28: 126131015 | BB28: 126131015146 | BC28: 362019071522613056143 | BE28: 64.6 | BF28: 32.30 | BG28: 74.33 | BH28: 37.17 | BI28: =RANK(BE28,$BE$28:$BE$30) -> 1 | BJ28: 入围资格复审 | BK28: 2019年8月－9日 | BL28: 合格 | BP28: 69.47 | BQ28: =RANK(BP28,$BP$28:$BP$30) -> 1 | BR28: 入围体检 | BS28: 2019-09-08
B29: 1320190126 | E29: 张再竹 | F29: 专业技术岗位 | G29: 《综合知识》类 | H29: T362019071522613070846 | J29: 522632199009191607 | L29: 贵州省黔东南自治州 | M29: 榕江县 | N29: 070846 | P29: 女 | Q29: 1990.09.19 | R29: 贵州榕江县 | S29: 侗族 | T29: 群众 | U29: 遵义职业技术学院 | W29: 动物医学 | X29: 大学专科毕业 | Y29: 无 | AA29: 2013.07 | AB29: 贵州省榕江县古州镇常驰财富广场一栋二单元801室 | AC29: 是 | AD29: 贵州省榕江县古州镇常驰财富广场一栋二单元801室 | AE29: 无 | AF29: 其他（临时工、未就业人员等） | AG29: 贵州省榕江县 | AH29: “2011年12月取得计算机操作工”“2012年7月取得动物检疫检验员四级”“2013年1月取得动物疫病防治员四级”。 | AI29: 是 | AJ29: 18744847545 | AK29: 18212458515 | AM29: 13595549512 | AN29: 榕江县乐里镇农业服务中心 | AO29: 13146专业技术岗位 | AP29: 2006年9月至2009年7月就读于榕江一中； 2009年9月至2010年7月就读于黎平一中； 2010年9月至2013年7月就读于遵义职业技术学院； 2013年7月至今在家待业。 | AR29: 2 | AS29: 12 | AT29: 13 | AV29: 31 | AW29: 4 | AX29: 1 | AY29: 05 | AZ29: 1 | BA29: 126131015 | BB29: 126131015146 | BC29: 362019071522613070846 | BE29: 58.6 | BF29: 29.30 | BG29: 70.67 | BH29: 35.34 | BI29: =RANK(BE29,$BE$28:$BE$30) -> 2 | BJ29: 入围资格复审 | BK29: 2019年8月－9日 | BL29: 合格 | BP29: 64.64 | BQ29: =RANK(BP29,$BP$28:$BP$30) -> 2
B30: 1320190127 | E30: 余昌梅 | F30: 专业技术岗位 | G30: 《综合知识》类 | H30: T362019071522613038185 | J30: 522325199511200820 | L30: 贵州省黔东南自治州 | M30: 榕江县 | N30: 038185 | P30: 女 | Q30: 1995.11.20 | R30: 贵州贞丰 | S30: 布依族 | T30: 群众 | U30: 黔南民族职业技术学院 | W30: 农产品质量检测 | X30: 大学专科毕业 | Y30: 无 | AA30: 2019.06 | AB30: 贵州省贞丰县者相镇纳孔村下坡敖组 | AC30: 是 | AD30: 贵州省贞丰县者相镇纳孔村下坡敖组 | AE30: 贵州省世纪阳光管理有限责任公司 | AF30: 其他（临时工、未就业人员等） | AG30: 贵州贞丰 | AH30: 2018年获得食品检验工三级 | AI30: 是 | AJ30: 18744991641 | AK30: 18744991641 | AM30: 18386397253 | AN30: 榕江县乐里镇农业服务中心 | AO30: 13146专业技术岗位 | AP30: 2013年9月到2015年6月就读贞丰中学 20159月到2018年6月就读黔南民族职业技术学院 2018年6月至2019年7月在贵州省世纪阳光管理有限责任公司担任质检 | AR30: 2 | AS30: 09 | AT30: 13 | AV30: 31 | AW30: 4 | AX30: 1 | AY30: 05 | AZ30: 1 | BA30: 126131015 | BB30: 126131015146 | BC30: 362019071522613038185 | BE30: 56.1 | BF30: 28.05 | BG30: 65 | BH30: 32.50 | BI30: =RANK(BE30,$BE$28:$BE$30) -> 3 | BJ30: 入围资格复审 | BK30: 2019年8月－9日 | BL30: 合格 | BP30: 60.55 | BQ30: 3
B31: 1320190128 | D31: 28 | E31: 杜其豫 | F31: 管理岗位 | G31: 《综合知识》类 | H31: T362019071522613054927 | J31: 522425199507288458 | L31: 贵州省黔东南自治州 | M31: 榕江县 | N31: 054927 | P31: 男 | Q31: 1995.07.28 | R31: 贵州省织金县 | S31: 其他 | T31: 中国共产主义青年团团员 | U31: 辽宁工程技术大学 | W31: 劳动与社会保障 | X31: 大学本科毕业 | Y31: 学士 | AA31: 2018.07 | AB31: 贵州省织金县 | AC31: 是 | AD31: 贵州省织金县白泥镇兴寨村播梭坝组 | AE31: 无 | AF31: 其他（临时工、未就业人员等） | AG31: 贵州省织金县 | AH31: 无 | AI31: 是 | AJ31: 13984723366 | AK31: 17586466627 | AM31: 13595872379 | AN31: 榕江县督查信息中心 | AO31: 13006管理岗位 | AP31: 2011年9月至2014年7月六盘水市第二中学学习 2014年9月至2018年7月辽宁工程技术大学劳动与社会保障专业学习 2018年9月至2019年1月六枝特区新华镇小学代课 2019年1月至今待业 | AR31: 1 | AS31: 97 | AT31: 03 | AV31: 21 | AW31: 3 | AX31: 1 | AY31: 05 | AZ31: 1 | BA31: 126130910 | BB31: 126130910006 | BC31: 362019071522613054927 | BE31: 83.3 | BF31: 41.65 | BG31: 90.33 | BH31: 45.17 | BI31: =RANK(BE31,$BE$31:$BE$33) -> 1 | BJ31: 入围资格复审 | BK31: 2019年8月－9日 | BL31: 合格 | BP31: 86.82 | BQ31: =RANK(BP31,$BP$31:$BP$33) -> 1 | BR31: 入围体检 | BS31: 2019-09-08
B32: 1320190129 | D32: 29 | E32: 练路艳 | F32: 管理岗位 | G32: 《综合知识》类 | H32: T362019071522613010907 | J32: 522725199606101624 | L32: 贵州省黔东南自治州 | M32: 榕江县 | N32: 010907 | P32: 女 | Q32: 1996.06.10 | R32: 贵州省瓮安县 | S32: 汉族 | T32: 中国共产主义青年团团员 | U32: 河南师范大学 | W32: 劳动与社会保障 | X32: 大学本科毕业 | Y32: 学士 | AA32: 2018.07 | AB32: 贵州省瓮安县岚关乡 | AC32: 是 | AD32: 贵州省瓮安县龙翔名都五号楼一单元1604 | AE32: 无 | AF32: 其他（临时工、未就业人员等） | AG32: 贵州省瓮安县 | AH32: 2017年12月取得心理咨询师三级证书 2017年12月取得人力资源管理师三级证书 2019年6月取得高中政治教师资格证书 | AI32: 是 | AJ32: 15617139056 | AK32: 08592962171 | AM32: 18375138655 | AN32: 榕江县督查信息中心 | AO32: 13006管理岗位 | AP32: 2011.09-2014.07年就读于瓮安县第二高级中学 2014.09-2018.07年就读于河南师范大学劳动与社会保障专业 2018.08-2019.06年就职于兴义市双馨教育任职高三文科班主任及政治教师 | AR32: 2 | AS32: 01 | AT32: 03 | AV32: 21 | AW32: 3 | AX32: 1 | AY32: 05 | AZ32: 1 | BA32: 126130910 | BB32: 126130910006 | BC32: 362019071522613010907 | BE32: 80.8 | BF32: 40.40 | BG32: 84.67 | BH32: 42.34 | BI32: =RANK(BE32,$BE$31:$BE$33) -> 2 | BJ32: 递补入围资格复审 | BL32: 合格 | BP32: 82.74 | BQ32: =RANK(BP32,$BP$31:$BP$33) -> 2
B33: 1320190130 | D33: 30 | E33: 杨昇才 | F33: 管理岗位 | G33: 《综合知识》类 | H33: T362019071522613033534 | J33: 522632198807151613 | L33: 贵州省黔东南自治州 | M33: 榕江县 | N33: 033534 | P33: 男 | Q33: 1988.07.15 | R33: 贵州省榕江县 | S33: 侗族 | T33: 中国共产党预备党员 | U33: 贵州财经大学 | W33: 行政管理 | X33: 大学本科毕业 | Y33: 无 | AA33: 2014.07 | AB33: 贵州省榕江县忠诚镇 | AC33: 是 | AD33: 贵州省榕江县忠诚镇俾堵村上寨组 | AE33: 贵州省榕江县忠诚镇俾堵村民委员会 | AF33: 其他（临时工、未就业人员等） | AG33: 贵州省榕江县 | AH33: 无 | AI33: 是 | AJ33: 18984497137 | AK33: 15885808615 | AM33: 15519209098 | AN33: 榕江县督查信息中心 | AO33: 13006管理岗位 | AP33: 2015年9月-2010年7月就读于榕江县第一中学 2010年9月-2014年7月就读于贵州财经大学 2014年7月-2015年3月在家待业 2015年3月至今工作于忠诚镇俾堵村民委员会 | AR33: 1 | AS33: 12 | AT33: 02 | AV33: 21 | AW33: 4 | AX33: 1 | AY33: 05 | AZ33: 1 | BA33: 126130910 | BB33: 126130910006 | BC33: 362019071522613033534 | BE33: 80.25 | BF33: 40.13 | BG33: 77 | BH33: 38.50 | BI33: =RANK(BE33,$BE$31:$BE$33) -> 3 | BJ33: 递补入围资格复审 | BL33: 合格 | BP33: 78.63 | BQ33: 3
B34: 1320190131 | D34: 1 | E34: 黎媛 | F34: 管理岗位 | G34: 《综合知识》类 | H34: T362019071522613027074 | J34: 522601199403210824 | L34: 贵州省黔东南自治州 | M34: 榕江县 | N34: 027074 | P34: 女 | Q34: 1994.03.21 | R34: 贵州省凯里市 | S34: 苗族 | T34: 群众 | U34: 广东海洋大学 | W34: 对外汉语 | X34: 大学本科毕业 | Y34: 学士 | AA34: 2016.06 | AB34: 贵州省凯里市华联路146号 | AC34: 是 | AD34: 贵州省榕江县榕城尚品二栋1单元2201 | AE34: 无 | AF34: 其他（临时工、未就业人员等） | AG34: 贵州省凯里市 | AH34: 2019年7月取得高中语文教师资格证书 | AI34: 是 | AJ34: 15870296440 | AK34: 无 | AM34: 18608553151 | AN34: 榕江县老干部活动中心 | AO34: 13007管理岗位 | AP34: 2009年9月-2012年6月在凯里市第八中学上学 2012年9月-2016年6月在广东海洋大学上学 2016年7月-至今在榕江咖啡英语学校上班 | AR34: 2 | AS34: 06 | AT34: 13 | AV34: 21 | AW34: 3 | AX34: 1 | AY34: 05 | AZ34: 1 | BA34: 126130911 | BB34: 126130911007 | BC34: 362019071522613027074 | BE34: 77.8 | BF34: 38.90 | BG34: 87 | BH34: 43.50 | BI34: =RANK(BE34,$BE$34:$BE$36) -> 1 | BJ34: 入围资格复审 | BK34: 2019年8月－9日 | BL34: 合格 | BP34: 82.40 | BQ34: =RANK(BP34,$BP$34:$BP$36) -> 1 | BR34: 入围体检 | BS34: 2019-09-08
B35: 1320190132 | D35: 2 | E35: 杨才海 | F35: 管理岗位 | G35: 《综合知识》类 | H35: T362019071522613086935 | J35: 532126199202061713 | L35: 贵州省黔东南自治州 | M35: 榕江县 | N35: 086935 | P35: 男 | Q35: 1992.02.06 | R35: 云南省永善县 | S35: 汉族 | T35: 中国共产主义青年团团员 | U35: 遵义师范学院 | W35: 汉语言文学 | X35: 大学本科毕业 | Y35: 学士 | AA35: 2017.07 | AB35: 云南省永善县 | AC35: 是 | AD35: 云南省昭通市永善县务基镇锦屏村 | AE35: 无 | AF35: 其他（临时工、未就业人员等） | AG35: 云南省永善县 | AH35: 无 | AI35: 是 | AJ35: 15240800150 | AK35: 无 | AM35: 15284505692 | AN35: 榕江县老干部活动中心 | AO35: 13007管理岗位 | AP35: 1.2009年9月至2013年6月就读于永善县第一中学；2.2013年9月至2017年7月就读于遵义师范学院；3.2017年1月至2018年12月在县委宣传部从事文秘工作（公益岗位）。 | AR35: 1 | AS35: 01 | AT35: 03 | AV35: 21 | AW35: 3 | AX35: 1 | AY35: 05 | AZ35: 1 | BA35: 126130911 | BB35: 126130911007 | BC35: 362019071522613086935 | BE35: 77.05 | BF35: 38.53 | BG35: 77 | BH35: 38.50 | BI35: =RANK(BE35,$BE$34:$BE$36) -> 2 | BJ35: 入围资格复审 | BK35: 2019年8月－9日 | BL35: 合格 | BP35: 77.03 | BQ35: =RANK(BP35,$BP$34:$BP$36) -> 2
B36: 1320190133 | D36: 3 | E36: 莫菊芬 | F36: 管理岗位 | G36: 《综合知识》类 | H36: T362019071522613056862 | J36: 522732199610052267 | L36: 贵州省黔东南自治州 | M36: 榕江县 | N36: 056862 | P36: 女 | Q36: 1996.10.05 | R36: 贵州省三都县 | S36: 水族 | T36: 中国共产主义青年团团员 | U36: 凯里学院 | W36: 汉语言文学 | X36: 大学本科毕业 | Y36: 学士 | AA36: 2019.07 | AB36: 贵州省三都县中和镇 | AC36: 是 | AD36: 贵州省三都县中和镇独寨村七组 | AE36: 无 | AF36: 其他（临时工、未就业人员等） | AG36: 贵州省三都县 | AH36: 2018年5月取得高中语文教师资格证书 | AI36: 是 | AJ36: 18385704194 | AK36: 无 | AM36: 15118290775 | AN36: 榕江县老干部活动中心 | AO36: 13007管理岗位 | AP36: 2008.09-2011.06贵州省三都县水龙民族中学学习；2011.09-2014.07贵州省三都县三都民族中学学习；2014。09-2015.06凯里学院双语预科学习；2015。09-2019.07凯里学院汉语言文学专业本科学习 | AR36: 2 | AS36: 25 | AT36: 03 | AV36: 21 | AW36: 3 | AX36: 1 | AY36: 05 | AZ36: 1 | BA36: 126130911 | BB36: 126130911007 | BC36: 362019071522613056862 | BE36: 75.25 | BF36: 37.63 | BG36: 77 | BH36: 38.50 | BI36: =RANK(BE36,$BE$34:$BE$36) -> 3 | BJ36: 入围资格复审 | BK36: 2019年8月－9日 | BL36: 合格 | BP36: 76.13 | BQ36: 3
A37: 第二考场 | B37: 1320190201 | D37: 4 | E37: 罗丽萍 | F37: 管理岗位 | G37: 《综合知识》类 | H37: T362019071522613086235 | J37: 522401199010282746 | L37: 贵州省黔东南自治州 | M37: 榕江县 | N37: 086235 | P37: 女 | Q37: 1990.10.28 | R37: 贵州省毕节市 | S37: 汉族 | T37: 中国共产党党员 | U37: 贵州民族大学 | W37: 中国少数民族史 | X37: 硕士研究生毕业 | Y37: 硕士 | AA37: 2016.07 | AB37: 贵州省贵阳市花溪区 | AC37: 是 | AD37: 贵州省榕江县古州镇古州中路老工商局 | AE37: 榕江县文物管理局 | AF37: 其他（临时工、未就业人员等） | AG37: 贵州省毕节市 | AH37: 2017年6月取得高等学校历史教师资格证 | AI37: 是 | AJ37: 15285125295 | AK37: 0855-6620355 | AM37: 15285122779 | AN37: 榕江县文物保护研究中心 | AO37: 13047管理岗位 | AP37: 2009.09-2013.07，贵州民族大学历史学专业； 2013.09-2016.07，贵州民族大学中国少数民族史专业； 2016.08-2017.07，在贵州医科大学神奇民族医药学院工作； 2017.07至今，在贵州省榕江县文物管理局工作。 | AR37: 2 | AS37: 01 | AT37: 01 | AV37: 14 | AW37: 2 | AX37: 1 | AY37: 05 | AZ37: 1 | BA37: 126130938 | BB37: 126130938047 | BC37: 362019071522613086235 | BE37: 82.8 | BF37: 41.40 | BG37: 83.33 | BH37: 41.67 | BI37: =RANK(BE37,$BE$37:$BE$39) -> 1 | BJ37: 入围资格复审 | BK37: 2019年8月－9日 | BL37: 合格 | BP37: 83.07 | BQ37: =RANK(BP37,$BP$37:$BP$39) -> 1 | BR37: 入围体检 | BS37: 2019-09-08
B38: 1320190202 | D38: 5 | E38: 邹茂 | F38: 管理岗位 | G38: 《综合知识》类 | H38: T362019071522613017744 | J38: 522428199206150622 | L38: 贵州省黔东南自治州 | M38: 榕江县 | N38: 017744 | P38: 女 | Q38: 1992.06.15 | R38: 贵州省赫章县 | S38: 汉族 | T38: 群众 | U38: 云南民族大学 | W38: 中国少数民族艺术 | X38: 硕士研究生毕业 | Y38: 硕士 | AA38: 2019.06 | AB38: 贵州省毕节市赫章县财神镇财神村塘边组 | AC38: 是 | AD38: 贵州省毕节市赫章县财神镇财神村塘边组 | AE38: 无 | AF38: 其他（临时工、未就业人员等） | AG38: 贵州省赫章县 | AH38: 2016年6月取得美术高级中学教师资格证书 | AI38: 是 | AJ38: 18084374636 | AK38: 18468299658 | AM38: 18085763305 | AN38: 榕江县文物保护研究中心 | AO38: 13047管理岗位 | AP38: 2008年9月至2012年7月，就读于贵州省赫章县第二中学。 2012年9月至2016年7月，就读于贵阳学院艺术学院美术学专业。 2016年9月至2019年6月，就读于云南民族大学艺术学院中国少数民族艺术专业。 | AR38: 2 | AS38: 01 | AT38: 13 | AV38: 14 | AW38: 2 | AX38: 1 | AY38: 05 | AZ38: 1 | BA38: 126130938 | BB38: 126130938047 | BC38: 362019071522613017744 | BE38: 76.55 | BF38: 38.28 | BG38: 84.33 | BH38: 42.17 | BI38: =RANK(BE38,$BE$37:$BE$39) -> 2 | BJ38: 入围资格复审 | BK38: 2019年8月－9日 | BL38: 合格 | BP38: 80.44 | BQ38: =RANK(BP38,$BP$37:$BP$39) -> 2
B39: 1320190203 | D39: 6 | E39: 吕炎 | F39: 管理岗位 | G39: 《综合知识》类 | H39: T362019071522613010361 | J39: 420204198107084533 | L39: 贵州省黔东南自治州 | M39: 榕江县 | N39: 010361 | P39: 男 | Q39: 1981.07.08 | R39: 湖北省武汉市 | S39: 汉族 | T39: 群众 | U39: 吉首大学 | W39: 中国史 | X39: 硕士研究生毕业 | Y39: 硕士 | AA39: 2019.06.06 | AB39: 湖北省黄石市 | AC39: 是 | AD39: 湖南省吉首市吉首大学教工宿舍50栋 | AE39: 应届毕业生 | AF39: 其他（临时工、未就业人员等） | AG39: 湖北省黄石市 | AH39: 无 | AI39: 是 | AJ39: 15907414583 | AK39: 0743-8563903 | AM39: 18797456623 | AN39: 榕江县文物保护研究中心 | AO39: 13047管理岗位 | AP39: 1996/09-1999/06黄石东钢中学；1999/09-2004/06华中农业大学市场营销本科；2004/04-2011/11索尼（中国）有限公司；2012/01-2017/09吉首大学后勤处、历史学院；2016/09-2019/06吉首大学中国史硕士研究生。 | AR39: 1 | AS39: 01 | AT39: 13 | AV39: 14 | AW39: 2 | AX39: 1 | AY39: 05 | AZ39: 1 | BA39: 126130938 | BB39: 126130938047 | BC39: 362019071522613010361 | BE39: 73.7 | BF39: 36.85 | BG39: 80.67 | BH39: 40.34 | BI39: =RANK(BE39,$BE$37:$BE$39) -> 3 | BJ39: 入围资格复审 | BK39: 2019年8月－9日 | BL39: 合格 | BP39: 77.19 | BQ39: 3
B40: 1320190204 | D40: 7 | E40: 陆英冬 | F40: 管理岗位 | G40: 《综合知识》类 | H40: T362019071522613042684 | J40: 522701199412195086 | L40: 贵州省黔东南自治州 | M40: 榕江县 | N40: 042684 | P40: 女 | Q40: 1994.12.19 | R40: 贵州省都匀市 | S40: 布依族 | T40: 中国共产主义青年团团员 | U40: 贵州民族大学 | W40: 社会工作 | X40: 大学本科毕业 | Y40: 学士 | AA40: 2017.07 | AB40: 贵州省都匀市墨冲镇 | AC40: 是 | AD40: 贵州省都匀市墨冲镇河西村一组 | AE40: 无 | AF40: 其他（临时工、未就业人员等） | AG40: 贵州省都匀市 | AH40: 无 | AI40: 是 | AJ40: 13087800146 | AK40: 13087800146 | AM40: 18170602006 | AN40: 榕江县老干部活动中心 | AO40: 13008管理岗位 | AP40: 2010年9月-2013年7月都匀市第三中学 2013年9月-2017年7月贵州民族大学 2017年8月-2018年8月黔南州残疾人联合会（见习） 2018年9月-2019年4月都匀湘才培训学校 2019年5月-至今未就业 | AR40: 2 | AS40: 09 | AT40: 03 | AV40: 21 | AW40: 3 | AX40: 1 | AY40: 05 | AZ40: 1 | BA40: 126130911 | BB40: 126130911008 | BC40: 362019071522613042684 | BE40: 80.65 | BF40: 40.33 | BG40: 82.33 | BH40: 41.17 | BI40: =RANK(BE40,$BE$40:$BE$42) -> 3 | BJ40: 入围资格复审 | BK40: 2019年8月－9日 | BL40: 合格 | BP40: 81.49 | BQ40: =RANK(BP40,$BP$40:$BP$42) -> 1 | BR40: 入围体检 | BS40: 2019-09-08
B41: 1320190205 | D41: 8 | E41: 黄元梅 | F41: 管理岗位 | G41: 《综合知识》类 | H41: T362019071522613060756 | J41: 522629199109142425 | L41: 贵州省黔东南自治州 | M41: 榕江县 | N41: 060756 | P41: 女 | Q41: 1991.09.14 | R41: 贵州省剑河县 | S41: 苗族 | T41: 中国共产主义青年团团员 | U41: 上海海洋大学 | W41: 国际经济与贸易 | X41: 大学本科毕业 | Y41: 学士 | AA41: 2017.06 | AB41: 贵州省榕江县八开镇亚类村四组 | AC41: 是 | AD41: 贵州省榕江县八开镇亚类村四组 | AE41: 无 | AF41: 其他（临时工、未就业人员等） | AG41: 贵州省剑河县 | AH41: 无 | AI41: 是 | AJ41: 15772571127 | AK41: 15772571127 | AM41: 18485535227 | AN41: 榕江县老干部活动中心 | AO41: 13008管理岗位 | AP41: 2008.09-2011.06振华民族中学 2011.09-2012.06凯里一中 2012.09-2013.06南昌工学院 2013.09-2017.06上海海洋大学 2017.6-至今待业 | AR41: 2 | AS41: 06 | AT41: 03 | AV41: 21 | AW41: 3 | AX41: 1 | AY41: 05 | AZ41: 1 | BA41: 126130911 | BB41: 126130911008 | BC41: 362019071522613060756 | BE41: 81.1 | BF41: 40.55 | BG41: 76.33 | BH41: 38.17 | BI41: =RANK(BE41,$BE$40:$BE$42) -> 2 | BJ41: 入围资格复审 | BK41: 2019年8月－9日 | BL41: 合格 | BP41: 78.72 | BQ41: =RANK(BP41,$BP$40:$BP$42) -> 2
B42: 1320190206 | D42: 9 | E42: 汪文凯 | F42: 管理岗位 | G42: 《综合知识》类 | H42: T362019071522613045582 | J42: 340828199307243314 | L42: 贵州省黔东南自治州 | M42: 榕江县 | N42: 045582 | P42: 男 | Q42: 1993.07.24 | R42: 安徽省安庆市 | S42: 汉族 | T42: 中国共产主义青年团团员 | U42: 遵义医学院 | W42: 临床药学 | X42: 大学本科毕业 | Y42: 学士 | AA42: 2018.07 | AB42: 安徽省岳西县白帽镇 | AC42: 是 | AD42: 安徽省安庆市岳西县白帽镇深村村渣沟组018号 | AE42: 贵州省遵义市红花岗区金鼎山镇水务站 | AF42: 其他（临时工、未就业人员等） | AG42: 安徽省安庆市 | AH42: 无 | AI42: 是 | AJ42: 15885637236 | AK42: 15934637332 | AM42: 17754088863 | AN42: 榕江县老干部活动中心 | AO42: 13008管理岗位 | AP42: 2009.08-2012.06就读于安徽省岳西县店前中学；2012.08-2013.08复读于安徽省岳西县岳西中学；2013.09-2018.07就读于遵义医学院；2018年7月至今，参加大学生志愿者服务西部计划，在贵州省遵义市红花岗区金鼎山镇服务。 | AR42: 1 | AS42: 01 | AT42: 03 | AV42: 21 | AW42: 3 | AX42: 1 | AY42: 05 | AZ42: 1 | BA42: 126130911 | BB42: 126130911008 | BC42: 362019071522613045582 | BE42: 81.5 | BF42: 40.75 | BG42: 74.67 | BH42: 37.34 | BI42: =RANK(BE42,$BE$40:$BE$42) -> 1 | BJ42: 入围资格复审 | BK42: 2019年8月－9日 | BL42: 合格 | BP42: 78.09 | BQ42: =RANK(BP42,$BP$40:$BP$42) -> 3
B43: 1320190207 | D43: 10 | E43: 谌雪霞 | F43: 专业技术岗位 | G43: 《综合知识》类 | H43: T362019071522613067991 | J43: 522123199412081527 | L43: 贵州省黔东南自治州 | M43: 榕江县 | N43: 067991 | P43: 女 | Q43: 1994.12.08 | R43: 贵州省绥阳县 | S43: 汉族 | T43: 中国共产主义青年团团员 | U43: 贵州大学 | W43: 林学 | X43: 大学本科毕业 | Y43: 学士 | AA43: 2017.06 | AB43: 贵州省绥阳县蒲场镇高坊子村前进组33号 | AC43: 是 | AD43: 贵州省绥阳县蒲场镇高坊子村前进组33号 | AE43: 无 | AF43: 其他（临时工、未就业人员等） | AG43: 贵州省绥阳县 | AH43: 无 | AI43: 是 | AJ43: 18286070465 | AK43: 15180717142 | AM43: 15985041167 | AN43: 榕江县森林资源站 | AO43: 13030专业技术岗位 | AP43: 2010.09—2013.06贵州省绥阳中学高中学习；2013.09-2017.06贵州大学本科学习；2017.07至今待业。 | AR43: 2 | AS43: 01 | AT43: 03 | AV43: 21 | AW43: 3 | AX43: 1 | AY43: 05 | AZ43: 1 | BA43: 126130925 | BB43: 126130925030 | BC43: 362019071522613067991 | BE43: 77.3 | BF43: 38.65 | BG43: 78.33 | BH43: 39.17 | BI43: =RANK(BE43,$BE$43:$BE$45) -> 1 | BJ43: 入围资格复审 | BK43: 2019年8月－9日 | BL43: 合格 | BP43: 77.82 | BQ43: =RANK(BP43,$BP$43:$BP$45) -> 1 | BR43: 入围体检 | BS43: 2019-09-08
B44: 1320190208 | D44: 11 | E44: 李磊乐 | F44: 专业技术岗位 | G44: 《综合知识》类 | H44: T362019071522613068119 | J44: 522632199411300576 | L44: 贵州省黔东南自治州 | M44: 榕江县 | N44: 068119 | P44: 男 | Q44: 1994.11.30 | R44: 贵州省黔东南州榕江县 | S44: 侗族 | T44: 中国共产主义青年团团员 | U44: 贵州师范大学 | W44: 园林 | X44: 大学本科毕业 | Y44: 学士 | AA44: 2017.07 | AB44: 贵州省榕江县车江乡八村 | AC44: 是 | AD44: 贵州省榕江县车江乡八村第三组 | AE44: 无 | AF44: 其他（临时工、未就业人员等） | AG44: 贵州省榕江县 | AH44: 无 | AI44: 是 | AJ44: 13158353939 | AK44: 13158353939 | AM44: 13116078539 | AN44: 榕江县森林资源站 | AO44: 13030专业技术岗位 | AP44: 2006.09-2009.07就读于榕江县第二中学 2009.09-2012.07就读于黎平县第一民族中学 2012.09-2013.07就读于榕江一中 2013.09-2017.07就读于贵州师范大学 2017.07-至今待业 | AR44: 1 | AS44: 12 | AT44: 03 | AV44: 21 | AW44: 3 | AX44: 1 | AY44: 05 | AZ44: 1 | BA44: 126130925 | BB44: 126130925030 | BC44: 362019071522613068119 | BE44: 73.45 | BF44: 36.73 | BG44: 79.33 | BH44: 39.67 | BI44: =RANK(BE44,$BE$43:$BE$45) -> 2 | BJ44: 入围资格复审 | BK44: 2019年8月－9日 | BL44: 合格 | BP44: 76.39 | BQ44: =RANK(BP44,$BP$43:$BP$45) -> 2
B45: 1320190209 | D45: 12 | E45: 商克勇 | F45: 专业技术岗位 | G45: 《综合知识》类 | H45: T362019071522613038388 | J45: 522125199203132239 | L45: 贵州省黔东南自治州 | M45: 榕江县 | N45: 038388 | P45: 男 | Q45: 1992.03.13 | R45: 贵州省道真县 | S45: 汉族 | T45: 中国共产主义青年团团员 | U45: 贵州师范大学 | W45: 园林 | X45: 大学本科毕业 | Y45: 学士 | AA45: 2018.07 | AB45: 贵州省道真仡佬族苗族自治县棕坪乡文联村龙家湾组 | AC45: 是 | AD45: 贵州省道真仡佬族苗族自治县棕坪乡文联村龙家湾组 | AE45: 贵州大复兴林业技术咨询有限公司 | AF45: 其他（临时工、未就业人员等） | AG45: 贵州省道真县 | AH45: 无 | AI45: 是 | AJ45: 17385484606 | AK45: 无 | AM45: 17385484196 | AN45: 榕江县森林资源站 | AO45: 13030专业技术岗位 | AP45: 2010.9——2013.6道真中学 2013.9——2014.6金星中学 2014.9——2018.7贵州师范大学 2018.7——2019.3北京森旺林业工程设计有限公司遵义分公司 2019.3——2019.7贵州大复兴林业技术咨询有限公司 | AR45: 1 | AS45: 01 | AT45: 03 | AV45: 21 | AW45: 3 | AX45: 1 | AY45: 05 | AZ45: 1 | BA45: 126130925 | BB45: 126130925030 | BC45: 362019071522613038388 | BE45: 72.95 | BF45: 36.48 | BG45: 79 | BH45: 39.50 | BI45: =RANK(BE45,$BE$43:$BE$45) -> 3 | BJ45: 入围资格复审 | BK45: 2019年8月－9日 | BL45: 合格 | BP45: 75.98 | BQ45: 3
B46: 1320190210 | D46: 13 | E46: 李求丽 | F46: 管理岗位 | G46: 《综合知识》类 | H46: T362019071522613054015 | J46: 522632199311010563 | L46: 贵州省黔东南自治州 | M46: 榕江县 | N46: 054015 | P46: 女 | Q46: 1993.11.01 | R46: 贵州省榕江县 | S46: 侗族 | T46: 中国共产主义青年团团员 | U46: 贵州医科大学 | W46: 生物医学工程 | X46: 大学本科毕业 | Y46: 学士 | AA46: 2017.07 | AB46: 贵州省榕江县车江乡 | AC46: 是 | AD46: 贵州省榕江县车江乡荫塘村六村四组180号 | AE46: 荔波县瑶山瑶族乡人民政府 | AF46: 其他（临时工、未就业人员等） | AG46: 贵州省榕江县 | AH46: 2015年9月取得会计资格证 | AI46: 是 | AJ46: 15761603241 | AK46: 15761603241 | AM46: 18798851495 | AN46: 榕江县精神文明建设服务中心 | AO46: 13009管理岗位 | AP46: 2010年9月-2013年7月就读于黔东南州振华民族中学（高中）； 2013年9月-2017年7月就读于贵州医科大学； 2017年9月-至今工作于荔波县瑶山瑶族乡人民政府。 | AR46: 2 | AS46: 12 | AT46: 03 | AV46: 21 | AW46: 3 | AX46: 1 | AY46: 05 | AZ46: 1 | BA46: 126130912 | BB46: 126130912009 | BC46: 362019071522613054015 | BE46: 84.45 | BF46: 42.23 | BG46: 81.67 | BH46: 40.84 | BI46: =RANK(BE46,$BE$46:$BE$48) -> 1 | BJ46: 入围资格复审 | BK46: 2019年8月－9日 | BL46: 合格 | BP46: 83.06 | BQ46: =RANK(BP46,$BP$45:$BP$48) -> 1 | BR46: 入围体检 | BS46: 2019-09-08
B47: 1320190211 | D47: 14 | E47: 潘见波 | F47: 管理岗位 | G47: 《综合知识》类 | H47: T362019071522613024081 | J47: 522632199512270011 | L47: 贵州省黔东南自治州 | M47: 榕江县 | N47: 024081 | P47: 男 | Q47: 1995.12.27 | R47: 贵州省榕江县 | S47: 水族 | T47: 中国共产主义青年团团员 | U47: 绥化学院 | W47: 汉语言文学 | X47: 大学本科毕业 | Y47: 学士 | AA47: 2019.06 | AB47: 贵州省黔东南苗族侗族自治州榕江县古州镇料理村 | AC47: 是 | AD47: 贵州省黔东南苗族侗族自治州榕江县古州镇料理村25 | AE47: 无 | AF47: 其他（临时工、未就业人员等） | AG47: 贵州省黔东南苗族侗族自治州榕江县 | AH47: 无 | AI47: 是 | AJ47: 18885509775 | AK47: 无 | AM47: 13384557572 | AN47: 榕江县精神文明建设服务中心 | AO47: 13009管理岗位 | AP47: 2012年9月至2015年6月于榕江一中学习 2015年9月至2019年6月于绥化学院学习 | AR47: 1 | AS47: 25 | AT47: 03 | AV47: 21 | AW47: 3 | AX47: 1 | AY47: 05 | AZ47: 1 | BA47: 126130912 | BB47: 126130912009 | BC47: 362019071522613024081 | BE47: 81.1 | BF47: 40.55 | BG47: 82.67 | BH47: 41.34 | BI47: =RANK(BE47,$BE$46:$BE$48) -> 2 | BJ47: 入围资格复审 | BK47: 2019年8月－9日 | BL47: 合格 | BP47: 81.89 | BQ47: =RANK(BP47,$BP$45:$BP$48) -> 2
B48: 1320190212 | D48: 15 | E48: 杨敏 | F48: 管理岗位 | G48: 《综合知识》类 | H48: T362019071522613008247 | J48: 522632199612170026 | L48: 贵州省黔东南自治州 | M48: 榕江县 | N48: 008247 | P48: 女 | Q48: 1996.12.17 | R48: 贵州省榕江县 | S48: 苗族 | T48: 中国共产主义青年团团员 | U48: 贵州师范学院 | W48: 应用化学 | X48: 大学本科毕业 | Y48: 学士 | AA48: 2019.07 | AB48: 贵州省榕江县古州镇兴隆街 | AC48: 是 | AD48: 贵州省榕江县古州镇兴隆街90-12 | AE48: 无 | AF48: 其他（临时工、未就业人员等） | AG48: 贵州省榕江县 | AH48: 无 | AI48: 是 | AJ48: 18212221647 | AK48: 18212221647 | AM48: 18744848098 | AN48: 榕江县精神文明建设服务中心 | AO48: 13009管理岗位 | AP48: 2009.09-2012.06就读于榕江县第二中学； 2012.09-2015.06就读于榕江县第一中学； 2015.09-2019.07就读于贵州师范学院。 | AR48: 2 | AS48: 06 | AT48: 03 | AV48: 21 | AW48: 3 | AX48: 1 | AY48: 05 | AZ48: 1 | BA48: 126130912 | BB48: 126130912009 | BC48: 362019071522613008247 | BE48: 79.7 | BF48: 39.85 | BG48: 79.67 | BH48: 39.84 | BI48: =RANK(BE48,$BE$46:$BE$48) -> 3 | BJ48: 入围资格复审 | BK48: 2019年8月－9日 | BL48: 合格 | BP48: 79.69 | BQ48: 3
B49: 1320190213 | D49: 16 | E49: 石艳柳 | F49: 管理岗位 | G49: 《综合知识》类 | H49: T362019071522613010304 | J49: 522722199202052142 | L49: 贵州省黔东南自治州 | M49: 榕江县 | N49: 010304 | P49: 女 | Q49: 1992.02.05 | R49: 贵州省荔波县 | S49: 水族 | T49: 中国共产主义青年团团员 | U49: 安顺学院 | W49: 土地资源管理 | X49: 大学本科毕业 | Y49: 学士 | AA49: 2015.07 | AB49: 贵州省荔波县黎明关乡德门村六组01号 | AC49: 是 | AD49: 贵州省荔波县黎明关乡德门村六组01号 | AE49: 贵州美盛宏园林绿化工程有限公司 | AF49: 其他（临时工、未就业人员等） | AG49: 贵州省荔波县 | AH49: 无 | AI49: 是 | AJ49: 18722718323 | AK49: 18722718323 | AM49: 18375062162 | AN49: 榕江县水尾水族乡国土资源所 | AO49: 13061管理岗位 | AP49: 2008年9月至2011年7月就读荔波高级中学； 2011年9月至2015年7月就读于安顺学院； 2014年7月至2015年3月实习于荔波县国土局，任职办公室文员实习生； 2016年3月至今在贵州美盛宏园林绿化工程有限公司任职资料员； | AR49: 2 | AS49: 25 | AT49: 03 | AV49: 21 | AW49: 3 | AX49: 1 | AY49: 05 | AZ49: 1 | BA49: 126130952 | BB49: 126130952061 | BC49: 362019071522613010304 | BE49: 84.4 | BF49: 42.20 | BG49: 77 | BH49: 38.50 | BI49: =RANK(BE49,$BE$49:$BE$51) -> 1 | BJ49: 入围资格复审 | BK49: 2019年8月－9日 | BL49: 合格 | BP49: 80.70 | BQ49: =RANK(BP49,$BP$49:$BP$51) -> 1 | BR49: 入围体检 | BS49: 2019-09-08
B50: 1320190214 | D50: 17 | E50: 林世通 | F50: 管理岗位 | G50: 《综合知识》类 | H50: T362019071522613027539 | J50: 522631199409280012 | L50: 贵州省黔东南自治州 | M50: 榕江县 | N50: 027539 | P50: 男 | Q50: 19940928 | R50: 贵州省黎平县 | S50: 侗族 | T50: 中国共产主义青年团团员 | U50: 贵阳学院 | W50: 城乡规划 | X50: 大学本科毕业 | Y50: 学士 | AA50: 2017.07 | AB50: 贵州省黎平县德凤镇 | AC50: 是 | AD50: 贵州省黎平县德凤镇蒲洞村6组 | AE50: 无 | AF50: 其他（临时工、未就业人员等） | AG50: 贵州省黎平县 | AH50: 无 | AI50: 是 | AJ50: 18286568321 | AK50: 无 | AM50: 18385517927 | AN50: 榕江县水尾水族乡国土资源所 | AO50: 13061管理岗位 | AP50: 2010年9月－－2013年7月黎平县第三中学 2013年9月－－2017年7月贵阳学院 2017年7月至今待业 | AR50: 1 | AS50: 12 | AT50: 03 | AV50: 21 | AW50: 3 | AX50: 1 | AY50: 05 | AZ50: 1 | BA50: 126130952 | BB50: 126130952061 | BC50: 362019071522613027539 | BE50: 81.05 | BF50: 40.53 | BG50: 78.33 | BH50: 39.17 | BI50: =RANK(BE50,$BE$49:$BE$51) -> 2 | BJ50: 入围资格复审 | BK50: 2019年8月－9日 | BL50: 合格 | BP50: 79.69 | BQ50: =RANK(BP50,$BP$49:$BP$51) -> 2
B51: 1320190215 | D51: 18 | E51: 杨昌俊 | F51: 管理岗位 | G51: 《综合知识》类 | H51: T362019071522613021443 | J51: 522632199607010562 | L51: 贵州省黔东南自治州 | M51: 榕江县 | N51: 021443 | P51: 女 | Q51: 1996.07.01 | R51: 贵州省榕江县 | S51: 侗族 | T51: 中国共产主义青年团团员 | U51: 贵州财经大学 | W51: 土地资源管理 | X51: 大学本科毕业 | Y51: 学士 | AA51: 2019.06 | AB51: 贵州省榕江县车江乡 | AC51: 是 | AD51: 贵州省榕江县车江乡一村04号 | AE51: 无 | AF51: 其他（临时工、未就业人员等） | AG51: 贵州省榕江县 | AH51: 1.2017年03月取得计算机二级证书 2.2018年06月取得普通话水平测试二级甲等证书 | AI51: 是 | AJ51: 15185744503 | AK51: 15185744503 | AM51: 15085270837 | AN51: 榕江县水尾水族乡国土资源所 | AO51: 13061管理岗位 | AP51: 2012年09月至2015年07月就读于贵州省榕江县第一中学 2015年09月至2019年06月就读于贵州省贵州财经大学 | AR51: 2 | AS51: 12 | AT51: 03 | AV51: 21 | AW51: 3 | AX51: 1 | AY51: 05 | AZ51: 1 | BA51: 126130952 | BB51: 126130952061 | BC51: 362019071522613021443 | BE51: 78.7 | BF51: 39.35 | BG51: 76.67 | BH51: 38.34 | BI51: =RANK(BE51,$BE$49:$BE$51) -> 3 | BJ51: 入围资格复审 | BK51: 2019年8月－9日 | BL51: 合格 | BP51: 77.69 | BQ51: 3
B52: 1320190216 | D52: 19 | E52: 罗文孝 | F52: 管理岗位 | G52: 《综合知识》类 | H52: T362019071522613009743 | J52: 522131199605080053 | L52: 贵州省黔东南自治州 | M52: 榕江县 | N52: 009743 | P52: 男 | Q52: 1996.05.08 | R52: 贵州省赤水市 | S52: 汉族 | T52: 中国共产主义青年团团员 | U52: 四川农业大学 | W52: 法学 | X52: 大学本科毕业 | Y52: 学士 | AA52: 2018.06 | AB52: 贵州省遵义市汇川区洗马路街道 | AC52: 是 | AD52: 贵州省遵义市汇川区洗马路街道 | AE52: 无 | AF52: 其他（临时工、未就业人员等） | AG52: 贵州省汇川区 | AH52: 无 | AI52: 是 | AJ52: 18275683474 | AK52: 18275683474 | AM52: 13595274400 | AN52: 榕江县综治服务中心 | AO52: 13012管理岗位 | AP52: 2011年9月—2014年6月，在遵义市第一高级中学上学。 2014年9月—2018年6月，在四川农业大学上学。 2018年6月—2019年7月，待业。 | AR52: 1 | AS52: 01 | AT52: 03 | AV52: 21 | AW52: 3 | AX52: 1 | AY52: 05 | AZ52: 1 | BA52: 126130914 | BB52: 126130914012 | BC52: 362019071522613009743 | BE52: 80.3 | BF52: =BE52*0.5 -> 40.15 | BG52: 80 | BH52: =BG52*0.5 -> 40.00 | BI52: =RANK(BE52,$BE$52:$BE$57) -> 3 | BJ52: 入围资格复审 | BK52: 2019年8月－9日 | BL52: 合格 | BP52: =BF52+BH52 -> 80.15 | BQ52: =RANK(BP52,$BP$52:$BP$57) -> 1 | BR52: 入围体检 | BS52: 2019-09-08
B53: 1320190217 | D53: 20 | E53: 彭子先 | F53: 管理岗位 | G53: 《综合知识》类 | H53: T362019071522613054497 | J53: 522627199305203616 | L53: 贵州省黔东南自治州 | M53: 榕江县 | N53: 054497 | P53: 男 | Q53: 1993.05.20 | R53: 贵州省天柱县 | S53: 苗族 | T53: 中国共产主义青年团团员 | U53: 贵州大学科技学院 | W53: 法学 | X53: 大学本科毕业 | Y53: 学士 | AA53: 2016.07 | AB53: 贵州省天柱县竹林乡尧田村第六组 | AC53: 是 | AD53: 贵州省天柱县竹林乡尧田村 | AE53: 无 | AF53: 其他（临时工、未就业人员等） | AG53: 贵州省天柱县 | AH53: 2016年6月取得初中历史教师资格证书 | AI53: 是 | AJ53: 15761695570 | AK53: 15761695570 | AM53: 15068224156 | AN53: 榕江县综治服务中心 | AO53: 13012管理岗位 | AP53: 2009年9月-2012年7月就读贵州省天柱县第二中学； 2012年9月-2016年7月就读贵州大学科技学院； 2016年7月至今待业。 | AR53: 1 | AS53: 06 | AT53: 03 | AV53: 21 | AW53: 3 | AX53: 1 | AY53: 05 | AZ53: 1 | BA53: 126130914 | BB53: 126130914012 | BC53: 362019071522613054497 | BE53: 82.7 | BF53: 41.35 | BG53: 77.33 | BH53: 38.67 | BI53: 1 | BJ53: 入围资格复审 | BK53: 2019年8月－9日 | BL53: 合格 | BP53: 80.02 | BQ53: 2 | BR53: 入围体检 | BS53: 2019-09-08
B54: 1320190218 | D54: 21 | E54: 吴江林 | F54: 管理岗位 | G54: 《综合知识》类 | H54: T362019071522613067568 | J54: 522632199205300014 | L54: 贵州省黔东南自治州 | M54: 榕江县 | N54: 067568 | P54: 男 | Q54: 1992.05.30 | R54: 贵州省榕江县 | S54: 汉族 | T54: 群众 | U54: 西南大学 | W54: 法学 | X54: 大学本科毕业 | Y54: 无 | AA54: 2019.01 | AB54: 贵州省榕江县古州镇 | AC54: 否 | AD54: 贵州省榕江县古州镇场坝中路48-3号 | AE54: 榕江县总工会 | AF54: 其他（临时工、未就业人员等） | AG54: 贵州省榕江县 | AH54: 无 | AI54: 是 | AJ54: 18785579601 | AK54: 6622042 | AM54: 15086202896 | AN54: 榕江县综治服务中心 | AO54: 13012管理岗位 | AP54: 2007年9月-2011年6月就读于榕江县第一中学 2011年9月-2014年7月就读于青岛职业技术学院 2014年7月-2015年3月在家待业 2015年4月至今在榕江县总工会担任工会社会工作者（临聘） | AR54: 1 | AS54: 01 | AT54: 13 | AV54: 21 | AW54: 4 | AX54: 2 | AY54: 05 | AZ54: 1 | BA54: 126130914 | BB54: 126130914012 | BC54: 362019071522613067568 | BE54: 80.25 | BF54: 40.13 | BG54: 78.33 | BH54: 39.17 | BI54: 4 | BJ54: 入围资格复审 | BK54: 2019年8月－9日 | BL54: 合格 | BP54: 79.29 | BQ54: 3
B55: 1320190219 | D55: 22 | E55: 王颖 | F55: 管理岗位 | G55: 《综合知识》类 | H55: T362019071522613071837 | J55: 52263219971212158X | L55: 贵州省黔东南自治州 | M55: 榕江县 | N55: 071837 | P55: 女 | Q55: 1997.12.12 | R55: 贵州省榕江县 | S55: 侗族 | T55: 中国共产主义青年团团员 | U55: 贵州民族大学 | W55: 法学 | X55: 大学本科毕业 | Y55: 学士 | AA55: 2019.07 | AB55: 贵州省榕江县忠诚镇 | AC55: 是 | AD55: 贵州省榕江县忠诚镇 | AE55: 无 | AF55: 其他（临时工、未就业人员等） | AG55: 贵州省榕江县 | AH55: 无 | AI55: 是 | AJ55: 18798543091 | AK55: 18744824737 | AM55: 18485549930 | AN55: 榕江县综治服务中心 | AO55: 13012管理岗位 | AP55: 2012年9月至2015年6月就读于榕江县第一中学 2015年9月至2019年7月就读于贵州民族大学 | AR55: 2 | AS55: 12 | AT55: 03 | AV55: 21 | AW55: 3 | AX55: 1 | AY55: 05 | AZ55: 1 | BA55: 126130914 | BB55: 126130914012 | BC55: 362019071522613071837 | BE55: 80.65 | BF55: 40.33 | BG55: 77.33 | BH55: 38.67 | BI55: 2 | BJ55: 入围资格复审 | BK55: 2019年8月－9日 | BL55: 合格 | BP55: 78.99 | BQ55: 4
B56: 1320190220 | D56: 23 | E56: 陆益寿 | F56: 管理岗位 | G56: 《综合知识》类 | H56: T362019071522613013356 | J56: 522732199606061814 | L56: 贵州省黔东南自治州 | M56: 榕江县 | N56: 013356 | P56: 男 | Q56: 1996.06.06 | R56: 贵州三都县 | S56: 水族 | T56: 群众 | U56: 贵州师范大学 | W56: 法学 | X56: 大学本科毕业 | Y56: 学士 | AA56: 2019.06 | AB56: 贵州省三都水族自治县中和镇 | AC56: 是 | AD56: 贵州省三都水族自治县三合镇深圳路鹏城希望学校 | AE56: 无 | AF56: 其他（临时工、未就业人员等） | AG56: 贵州省三都县 | AH56: 2019年取得高中历史教师资格证书 | AI56: 是 | AJ56: 18300851141 | AK56: 18185957807 | AM56: 13310749399 | AN56: 榕江县综治服务中心 | AO56: 13012管理岗位 | AP56: 2012年9月-2015年6月在贵州省三都水族自治县民族中学上学 2015年9月-2019年6月年在贵州省贵阳市贵州师范大学上学 | AR56: 1 | AS56: 25 | AT56: 13 | AV56: 21 | AW56: 3 | AX56: 1 | AY56: 05 | AZ56: 1 | BA56: 126130914 | BB56: 126130914012 | BC56: 362019071522613013356 | BE56: 79.9 | BF56: 39.95 | BG56: 73.33 | BH56: 36.67 | BI56: 6 | BJ56: 入围资格复审 | BK56: 2019年8月－9日 | BL56: 合格 | BP56: 76.62 | BQ56: 5
B57: 1320190221 | D57: 24 | E57: 陈磊 | F57: 管理岗位 | G57: 《综合知识》类 | H57: T362019071522613037715 | J57: 52212619950915359X | L57: 贵州省黔东南自治州 | M57: 榕江县 | N57: 037715 | P57: 男 | Q57: 1995.09.15 | R57: 贵州省遵义市务川县 | S57: 苗族 | T57: 中国共产主义青年团团员 | U57: 天津科技大学 | W57: 法学双学位 | X57: 大学本科毕业 | Y57: 学士 | AA57: 2019.06 | AB57: 贵州省务川仡佬族苗族自治县泥高乡竹园村学堂堡组 | AC57: 是 | AD57: 贵州省遵义市务川县泥高乡学堂堡组 | AE57: 无 | AF57: 其他（临时工、未就业人员等） | AG57: 贵州省遵义市务川县 | AH57: 2017年9月取得计算机二级证书 2018年5月取得普通话证书 | AI57: 是 | AJ57: 13672186275 | AK57: 13672186275 | AM57: 14786193277 | AN57: 榕江县综治服务中心 | AO57: 13012管理岗位 | AP57: 2012年9月—2015年6月在贵州省务川中学高中学习； 2015年9月—2019年6月在天津市滨海新区天津科技大学法政学院行政管理文秘专业及辅修法学专业进行大学学习； 2019年7月—至今在家待业 | AR57: 1 | AS57: 06 | AT57: 03 | AV57: 21 | AW57: 3 | AX57: 1 | AY57: 05 | AZ57: 1 | BA57: 126130914 | BB57: 126130914012 | BC57: 362019071522613037715 | BE57: 80.05 | BF57: 40.03 | BG57: 66 | BH57: 33.00 | BI57: 5 | BJ57: 入围资格复审 | BK57: 2019年8月－9日 | BL57: 合格 | BP57: 73.03 | BQ57: 6
B58: 1320190222 | D58: 25 | E58: 杨云 | F58: 管理岗位 | G58: 《综合知识》类 | H58: T362019071522613064630 | J58: 52262619930826002X | L58: 贵州省黔东南自治州 | M58: 榕江县 | N58: 064630 | P58: 女 | Q58: 1993.08.26 | R58: 贵州省岑巩县 | S58: 侗族 | T58: 中国共产主义青年团团员 | U58: 凯里学院 | W58: 农林经济管理（职教师资方向） | X58: 大学本科毕业 | Y58: 学士 | AA58: 2017.07 | AB58: 贵州省岑巩县思阳镇 | AC58: 是 | AD58: 贵州省岑巩县思阳镇瓦窑村冲档组 | AE58: 榕江县两汪乡人民政府（2017年三支一扶人员在岗，单位同意报考） | AF58: 其他（临时工、未就业人员等） | AG58: 贵州省岑巩县 | AH58: 2017年6月中等职业学校教师资格证 2018年6月小学语文教师资格证 | AI58: 是 | AJ58: 18708555116 | AK58: 18708555116 | AM58: 15185776062 | AN58: 榕江县栽麻镇扶贫工作站 | AO58: 13119管理岗位 | AP58: 2009.09-2013.06贵州省岑巩县中学学习 2013.09-2017.07贵州省凯里学院农林经济管理（职教师资方向）本科学习 2017.09-至今工作于贵州省榕江县两汪乡人民政府（扶贫工作站） | AR58: 2 | AS58: 12 | AT58: 03 | AV58: 21 | AW58: 3 | AX58: 1 | AY58: 05 | AZ58: 1 | BA58: 126130988 | BB58: 126130988119 | BC58: 362019071522613064630 | BE58: 71.35 | BF58: 35.68 | BG58: 82 | BH58: 41.00 | BI58: =RANK(BE58,$BE$58:$BE$60) -> 1 | BJ58: 入围资格复审 | BK58: 2019年8月－9日 | BL58: 合格 | BP58: 76.68 | BQ58: =RANK(BP58,$BP$58:$BP$60) -> 1 | BR58: 入围体检 | BS58: 2019-09-08
B59: 1320190223 | D59: 26 | E59: 罗香琴 | F59: 管理岗位 | G59: 《综合知识》类 | H59: T362019071522613078718 | J59: 52270119940601682X | L59: 贵州省黔东南自治州 | M59: 榕江县 | N59: 078718 | P59: 女 | Q59: 1994.06.01 | R59: 贵州省都匀市 | S59: 布依族 | T59: 群众 | U59: 贵州工业职业技术学院 | W59: 建筑装饰工程技术 | X59: 大学专科毕业 | Y59: 无 | AA59: 2016.07 | AB59: 贵州省都匀市摆忙乡 | AC59: 是 | AD59: 贵州省都匀市摆忙乡摆忙村 | AE59: 在家待业 | AF59: 其他（临时工、未就业人员等） | AG59: 贵州省都匀市 | AH59: 无 | AI59: 是 | AJ59: 15761653460 | AK59: 15761653460 | AM59: 15286234112 | AN59: 榕江县栽麻镇扶贫工作站 | AO59: 13119管理岗位 | AP59: 2007.09-2010.07贵州省都匀市民族中学；2010.09-20.13.07贵州省都匀市民族中学；2013.09-2016.07就读于贵州工业职业技术学院；2016.8-2018.08参加国家级西部计划服务于榕江县栽麻镇人民政府；2018.08至今在家待业。 | AR59: 2 | AS59: 09 | AT59: 13 | AV59: 31 | AW59: 4 | AX59: 1 | AY59: 05 | AZ59: 1 | BA59: 126130988 | BB59: 126130988119 | BC59: 362019071522613078718 | BE59: 65.15 | BF59: 32.58 | BG59: 68 | BH59: 34.00 | BI59: =RANK(BE59,$BE$58:$BE$60) -> 2 | BJ59: 入围资格复审 | BK59: 2019年8月－9日 | BL59: 合格 | BP59: 66.58 | BQ59: =RANK(BP59,$BP$58:$BP$60) -> 2
B60: 1320190224 | D60: 27 | E60: 张蓉 | F60: 管理岗位 | G60: 《综合知识》类 | H60: T362019071522613065128 | J60: 522630199009150343 | L60: 贵州省黔东南自治州 | M60: 榕江县 | N60: 065128 | P60: 女 | Q60: 1990.09.15 | R60: 贵州台江 | S60: 苗族 | T60: 群众 | U60: 凯里学院 | W60: 生物教育 | X60: 大学专科毕业 | Y60: 无 | AA60: 2010.07 | AB60: 贵州省台江县施洞镇施洞大街1号 | AC60: 是 | AD60: 贵州省台江县施洞镇施洞大街1号 | AE60: 无 | AF60: 其他（临时工、未就业人员等） | AG60: 贵州省台江县 | AH60: 2010年7月取得初中生物教师资格证书 | AI60: 是 | AJ60: 15870254280 | AK60: 08555321488 | AM60: 13984459069 | AN60: 榕江县栽麻镇扶贫工作站 | AO60: 13119管理岗位 | AP60: 2004年9月-2007年7月就读于台江民中 2007年9月-2010年7月就读于凯里学院 2010年9月-2012年7月在家待业 2012年8月-2015年8月当西部计划志愿者，服务于榕江县忠诚镇人民政府 2015年9月至今待业 | AR60: 2 | AS60: 06 | AT60: 13 | AV60: 31 | AW60: 4 | AX60: 1 | AY60: 05 | AZ60: 1 | BA60: 126130988 | BB60: 126130988119 | BC60: 362019071522613065128 | BE60: 62.35 | BF60: 31.18 | BG60: 68 | BH60: 34.00 | BI60: =RANK(BE60,$BE$58:$BE$60) -> 3 | BJ60: 入围资格复审 | BK60: 2019年8月－9日 | BL60: 合格 | BP60: 65.18 | BQ60: 3
B61: 1320190225 | D61: 28 | E61: 张胜武 | F61: 管理岗位 | G61: 《综合知识》类 | H61: T362019071522613075899 | J61: 522422199612126216 | L61: 贵州省黔东南自治州 | M61: 榕江县 | N61: 075899 | P61: 男 | Q61: 1996.12.12 | R61: 贵州省毕节市 | S61: 蒙古族 | T61: 中国共产主义青年团团员 | U61: 西北民族大学 | W61: 无机非金属材料工程专业 | X61: 大学本科毕业 | Y61: 学士 | AA61: 2019.06 | AB61: 贵州省大方县瓢井镇北街三组 | AC61: 是 | AD61: 贵州省大方县瓢井镇北街三组 | AE61: 无 | AF61: 其他（临时工、未就业人员等） | AG61: 贵州省大方县 | AH61: 无 | AI61: 是 | AJ61: 13679426951 | AK61: 13679426951 | AM61: 18285792453 | AN61: 榕江县综治服务中心 | AO61: 13013管理岗位 | AP61: 2012年9月-2015年6月就读于贵州省大方县第一中学 2015年9月-2019年6月就读于西北民族大学 2019年7月至今待业 | AR61: 1 | AS61: 02 | AT61: 03 | AV61: 21 | AW61: 3 | AX61: 1 | AY61: 05 | AZ61: 1 | BA61: 126130914 | BB61: 126130914013 | BC61: 362019071522613075899 | BE61: 78.6 | BF61: =BE61*0.5 -> 39.30 | BG61: 84.67 | BH61: =BG61*0.5 -> 42.34 | BI61: =RANK(BE61,$BE$61:$BE$63) -> 3 | BJ61: 入围资格复审 | BK61: 2019年8月－9日 | BL61: 合格 | BP61: =BF61+BH61 -> 81.64 | BQ61: =RANK(BP61,$BP$61:$BP$63) -> 1 | BR61: 入围体检 | BS61: 2019-09-08
B62: 1320190226 | D62: 29 | E62: 周祥宏 | F62: 管理岗位 | G62: 《综合知识》类 | H62: T362019071522613055741 | J62: 522701199311291618 | L62: 贵州省黔东南自治州 | M62: 榕江县 | N62: 055741 | P62: 男 | Q62: 1993.11.29 | R62: 贵州省都匀市 | S62: 布依族 | T62: 群众 | U62: 贵阳学院 | W62: 制药工程 | X62: 大学本科毕业 | Y62: 学士 | AA62: 2017.07 | AB62: 贵州省都匀市匀东镇 | AC62: 是 | AD62: 贵州省都匀市匀东镇附城村九组2号 | AE62: 无 | AF62: 其他（临时工、未就业人员等） | AG62: 贵州省都匀市 | AH62: 无 | AI62: 是 | AJ62: 18300888127 | AK62: 18300888127 | AM62: 18798238317 | AN62: 榕江县综治服务中心 | AO62: 13013管理岗位 | AP62: 2009.9-2012.7都匀市民族中学（高）；2012.9-2015.7贵阳学院，生物制药技术（专）；2015.9-2017.7贵阳学院，制药工程（本）；2017.10-2018.3贵州益佰制药；2018.11-2019.2贵阳北站地铁站辅警；其他时间为待业 | AR62: 1 | AS62: 09 | AT62: 13 | AV62: 21 | AW62: 3 | AX62: 1 | AY62: 05 | AZ62: 1 | BA62: 126130914 | BB62: 126130914013 | BC62: 362019071522613055741 | BE62: 79.1 | BF62: 39.55 | BG62: 82.67 | BH62: 41.34 | BI62: =RANK(BE62,$BE$61:$BE$63) -> 1 | BJ62: 入围资格复审 | BK62: 2019年8月－9日 | BL62: 合格 | BP62: 80.89 | BQ62: =RANK(BP62,$BP$61:$BP$63) -> 2
B63: 1320190227 | D63: 30 | E63: 江远明 | F63: 管理岗位 | G63: 《综合知识》类 | H63: T362019071522613047869 | J63: 522427199209023411 | L63: 贵州省黔东南自治州 | M63: 榕江县 | N63: 047869 | P63: 男 | Q63: 1992.09.02 | R63: 贵州省威宁县 | S63: 汉族 | T63: 群众 | U63: 贵州大学 | W63: 机械设计制造及其自动化 | X63: 大学本科毕业 | Y63: 学士 | AA63: 2017.07 | AB63: 贵州省威宁彝族回族苗族自治县哲觉镇 | AC63: 是 | AD63: 贵州省威宁彝族回族苗族自治县哲觉镇大桥村大桥组 | AE63: 待业 | AF63: 其他（临时工、未就业人员等） | AG63: 贵州省威宁县 | AH63: 2014年取得CET—4国家线合格成绩单 | AI63: 是 | AJ63: 15180712917 | AK63: 15180712917 | AM63: 13885726141 | AN63: 榕江县综治服务中心 | AO63: 13013管理岗位 | AP63: 高中：2010年09月-2013年07月就读于威宁民族中学。 大学：2013年09月-2017年07月就读于贵州大学机械工程学院。 工作经历：2017年07月-2018年09月工作于富士康科技集团。2018年10月至今待业。 | AR63: 1 | AS63: 01 | AT63: 13 | AV63: 21 | AW63: 3 | AX63: 1 | AY63: 05 | AZ63: 1 | BA63: 126130914 | BB63: 126130914013 | BC63: 362019071522613047869 | BE63: 78.75 | BF63: 39.38 | BG63: 78.33 | BH63: 39.17 | BI63: =RANK(BE63,$BE$61:$BE$63) -> 2 | BJ63: 入围资格复审 | BK63: 2019年8月－9日 | BL63: 合格 | BP63: 78.54 | BQ63: =RANK(BP63,$BP$61:$BP$63) -> 3
B64: 1320190228 | D64: 1 | E64: 杨翠霞 | F64: 管理岗位 | G64: 《综合知识》类 | H64: T362019071522613083962 | J64: 522631199604142563 | L64: 贵州省黔东南自治州 | M64: 榕江县 | N64: 083962 | P64: 女 | Q64: 1996.04.14 | R64: 贵州省黎平县 | S64: 侗族 | T64: 群众 | U64: 黔东南民族职业技术学院 | W64: 水利水电工程管理 | X64: 大学专科毕业 | Y64: 无 | AA64: 2018.07 | AB64: 贵州省黎平县罗里乡 | AC64: 是 | AD64: 贵州省黎平县德凤镇构洞村十一组 | AE64: 贵州黎平城乡建设有限公司 | AF64: 其他（临时工、未就业人员等） | AG64: 贵州省黎平县 | AH64: 无 | AI64: 是 | AJ64: 15185746461 | AK64: 15185746461 | AM64: 15286363697 | AN64: 榕江县移民服务中心 | AO64: 13027管理岗位 | AP64: 2012年9月至2015年7月就读于黎平县第三中学； 2015年9月至2018年7月就读于黔东南民族职业技术学院； 2018年9月至2019年7月在贵州黎平城乡建设有限公司就业。 | AR64: 2 | AS64: 12 | AT64: 13 | AV64: 31 | AW64: 4 | AX64: 1 | AY64: 05 | AZ64: 1 | BA64: 126130922 | BB64: 126130922027 | BC64: 362019071522613083962 | BE64: 70.2 | BF64: 35.10 | BG64: 76.67 | BH64: 38.34 | BI64: =RANK(BE64,$BE$64:$BE$66) -> 1 | BJ64: 入围资格复审 | BK64: 2019年8月－9日 | BL64: 合格 | BP64: 73.44 | BQ64: =RANK(BP64,$BP$64:$BP$66) -> 1 | BR64: 入围体检 | BS64: 2019-09-08
B65: 1320190229 | D65: 2 | E65: 吴丽英 | F65: 管理岗位 | G65: 《综合知识》类 | H65: T362019071522613059960 | J65: 522631199505213426 | L65: 贵州省黔东南自治州 | M65: 榕江县 | N65: 059960 | P65: 女 | Q65: 1995.05.21 | R65: 贵州省黎平县 | S65: 侗族 | T65: 群众 | U65: 黔东南民族职业技术学院 | W65: 水利水电工程管理 | X65: 大学专科毕业 | Y65: 无 | AA65: 2017.07 | AB65: 贵州省黎平县茅贡乡地扪村五组 | AC65: 是 | AD65: 贵州省黎平县茅贡乡地扪村五组 | AE65: 无 | AF65: 其他（临时工、未就业人员等） | AG65: 贵州省黎平县 | AH65: 无 | AI65: 是 | AJ65: 18744828237 | AK65: 18744828237 | AM65: 13595578638 | AN65: 榕江县移民服务中心 | AO65: 13027管理岗位 | AP65: 2011.09-2014.07就读于黎平县第一民族中学；2014.09-2017.07就读于黔东南民族职业技术学院建筑系水利水电工程管理专业大专学习（期间参加成人自学考试，取得贵州大学工程管理专业本科学历）；2017.08至今在家待业 | AR65: 2 | AS65: 12 | AT65: 13 | AV65: 31 | AW65: 4 | AX65: 1 | AY65: 05 | AZ65: 1 | BA65: 126130922 | BB65: 126130922027 | BC65: 362019071522613059960 | BE65: 60.45 | BF65: 30.23 | BG65: 73 | BH65: 36.50 | BI65: =RANK(BE65,$BE$64:$BE$66) -> 3 | BJ65: 入围资格复审 | BK65: 2019年8月－9日 | BL65: 合格 | BP65: 66.73 | BQ65: =RANK(BP65,$BP$64:$BP$66) -> 2
B66: 1320190230 | D66: 3 | E66: 蔡涛 | F66: 管理岗位 | G66: 《综合知识》类 | H66: T362019071522601033451 | J66: 52242719970720141X | L66: 贵州省黔东南自治州 | M66: 榕江县 | N66: 033451 | P66: 男 | Q66: 1997.07.20 | R66: 贵州省威宁县 | S66: 汉族 | T66: 中国共产主义青年团团员 | U66: 贵州建设职业技术学院 | W66: 水利水电工程技术 | X66: 大学专科毕业 | Y66: 无 | AA66: 2019.07 | AB66: 贵州省威宁县黑石头镇 | AC66: 是 | AD66: 贵州省威宁县黑石头镇吉友村范家包包组 | AE66: 无 | AF66: 其他（临时工、未就业人员等） | AG66: 贵州省威宁县 | AH66: 无 | AI66: 是 | AJ66: 18396931648 | AK66: 18396931648 | AM66: 15974950503 | AN66: 榕江县移民服务中心 | AO66: 13027管理岗位 | AP66: 本人自2013年9月至2016年6月毕业于威宁县第四中学，自2016年月至2019年7月毕业于贵州建设职业技术学院，在校期间积极参加学校组织的各项活动，曾荣获贵州建设职业技术学院奖学金及各类奖项。 | AR66: 1 | AS66: 01 | AT66: 03 | AV66: 31 | AW66: 4 | AX66: 1 | AY66: 05 | AZ66: 1 | BA66: 126130922 | BB66: 126130922027 | BC66: 362019071522601033451 | BE66: 65.8 | BF66: 32.90 | BG66: 66 | BH66: 33.00 | BI66: =RANK(BE66,$BE$64:$BE$66) -> 2 | BJ66: 入围资格复审 | BK66: 2019年8月－9日 | BL66: 合格 | BP66: 65.90 | BQ66: =RANK(BP66,$BP$64:$BP$66) -> 3
B67: 1320190231 | D67: 4 | E67: 夏婷 | F67: 管理岗位 | G67: 《综合知识》类 | H67: T362019071522613040486 | J67: 522632199407030024 | L67: 贵州省黔东南自治州 | M67: 榕江县 | N67: 040486 | P67: 女 | Q67: 1994.07.03 | R67: 长沙市市辖区 | S67: 侗族 | T67: 中国共产主义青年团团员 | U67: 天津外国语大学 | W67: 信息管理与信息系统 | X67: 大学本科毕业 | Y67: 学士 | AA67: 2017.06 | AB67: 贵州省榕江县 | AC67: 是 | AD67: 贵州省榕江县古州镇沿城路52号 | AE67: 无 | AF67: 其他（临时工、未就业人员等） | AG67: 贵州省榕江县 | AH67: 无 | AI67: 是 | AJ67: 15620527921 | AK67: 无 | AM67: 18084528776 | AN67: 榕江县普查中心 | AO67: 13014管理岗位 | AP67: 2010年9月至2013年6月就读于贵州省清镇市第一中学； 2013年9月至2017年6月就读于天津外国语大学； 2017年9月至2018年3月就职于深圳市星世纪影视文化传媒有限公司； 2018年3月至今，待业在家 | AR67: 2 | AS67: 12 | AT67: 03 | AV67: 21 | AW67: 3 | AX67: 1 | AY67: 05 | AZ67: 1 | BA67: 126130915 | BB67: 126130915014 | BC67: 362019071522613040486 | BE67: 84.95 | BF67: 42.48 | BG67: 80.67 | BH67: 40.34 | BI67: =RANK(BE67,$BE$67:$BE$69) -> 1 | BJ67: 入围资格复审 | BK67: 2019年8月－9日 | BL67: 合格 | BP67: 82.81 | BQ67: =RANK(BP67,$BP$67:$BP$69) -> 1 | BR67: 入围体检 | BS67: 2019-09-08
B68: 1320190232 | D68: 5 | E68: 石庆幸 | F68: 管理岗位 | G68: 《综合知识》类 | H68: T362019071522613001794 | J68: 522632199403097811 | L68: 贵州省黔东南自治州 | M68: 榕江县 | N68: 001794 | P68: 男 | Q68: 1994.03.09 | R68: 贵州省榕江县 | S68: 侗族 | T68: 群众 | U68: 南通大学 | W68: 信息与计算科学 | X68: 大学本科毕业 | Y68: 无 | AA68: 2017.07 | AB68: 贵州省榕江县朗洞镇 | AC68: 是 | AD68: 贵州省榕江县朗洞镇色同村二组 | AE68: 无 | AF68: 其他（临时工、未就业人员等） | AG68: 贵州省榕江县 | AH68: 无 | AI68: 是 | AJ68: 18362158606 | AK68: 18362158606 | AM68: 13595536110 | AN68: 榕江县普查中心 | AO68: 13014管理岗位 | AP68: 2009.09-2012.07贵州省榕江一中 2012.09-2017.07江苏省南通大学 2017.07-2017.11北京凯通物资有限公司 2017.11-2018.06待业 2018.06-2018.11黔东南通信服务有限公司 2018.11-2019.07待业 | AR68: 1 | AS68: 12 | AT68: 13 | AV68: 21 | AW68: 4 | AX68: 1 | AY68: 05 | AZ68: 1 | BA68: 126130915 | BB68: 126130915014 | BC68: 362019071522613001794 | BE68: 82.5 | BF68: 41.25 | BG68: 76.67 | BH68: 38.34 | BI68: =RANK(BE68,$BE$67:$BE$69) -> 2 | BJ68: 入围资格复审 | BK68: 2019年8月－9日 | BL68: 合格 | BP68: 79.59 | BQ68: =RANK(BP68,$BP$67:$BP$69) -> 2
B69: 1320190233 | D69: 6 | E69: 王发斌 | F69: 管理岗位 | G69: 《综合知识》类 | H69: T362019071522613067873 | J69: 522632199502103113 | L69: 贵州省黔东南自治州 | M69: 榕江县 | N69: 067873 | P69: 男 | Q69: 1995.02 | R69: 贵州省榕江县 | S69: 苗族 | T69: 群众 | U69: 北部湾大学 | W69: 计算机科学与技术 | X69: 大学本科毕业 | Y69: 学士 | AA69: 2019.07 | AB69: 贵州省榕江县三江乡 | AC69: 是 | AD69: 贵州省榕江县三江乡分从村二组 | AE69: 无 | AF69: 其他（临时工、未就业人员等） | AG69: 贵州省榕江县 | AH69: 无 | AI69: 是 | AJ69: 15677790167 | AK69: 15677790167 | AM69: 13985295985 | AN69: 榕江县普查中心 | AO69: 13014管理岗位 | AP69: 2007-2010年就读于贵州省凯里市赏朗中学 2010-2013年就读于贵州省榕江县第一中学 2013-2014年就读于贵州省榕江县实验高级中学 2014-2015年就读于贵州省凯里一中实验军校 2015-2019年就读于广西钦州市北部湾大学 | AR69: 1 | AS69: 06 | AT69: 13 | AV69: 21 | AW69: 3 | AX69: 1 | AY69: 05 | AZ69: 1 | BA69: 126130915 | BB69: 126130915014 | BC69: 362019071522613067873 | BE69: 76.2 | BF69: =BE69*0.5 -> 38.10 | BG69: 72.33 | BH69: =BG69*0.5 -> 36.17 | BI69: =RANK(BE69,$BE$67:$BE$69) -> 3 | BJ69: 入围资格复审 | BK69: 2019年8月－9日 | BL69: 合格 | BP69: =BF69+BH69 -> 74.27 | BQ69: 3
A70: 第三考场 | B70: 1320190301 | D70: 7 | E70: 代军 | F70: 专业技术岗位 | G70: 《综合知识》类 | H70: T362019071522613087077 | J70: 522131199206043415 | L70: 贵州省黔东南自治州 | M70: 榕江县 | N70: 087077 | P70: 男 | Q70: 1992.06.04 | R70: 贵州省赤水市 | S70: 汉族 | T70: 群众 | U70: 天津农学院 | W70: 植物保护 | X70: 大学本科毕业 | Y70: 学士 | AA70: 2015.07 | AB70: 贵州省赤水市丙安乡 | AC70: 是 | AD70: 贵州省赤水市丹霞金邸二栋二单元11-3 | AE70: 无 | AF70: 其他（临时工、未就业人员等） | AG70: 贵州省赤水市 | AH70: 无 | AI70: 是 | AJ70: 18089659782 | AK70: 18087659782 | AM70: 18188128694 | AN70: 榕江县森林灾害防治工作站 | AO70: 13029专业技术岗位 | AP70: 2008年9月-2011年7月就读于贵州省赤水市第一中学 2011年9月-2015年7月就读于天津农学院 2015年7月至今在企业上班 | AR70: 1 | AS70: 01 | AT70: 13 | AV70: 21 | AW70: 3 | AX70: 1 | AY70: 05 | AZ70: 1 | BA70: 126130924 | BB70: 126130924029 | BC70: 362019071522613087077 | BE70: 69.6 | BF70: 34.80 | BG70: 73.67 | BH70: 36.84 | BI70: =RANK(BE70,$BE$70:$BE$72) -> 1 | BJ70: 入围资格复审 | BK70: 2019年8月－9日 | BL70: 合格 | BP70: 71.64 | BQ70: =RANK(BP70,$BP$70:$BP$72) -> 1 | BR70: 入围体检 | BS70: 2019-09-08
B71: 1320190302 | D71: 8 | E71: 郑愿 | F71: 专业技术岗位 | G71: 《综合知识》类 | H71: T362019071522613063937 | J71: 522725199305224313 | L71: 贵州省黔东南自治州 | M71: 榕江县 | N71: 063937 | P71: 男 | Q71: 19930522 | R71: 贵州省瓮安县 | S71: 汉族 | T71: 群众 | U71: 贵阳职业技术学院 | W71: 园林技术 | X71: 大学专科毕业 | Y71: 无 | AA71: 201507 | AB71: 贵州省瓮安县天文镇 | AC71: 是 | AD71: 贵州省瓮安县天文镇高桩塘村艾薅坪组31号 | AE71: 无 | AF71: 其他（临时工、未就业人员等） | AG71: 贵州省瓮安县 | AH71: 无 | AI71: 是 | AJ71: 19985441930 | AK71: 无 | AM71: 18485375946 | AN71: 榕江县森林灾害防治工作站 | AO71: 13029专业技术岗位 | AP71: 2009.09-2012.07贵州省瓮安县草塘中学高中学习； 2012.07-2015.07贵阳职业技术学院大专学习； 2015.09-2018.12瓮安县鑫盛超市连锁有限公司工作； 2019.01-至今在家待业 | AR71: 1 | AS71: 01 | AT71: 13 | AV71: 31 | AW71: 4 | AX71: 1 | AY71: 05 | AZ71: 1 | BA71: 126130924 | BB71: 126130924029 | BC71: 362019071522613063937 | BE71: 66.15 | BF71: 33.08 | BG71: 69.67 | BH71: 34.84 | BI71: =RANK(BE71,$BE$70:$BE$72) -> 3 | BJ71: 入围资格复审 | BK71: 2019年8月－9日 | BL71: 合格 | BP71: 67.91 | BQ71: =RANK(BP71,$BP$70:$BP$72) -> 2
B72: 1320190303 | D72: 9 | E72: 罗本能 | F72: 专业技术岗位 | G72: 《综合知识》类 | H72: T362019071522613083237 | J72: 53302319950506351X | L72: 贵州省黔东南自治州 | M72: 榕江县 | N72: 083237 | P72: 男 | Q72: 1995.05.06 | R72: 云南省保山市腾冲市 | S72: 汉族 | T72: 中国共产主义青年团团员 | U72: 云南农业大学 | W72: 动植物检疫（植物检疫方向） | X72: 大学本科毕业 | Y72: 学士 | AA72: 2017.07 | AB72: 云南省保山市腾冲市芒棒镇 | AC72: 是 | AD72: 云南省腾冲市芒棒镇上营村委会汤家山村民小组23号 | AE72: 无 | AF72: 其他（临时工、未就业人员等） | AG72: 云南省保山市腾冲市 | AH72: 无 | AI72: 是 | AJ72: 18487127954 | AK72: 18487127954 | AM72: 15287522590 | AN72: 榕江县森林灾害防治工作站 | AO72: 13029专业技术岗位 | AP72: 2010年9月至2013年6月，就读于腾冲县第四中学； 2013年9月至2017年7月，就读于云南农业大学； 2017年10月至2019年2月，在保山市公安局隆阳分局蒲缥派出所做警务辅助人员。 | AR72: 1 | AS72: 01 | AT72: 03 | AV72: 21 | AW72: 3 | AX72: 1 | AY72: 05 | AZ72: 1 | BA72: 126130924 | BB72: 126130924029 | BC72: 362019071522613083237 | BE72: 69 | BF72: 34.50 | BG72: 61.67 | BH72: 30.84 | BI72: =RANK(BE72,$BE$70:$BE$72) -> 2 | BJ72: 入围资格复审 | BK72: 2019年8月－9日 | BL72: 合格 | BP72: 65.34 | BQ72: =RANK(BP72,$BP$70:$BP$72) -> 3
B73: 1320190304 | D73: 10 | E73: 王超 | F73: 管理岗位 | G73: 《综合知识》类 | H73: T362019071522613012522 | J73: 522428199308150033 | L73: 贵州省黔东南自治州 | M73: 榕江县 | N73: 012522 | P73: 男 | Q73: 1993.08.15 | R73: 贵州省赫章县 | S73: 汉族 | T73: 中国共产主义青年团团员 | U73: 遵义师范学院 | W73: 统计学 | X73: 大学本科毕业 | Y73: 无 | AA73: 2018.07 | AB73: 贵州省赫章县罗州乡 | AC73: 是 | AD73: 贵州省赫章县罗州乡民联村田坝组 | AE73: 无 | AF73: 其他（临时工、未就业人员等） | AG73: 贵州省赫章县 | AH73: 无 | AI73: 是 | AJ73: 18786196227 | AK73: 18786196227 | AM73: 18285103856 | AN73: 榕江县普查中心 | AO73: 13015管理岗位 | AP73: 2011.09-2014.07赫章县民族中学学习 2014.09-2018.07遵义师范学院数学学院学习 2018.07-2018.12在家待业 2018.12-2019.05广东汇海农牧科技集团 2019.05-至今在家待业 | AR73: 1 | AS73: 01 | AT73: 03 | AV73: 21 | AW73: 4 | AX73: 1 | AY73: 05 | AZ73: 1 | BA73: 126130915 | BB73: 126130915015 | BC73: 362019071522613012522 | BE73: 80.7 | BF73: 40.35 | BG73: 79.33 | BH73: 39.67 | BI73: =RANK(BE73,$BE$73:$BE$74) -> 1 | BJ73: 入围资格复审 | BK73: 2019年8月－9日 | BL73: 合格 | BP73: 80.02 | BQ73: =RANK(BP73,$BP$73:$BP$74) -> 1 | BR73: 入围体检 | BS73: 2019-09-08
B74: 1320190306 | D74: 12 | E74: 杨红 | F74: 管理岗位 | G74: 《综合知识》类 | H74: T362019071522613067440 | J74: 520221199301010612 | L74: 贵州省黔东南自治州 | M74: 榕江县 | N74: 067440 | P74: 男 | Q74: 1993.01.01 | R74: 贵州省水城县 | S74: 汉族 | T74: 群众 | U74: 兴义民族师范学院 | W74: 统计学 | X74: 大学本科毕业 | Y74: 学士 | AA74: 2016.07 | AB74: 贵州省水城县化乐乡迷达村青树子组 | AC74: 是 | AD74: 贵州省水城县化乐乡迷达村青树子组 | AE74: 无 | AF74: 其他（临时工、未就业人员等） | AG74: 贵州省六盘水市 | AH74: 无 | AI74: 是 | AJ74: 15519527871 | AK74: 无 | AM74: 王伟15599546566 | AN74: 榕江县普查中心 | AO74: 13015管理岗位 | AP74: 2009.09-2012.07六盘水市第三中学学习；2012.09-2016.07兴义民族师范学院数学系统计学专业本科学习；2016.07-2017.07在家待业；2017.07-2018.07水城县玉舍森林旅游开发有限公司物资部任职；2018.07-至今临时工。 | AR74: 1 | AS74: 01 | AT74: 13 | AV74: 21 | AW74: 3 | AX74: 1 | AY74: 05 | AZ74: 1 | BA74: 126130915 | BB74: 126130915015 | BC74: 362019071522613067440 | BE74: 80.25 | BF74: 40.13 | BG74: 77 | BH74: 38.50 | BI74: =RANK(BE74,$BE$73:$BE$74) -> 2 | BJ74: 入围资格复审 | BK74: 2019年8月－9日 | BL74: 合格 | BP74: 78.63 | BQ74: =RANK(BP74,$BP$73:$BP$74) -> 2
B75: 1320190307 | D75: 13 | E75: 杨冬琼 | F75: 管理岗位 | G75: 《综合知识》类 | H75: T362019071522613042519 | J75: 522632199108117066 | L75: 贵州省黔东南自治州 | M75: 榕江县 | N75: 042519 | P75: 女 | Q75: 1991.08.11 | R75: 贵州省榕江县 | S75: 侗族 | T75: 中国共产主义青年团团员 | U75: 西北民族大学 | W75: 新闻学 | X75: 大学本科毕业 | Y75: 学士 | AA75: 2014.07 | AB75: 贵州省榕江县平阳乡 | AC75: 是 | AD75: 贵州省榕江县平阳乡伍社村八组 | AE75: 无 | AF75: 其他（临时工、未就业人员等） | AG75: 贵州省榕江县 | AH75: 2015年10月取得小学语文教师资格证 | AI75: 是 | AJ75: 13595512734 | AK75: 13595512734 | AM75: 13595579603 | AN75: 榕江县应急救援中心 | AO75: 13038管理岗位 | AP75: 2007.8——2010.6榕江县一中 2010.9—2014.7西北民族大学 2014.9——2015.11凯里市学生托送中心 2016.3——2017.5福州市私人工作室 2017.6——2019.2榕江县平阳乡伍社村 2019.3——至今凯里市学生托送中心 | AR75: 2 | AS75: 12 | AT75: 03 | AV75: 21 | AW75: 3 | AX75: 1 | AY75: 05 | AZ75: 1 | BA75: 126130930 | BB75: 126130930038 | BC75: 362019071522613042519 | BE75: 77.3 | BF75: =BE75*0.5 -> 38.65 | BG75: 81.83 | BH75: =BG75*0.5 -> 40.92 | BI75: =RANK(BE75,$BE$75:$BE$77) -> 2 | BJ75: 入围资格复审 | BK75: 2019年8月－9日 | BL75: 合格 | BP75: =BF75+BH75 -> 79.57 | BQ75: =RANK(BP75,$BP$75:$BP$77) -> 1 | BR75: 入围体检 | BS75: 2019-09-08
B76: 1320190308 | D76: 14 | E76: 石远益 | F76: 管理岗位 | G76: 《综合知识》类 | H76: T362019071522613067346 | J76: 522632199205041614 | L76: 贵州省黔东南自治州 | M76: 榕江县 | N76: 067346 | P76: 男 | Q76: 19920504 | R76: 贵州省榕江县 | S76: 侗族 | T76: 群众 | U76: 贵阳学院 | W76: 汉语言文学 | X76: 大学本科毕业 | Y76: 学士 | AA76: 201707 | AB76: 贵州省榕江县忠诚镇俾堵村大寨组 | AC76: 是 | AD76: 贵州省榕江县忠诚镇俾堵村大寨组 | AE76: 无 | AF76: 其他（临时工、未就业人员等） | AG76: 贵州省榕江县 | AH76: 无 | AI76: 是 | AJ76: 13098558726 | AK76: 13098558726 | AM76: 13098558726 | AN76: 榕江县应急救援中心 | AO76: 13038管理岗位 | AP76: 2007.09－2012.07贵州省榕江县榕江一中；2012.09－2017.07贵阳学院；2017.07-至今待业 | AR76: 1 | AS76: 12 | AT76: 13 | AV76: 21 | AW76: 3 | AX76: 1 | AY76: 05 | AZ76: 1 | BA76: 126130930 | BB76: 126130930038 | BC76: 362019071522613067346 | BE76: 78.05 | BF76: 39.03 | BG76: 79.33 | BH76: 39.67 | BI76: =RANK(BE76,$BE$75:$BE$77) -> 1 | BJ76: 入围资格复审 | BK76: 2019年8月－9日 | BL76: 合格 | BP76: 78.69 | BQ76: =RANK(BP76,$BP$75:$BP$77) -> 2
B77: 1320190309 | D77: 15 | E77: 石庆炎 | F77: 管理岗位 | G77: 《综合知识》类 | H77: T362019071522613050685 | J77: 522632199309031613 | L77: 贵州省黔东南自治州 | M77: 榕江县 | N77: 050685 | P77: 男 | Q77: 1993.09.03 | R77: 贵州省榕江县 | S77: 侗族 | T77: 中国共产主义青年团团员 | U77: 贵州大学科技学院 | W77: 新闻学 | X77: 大学本科毕业 | Y77: 学士 | AA77: 2016.07 | AB77: 贵州省榕江县忠诚镇高王村二组 | AC77: 是 | AD77: 贵州省榕江县忠诚镇高王村二组 | AE77: 无 | AF77: 其他（临时工、未就业人员等） | AG77: 贵州省榕江县 | AH77: 无 | AI77: 是 | AJ77: 15761651660 | AK77: 15761651660 | AM77: 15008554653 | AN77: 榕江县应急救援中心 | AO77: 13038管理岗位 | AP77: 2009.09-2012.07就读于贵州省凯里市凯里学院附属中学学习；2012.09-2016.07就读贵州大学科技学院新闻学专业；2016.08-2016.10腾讯房产贵州站实习记者；2016.11-2019.03自主创业（婚庆行业）；2019.03-至今，待业。 | AR77: 1 | AS77: 12 | AT77: 03 | AV77: 21 | AW77: 3 | AX77: 1 | AY77: 05 | AZ77: 1 | BA77: 126130930 | BB77: 126130930038 | BC77: 362019071522613050685 | BE77: 77.15 | BF77: 38.58 | BG77: 73 | BH77: 36.50 | BI77: =RANK(BE77,$BE$75:$BE$77) -> 3 | BJ77: 入围资格复审 | BK77: 2019年8月－9日 | BL77: 合格 | BP77: 75.08 | BQ77: =RANK(BP77,$BP$75:$BP$77) -> 3
B78: 1320190310 | D78: 16 | E78: 牟连芬 | F78: 管理岗位 | G78: 《综合知识》类 | H78: T362019071522613025579 | J78: 522422199310087282 | L78: 贵州省黔东南自治州 | M78: 榕江县 | N78: 025579 | P78: 女 | Q78: 1993.10.08 | R78: 贵州榕江 | S78: 汉族 | T78: 中国共产主义青年团团员 | U78: 凯里学院 | W78: 视觉传达设计 | X78: 大学本科毕业 | Y78: 学士 | AA78: 2017.07 | AB78: 贵州省榕江县古州镇 | AC78: 是 | AD78: 贵州省榕江县车江乡一村308号江景名城5栋1单元1303室 | AE78: 未就业 | AF78: 其他（临时工、未就业人员等） | AG78: 贵州省凯里市 | AH78: 无 | AI78: 是 | AJ78: 18708552701 | AK78: 18708552701 | AM78: 18285528285 | AN78: 榕江县人民政府政务服务中心 | AO78: 13016管理岗位 | AP78: 2010年9月－－2013年7月，就读于贵州省大方县瓢井镇瓢井中学； 2013年9月－－2017年7月，就读于凯里学院艺术学院视觉传达设计专业； 2017年7月至今待业在家。 | AR78: 2 | AS78: 01 | AT78: 03 | AV78: 21 | AW78: 3 | AX78: 1 | AY78: 05 | AZ78: 1 | BA78: 126130916 | BB78: 126130916016 | BC78: 362019071522613025579 | BE78: 78 | BF78: 39.00 | BG78: 73.67 | BH78: 36.84 | BI78: =RANK(BE78,$BE$78:$BE$80) -> 1 | BJ78: 入围资格复审 | BK78: 2019年8月－9日 | BL78: 合格 | BP78: 75.84 | BQ78: =RANK(BP78,$BP$78:$BP$80) -> 1 | BR78: 入围体检 | BS78: 2019-09-08
B79: 1320190311 | D79: 17 | E79: 陶明福 | F79: 管理岗位 | G79: 《综合知识》类 | H79: T362019071522613083819 | J79: 522632199110133073 | L79: 贵州省黔东南自治州 | M79: 榕江县 | N79: 083819 | P79: 男 | Q79: 1991.10.13 | R79: 贵州省榕江县 | S79: 苗族 | T79: 中国共产主义青年团团员 | U79: 贵州师范大学求是学院 | W79: 艺术设计 | X79: 大学本科毕业 | Y79: 学士 | AA79: 2015.07 | AB79: 贵州省榕江县三江乡乔乌村三组 | AC79: 是 | AD79: 贵州省榕江县古州镇梨子园社区中央9号6#1-20-04 | AE79: 榕江县人力资源和社会保障局 | AF79: 其他（临时工、未就业人员等） | AG79: 贵州省榕江县 | AH79: 2015年6月取得高级中学美术教师资格证书 | AI79: 是 | AJ79: 18285125937 | AK79: 18285125937 | AM79: 18285530435 | AN79: 榕江县人民政府政务服务中心 | AO79: 13016管理岗位 | AP79: 2008.09—2011.07贵州省榕江县第一中学学习 2011.09—2015.07贵州师范大学求是学院艺术设计专业学习 2015.07—2018.11在家待业 2018.12—至今榕江县人力资源和社会保障局（社保局临聘工作员） | AR79: 1 | AS79: 06 | AT79: 03 | AV79: 21 | AW79: 3 | AX79: 1 | AY79: 05 | AZ79: 1 | BA79: 126130916 | BB79: 126130916016 | BC79: 362019071522613083819 | BE79: 75.2 | BF79: 37.60 | BG79: 74.5 | BH79: 37.25 | BI79: =RANK(BE79,$BE$78:$BE$80) -> 3 | BJ79: 递补入围资格复审 | BL79: 合格 | BP79: 74.85 | BQ79: =RANK(BP79,$BP$78:$BP$80) -> 2
B80: 1320190312 | D80: 18 | E80: 胡青 | F80: 管理岗位 | G80: 《综合知识》类 | H80: T362019071522613011953 | J80: 522632199005290018 | L80: 贵州省黔东南自治州 | M80: 榕江县 | N80: 011953 | P80: 男 | Q80: 1990.05.29 | R80: 贵州省榕江县 | S80: 汉族 | T80: 中国共产党党员 | U80: 湖南科技经贸职业学院 | W80: 计算机多媒体技术 | X80: 大学专科毕业 | Y80: 无 | AA80: 2014.07 | AB80: 贵州省榕江县古州镇 | AC80: 是 | AD80: 贵州省榕江县古州镇场坝西路2号 | AE80: 黔东南州东线爆破工程有限责任公司 | AF80: 其他（临时工、未就业人员等） | AG80: 贵州省榕江县 | AH80: 2017年8月取得爆炸作业人员许可证 | AI80: 是 | AJ80: 18185546080 | AK80: 18185546080 | AM80: 父亲13984452818 | AN80: 榕江县人民政府政务服务中心 | AO80: 13016管理岗位 | AP80: 2006.09-2009.07榕江县第一中学学习；2009.09-2014.07湖南科技经贸职业学院计算机系计算机多媒体专业大专学习；2014.11-至今黔东南州东线爆破工程有限责任公司担任安全员。 | AR80: 1 | AS80: 01 | AT80: 01 | AV80: 31 | AW80: 4 | AX80: 1 | AY80: 05 | AZ80: 1 | BA80: 126130916 | BB80: 126130916016 | BC80: 362019071522613011953 | BE80: 75.9 | BF80: 37.95 | BG80: 70.33 | BH80: 35.17 | BI80: =RANK(BE80,$BE$78:$BE$80) -> 2 | BJ80: 入围资格复审 | BK80: 2019年8月－9日 | BL80: 合格 | BP80: 73.12 | BQ80: =RANK(BP80,$BP$78:$BP$80) -> 3
B81: 1320190313 | D81: 19 | E81: 吴頔彬彬 | F81: 管理岗位 | G81: 《综合知识》类 | H81: T362019071522613046478 | J81: 522632199509010016 | L81: 贵州省黔东南自治州 | M81: 榕江县 | N81: 046478 | P81: 男 | Q81: 1995.09.01 | R81: 贵州省榕江县 | S81: 汉族 | T81: 群众 | U81: 黔东南民族职业技术学院 | W81: 建筑工程技术 | X81: 大学专科毕业 | Y81: 无 | AA81: 2017.07 | AB81: 贵州省榕江县古州镇五榕北路7号 | AC81: 是 | AD81: 贵州省黔东南州榕江县五榕北路7号 | AE81: 无 | AF81: 其他（临时工、未就业人员等） | AG81: 贵州省榕江县 | AH81: 无 | AI81: 是 | AJ81: 18685511033 | AK81: 0855-6626369 | AM81: 13885501990 | AN81: 榕江县文体社区服务中心 | AO81: 13018管理岗位 | AP81: 2010年9月-2013年7月就读于镇远中学 2013年9月-2017年7月就读于黔东南民族职业技术学院 2017年9月-至今待业 | AR81: 1 | AS81: 01 | AT81: 13 | AV81: 31 | AW81: 4 | AX81: 1 | AY81: 05 | AZ81: 1 | BA81: 126130917 | BB81: 126130917018 | BC81: 362019071522613046478 | BE81: 72.55 | BF81: 36.28 | BG81: 80.67 | BH81: 40.34 | BI81: =RANK(BE81,$BE$81:$BE$83) -> 3 | BJ81: 入围资格复审 | BK81: 2019年8月－9日 | BL81: 合格 | BP81: 76.61 | BQ81: =RANK(BP81,$BP$81:$BP$83) -> 1 | BR81: 入围体检 | BS81: 2019-09-08
B82: 1320190314 | D82: 20 | E82: 朱江红 | F82: 管理岗位 | G82: 《综合知识》类 | H82: T362019071522613074713 | J82: 532225199509100798 | L82: 贵州省黔东南自治州 | M82: 榕江县 | N82: 074713 | P82: 男 | Q82: 1995.09.10 | R82: 云南省曲靖市 | S82: 汉族 | T82: 中国共产主义青年团团员 | U82: 黑龙江建筑职业技术学院 | W82: 建筑工程技术 | X82: 大学专科毕业 | Y82: 无 | AA82: 2016.07 | AB82: 云南省曲靖市富源县大河镇 | AC82: 是 | AD82: 云南省曲靖市富源县大河镇白岩村委会老鹰坝村 | AE82: 无 | AF82: 其他（临时工、未就业人员等） | AG82: 云南省曲靖市 | AH82: 无 | AI82: 是 | AJ82: 18687479179 | AK82: 18687479179 | AM82: 18288485639 | AN82: 榕江县文体社区服务中心 | AO82: 13018管理岗位 | AP82: 2010.09-2013.07富源县胜境中学高中 2013.09-2016.07黑龙江建筑职业技术学院大学 2016.07-至今无业 | AR82: 1 | AS82: 01 | AT82: 03 | AV82: 31 | AW82: 4 | AX82: 1 | AY82: 05 | AZ82: 1 | BA82: 126130917 | BB82: 126130917018 | BC82: 362019071522613074713 | BE82: 73.65 | BF82: 36.83 | BG82: 75 | BH82: 37.50 | BI82: =RANK(BE82,$BE$81:$BE$83) -> 2 | BJ82: 入围资格复审 | BK82: 2019年8月－9日 | BL82: 合格 | BP82: 74.33 | BQ82: =RANK(BP82,$BP$81:$BP$83) -> 2
B83: 1320190315 | D83: 21 | E83: 林茂江 | F83: 管理岗位 | G83: 《综合知识》类 | H83: T362019071522613007344 | J83: 522632199411034319 | L83: 贵州省黔东南自治州 | M83: 榕江县 | N83: 007344 | P83: 男 | Q83: 1994.11.03 | R83: 贵州榕江 | S83: 瑶族 | T83: 中国共产主义青年团团员 | U83: 凯里学院 | W83: 建筑工程技术 | X83: 大学专科毕业 | Y83: 无 | AA83: 2016.07.01 | AB83: 贵州省榕江县八开乡八开乡居委 | AC83: 是 | AD83: 贵州省榕江县八开乡八开乡居委 | AE83: 无 | AF83: 其他（临时工、未就业人员等） | AG83: 贵州省榕江县 | AH83: 2017年9月取得土建施工质量员证书 2018年5月取得土建类专职安全生产管理员证书 2018年12月取得土建施工施工员证书 | AI83: 是 | AJ83: 18744814877 | AK83: 18744814877 | AM83: 15086229872 | AN83: 榕江县文体社区服务中心 | AO83: 13018管理岗位 | AP83: 2010.9-2013.6就读于黔东南州振华民族中学 2013.9-2016.7就读于贵州省凯里学院 2016.7-至今待业 | AR83: 1 | AS83: 13 | AT83: 03 | AV83: 31 | AW83: 4 | AX83: 1 | AY83: 05 | AZ83: 1 | BA83: 126130917 | BB83: 126130917018 | BC83: 362019071522613007344 | BE83: 74.6 | BF83: 37.30 | BG83: 69.33 | BH83: 34.67 | BI83: =RANK(BE83,$BE$81:$BE$83) -> 1 | BJ83: 入围资格复审 | BK83: 2019年8月－9日 | BL83: 合格 | BP83: 71.97 | BQ83: =RANK(BP83,$BP$81:$BP$83) -> 3
B84: 1320190316 | D84: 22 | E84: 杨应昌 | F84: 管理岗位 | G84: 《综合知识》类 | H84: T362019071522613046810 | J84: 52263219970512001X | L84: 贵州省黔东南自治州 | M84: 榕江县 | N84: 046810 | P84: 男 | Q84: 19970512 | R84: 贵州榕江 | S84: 侗族 | T84: 中国共产主义青年团团员 | U84: 湖北科技学院 | W84: 工商管理 | X84: 大学本科毕业 | Y84: 学士 | AA84: 2018.07 | AB84: 贵州省榕江县朗洞镇 | AC84: 是 | AD84: 贵州省榕江县朗洞镇宰岑村三组 | AE84: 中共榕江县委办公室 | AF84: 其他（临时工、未就业人员等） | AG84: 贵州省榕江县 | AH84: 2017年5月取得会计专业技术资格证书初级 | AI84: 是 | AJ84: 18585580218 | AK84: 15186903275 | AM84: 18786447071 | AN84: 榕江县文体社区服务中心 | AO84: 13017管理岗位 | AP84: 2008.09－－2011.06就读于朗洞中学 2011.09－－2014.06就读于榕江县第一中学 2014.09－－2018.07就读于湖北科技学院 2018.09－－至今在中共榕江县委办公室见习 | AR84: 1 | AS84: 12 | AT84: 03 | AV84: 21 | AW84: 3 | AX84: 1 | AY84: 05 | AZ84: 1 | BA84: 126130917 | BB84: 126130917017 | BC84: 362019071522613046810 | BE84: 87.6 | BF84: 43.80 | BG84: 85.67 | BH84: 42.84 | BI84: =RANK(BE84,$BE$84:$BE$86) -> 1 | BJ84: 入围资格复审 | BK84: 2019年8月－9日 | BL84: 合格 | BP84: 86.64 | BQ84: =RANK(BP84,$BP$84:$BP$86) -> 1 | BR84: 入围体检 | BS84: 2019-09-08
B85: 1320190317 | D85: 23 | E85: 吴方成 | F85: 管理岗位 | G85: 《综合知识》类 | H85: T362019071522613062355 | J85: 522632199405173312 | L85: 贵州省黔东南自治州 | M85: 榕江县 | N85: 062355 | P85: 男 | Q85: 1994.05.17 | R85: 贵州省榕江县 | S85: 侗族 | T85: 群众 | U85: 贵州大学 | W85: 矿物加工工程 | X85: 大学本科毕业 | Y85: 学士 | AA85: 2017.07 | AB85: 贵州省榕江县仁里乡 | AC85: 是 | AD85: 贵州省榕江县仁里乡仁吉村九组 | AE85: 无 | AF85: 其他（临时工、未就业人员等） | AG85: 贵州省榕江县 | AH85: 无 | AI85: 是 | AJ85: 15761634606 | AK85: 15761634606 | AM85: 吴正坤：13648556326 | AN85: 榕江县文体社区服务中心 | AO85: 13017管理岗位 | AP85: 2010年9月-2013年7月就读于黔东南州民族高级中学 2013年9月-2017年7月就读于贵州大学矿业学院 2017年7月至今在家待业 | AR85: 1 | AS85: 12 | AT85: 13 | AV85: 21 | AW85: 3 | AX85: 1 | AY85: 05 | AZ85: 1 | BA85: 126130917 | BB85: 126130917017 | BC85: 362019071522613062355 | BE85: 84.1 | BF85: 42.05 | BG85: 82.33 | BH85: 41.17 | BI85: =RANK(BE85,$BE$84:$BE$86) -> 2 | BJ85: 入围资格复审 | BK85: 2019年8月－9日 | BL85: 合格 | BP85: 83.22 | BQ85: =RANK(BP85,$BP$84:$BP$86) -> 2
B86: 1320190318 | D86: 24 | E86: 龙亮明 | F86: 管理岗位 | G86: 《综合知识》类 | H86: T362019071522613033981 | J86: 522632199002276835 | L86: 贵州省黔东南自治州 | M86: 榕江县 | N86: 033981 | P86: 男 | Q86: 1990.02.27 | R86: 贵州省榕江县 | S86: 苗族 | T86: 群众 | U86: 湖南汽车工程职业学院 | W86: 应用电子技术 | X86: 大学专科毕业 | Y86: 无 | AA86: 2015.06 | AB86: 贵州省榕江县两汪乡空申村二组 | AC86: 是 | AD86: 贵州省榕江县两汪乡空申村二组 | AE86: 无 | AF86: 其他（临时工、未就业人员等） | AG86: 贵州省榕江县 | AH86: 无 | AI86: 是 | AJ86: 15870226275 | AK86: 18785570436 | AM86: 15085204813 | AN86: 榕江县文体社区服务中心 | AO86: 13017管理岗位 | AP86: 2003.09-2007.07，就读于贵州省榕江县朗洞中学（初中）。 2007.09-2011.07，就读于贵州省凯里市州振华民族高级中学（高中，期间休学一年）。 2012.09-2015.06，就读于湖南汽车工程职业学院。 2015.06至今待业 | AR86: 1 | AS86: 06 | AT86: 13 | AV86: 31 | AW86: 4 | AX86: 1 | AY86: 05 | AZ86: 1 | BA86: 126130917 | BB86: 126130917017 | BC86: 362019071522613033981 | BE86: 78.85 | BF86: 39.43 | BG86: 83.33 | BH86: 41.67 | BI86: =RANK(BE86,$BE$84:$BE$86) -> 3 | BJ86: 入围资格复审 | BK86: 2019年8月－9日 | BL86: 合格 | BP86: 81.09 | BQ86: 3
B87: 1320190319 | E87: 吴文勇 | F87: 管理岗位 | G87: 《综合知识》类 | H87: T362019071522613002101 | J87: 522632199501042339 | L87: 贵州省黔东南自治州 | M87: 榕江县 | N87: 002101 | P87: 男 | Q87: 1995.01.04 | R87: 贵州省榕江县 | S87: 侗族 | T87: 中国共产主义青年团团员 | U87: 太原理工大学 | W87: 化学工程与工艺 | X87: 大学本科毕业 | Y87: 学士 | AA87: 2019.07 | AB87: 贵州省榕江县栽麻镇 | AC87: 是 | AD87: 贵州省榕江县栽麻镇归柳村二组 | AE87: 待业 | AF87: 其他（临时工、未就业人员等） | AG87: 贵州省榕江县 | AH87: 无 | AI87: 是 | AJ87: 15235136812 | AK87: 15235136812 | AM87: 18785568497 | AN87: 榕江县人民政府污染物减排办公室 | AO87: 13150管理岗位 | AP87: 2012年9月到2015年7月高中就读于榕江一中；2015年9月到2019年7月就读于太原理工大学，获工学学士学位。 | AR87: 1 | AS87: 12 | AT87: 03 | AV87: 21 | AW87: 3 | AX87: 1 | AY87: 05 | AZ87: 1 | BA87: 126131019 | BB87: 126131019150 | BC87: 362019071522613002101 | BE87: 81.05 | BF87: 40.53 | BG87: 84 | BH87: 42.00 | BI87: =RANK(BE87,$BE$87:$BE$89) -> 1 | BJ87: 入围资格复审 | BK87: 2019年8月－9日 | BL87: 合格 | BP87: 82.53 | BQ87: =RANK(BP87,$BP$87:$BP$89) -> 1 | BR87: 入围体检 | BS87: 2019-09-08
B88: 1320190320 | E88: 石秋思 | F88: 管理岗位 | G88: 《综合知识》类 | H88: T362019071522613018812 | J88: 522632199607190022 | L88: 贵州省黔东南自治州 | M88: 榕江县 | N88: 018812 | P88: 女 | Q88: 1996.07.19 | R88: 贵州省榕江县 | S88: 侗族 | T88: 中国共产主义青年团团员 | U88: 中南民族大学 | W88: 环境工程 | X88: 大学本科毕业 | Y88: 学士 | AA88: 2018.06 | AB88: 贵州省榕江县古州镇 | AC88: 是 | AD88: 贵州省黔东南州榕江县古州镇锦州新城A区C栋8单元501 | AE88: 无 | AF88: 其他（临时工、未就业人员等） | AG88: 贵州省凯里市 | AH88: 无 | AI88: 是 | AJ88: 15338654103 | AK88: 13595533186 | AM88: 15985534372 | AN88: 榕江县人民政府污染物减排办公室 | AO88: 13150管理岗位 | AP88: 2011.9.至2014.6.就读于黔东南州民族高级中学 2014.9.至2018.6.就读于中南民族大学环境工程专业 2018.7.至2019.4.在贵州成达环保科技服务有限公司担任环评技术员 | AR88: 2 | AS88: 12 | AT88: 03 | AV88: 21 | AW88: 3 | AX88: 1 | AY88: 05 | AZ88: 1 | BA88: 126131019 | BB88: 126131019150 | BC88: 362019071522613018812 | BE88: 80.3 | BF88: 40.15 | BG88: 83 | BH88: 41.50 | BI88: =RANK(BE88,$BE$87:$BE$89) -> 2 | BJ88: 入围资格复审 | BK88: 2019年8月－9日 | BL88: 合格 | BP88: 81.65 | BQ88: =RANK(BP88,$BP$87:$BP$89) -> 2
B89: 1320190321 | E89: 杨涛 | F89: 管理岗位 | G89: 《综合知识》类 | H89: T362019071522612043712 | J89: 522633199608201025 | L89: 贵州省黔东南自治州 | M89: 榕江县 | N89: 043712 | P89: 女 | Q89: 1996.08.20 | R89: 贵州省从江县 | S89: 侗族 | T89: 中国共产主义青年团团员 | U89: 武夷学院 | W89: 生态学 | X89: 大学本科毕业 | Y89: 学士 | AA89: 2019.07 | AB89: 贵州省从江县高增乡 | AC89: 是 | AD89: 贵州省从江县瑞丽花园六栋三单元501 | AE89: 无 | AF89: 其他（临时工、未就业人员等） | AG89: 贵州省从江县 | AH89: 2016年7月取得普通话二级甲等等级证书 | AI89: 是 | AJ89: 18212310779 | AK89: 18750971308 | AM89: 13638057631 | AN89: 榕江县人民政府污染物减排办公室 | AO89: 13150管理岗位 | AP89: 2012年-2015年于贵州省从江县第一民族中学就读；2016—2017学年度获“优秀共青团员”、“优秀学生”；2017—2018学年度获“单向积极分子”；大学期间参加大学生创新创业大赛、科技节等活动 | AR89: 2 | AS89: 12 | AT89: 03 | AV89: 21 | AW89: 3 | AX89: 1 | AY89: 05 | AZ89: 1 | BA89: 126131019 | BB89: 126131019150 | BC89: 362019071522612043712 | BE89: 79.85 | BF89: 39.93 | BG89: 80 | BH89: 40.00 | BI89: =RANK(BE89,$BE$87:$BE$89) -> 3 | BJ89: 入围资格复审 | BK89: 2019年8月－9日 | BL89: 合格 | BP89: 79.93 | BQ89: 3
B90: 1320190322 | D90: 28 | E90: 李仁芬 | F90: 管理岗位 | G90: 《综合知识》类 | H90: T362019071522613035752 | J90: 522634199306304025 | L90: 贵州省黔东南自治州 | M90: 榕江县 | N90: 035752 | P90: 女 | Q90: 1993.06.30 | R90: 贵州省雷山县 | S90: 苗族 | T90: 中国共产主义青年团团员 | U90: 贵州大学 | W90: 哲学 | X90: 大学本科毕业 | Y90: 学士 | AA90: 2016.07 | AB90: 贵州省雷山县侨仿村三组 | AC90: 是 | AD90: 贵州省雷山县大塘镇侨仿村三组 | AE90: 贵阳市建筑管理处 | AF90: 其他（临时工、未就业人员等） | AG90: 贵州省雷山县 | AH90: 2013年3月取得全国计算机等级考试二级合格证书 | AI90: 是 | AJ90: 18786023018 | AK90: 18786023018 | AM90: 18275373119 | AN90: 榕江县场坝社区服务中心 | AO90: 13019管理岗位 | AP90: 2009年9月至2012年7月就读于雷山县民族中学 2012年9月至2016年7月就读于贵州大学 2016年7月至今工作于贵阳市建筑管理处 | AR90: 2 | AS90: 06 | AT90: 03 | AV90: 21 | AW90: 3 | AX90: 1 | AY90: 05 | AZ90: 1 | BA90: 126130918 | BB90: 126130918019 | BC90: 362019071522613035752 | BE90: 74.8 | BF90: =BE90*0.5 -> 37.40 | BG90: 70 | BH90: =BG90*0.5 -> 35.00 | BI90: =RANK(BE90,$BE$90:$BE$92) -> 2 | BJ90: 入围资格复审 | BK90: 2019年8月－9日 | BL90: 合格 | BP90: =BF90+BH90 -> 72.40 | BQ90: =RANK(BP90,$BP$90:$BP$92) -> 1 | BR90: 入围体检 | BS90: 2019-09-08
B91: 1320190323 | D91: 29 | E91: 周仕喜 | F91: 管理岗位 | G91: 《综合知识》类 | H91: T362019071522613033862 | J91: 522632198411111578 | L91: 贵州省黔东南自治州 | M91: 榕江县 | N91: 033862 | P91: 男 | Q91: 1984.11.11 | R91: 贵州榕江 | S91: 侗族 | T91: 群众 | U91: 宜宾职业技术学院 | W91: 电气工程与自动化 | X91: 大学专科毕业 | Y91: 无 | AA91: 2007.07 | AB91: 贵州省榕江县忠诚镇王岭村二组 | AC91: 是 | AD91: 贵州省榕江县忠诚镇王岭村二组 | AE91: 场坝社区服务中心 | AF91: 其他（临时工、未就业人员等） | AG91: 贵州省凯里市 | AH91: 无 | AI91: 是 | AJ91: 13638067897 | AK91: 6676972 | AM91: 潘明松1363806240 | AN91: 榕江县场坝社区服务中心 | AO91: 13019管理岗位 | AP91: 2000年9月至2004年7月榕江一中2004年9月至2007年7月宜宾职业技术学院2007年8月至2014年4月普什机床有限责任公司2014年5月至2017年2月中国石化2017年3月至2018年4月待业2018年5月至今场坝社区服务中心 | AR91: 1 | AS91: 12 | AT91: 13 | AV91: 31 | AW91: 4 | AX91: 1 | AY91: 05 | AZ91: 1 | BA91: 126130918 | BB91: 126130918019 | BC91: 362019071522613033862 | BE91: 74.4 | BF91: 37.20 | BG91: 68 | BH91: 34.00 | BI91: =RANK(BE91,$BE$90:$BE$92) -> 3 | BJ91: 入围资格复审 | BK91: 2019年8月－9日 | BL91: 合格 | BP91: 71.20 | BQ91: =RANK(BP91,$BP$90:$BP$92) -> 2
B92: 1320190324 | D92: 30 | E92: 张文玉 | F92: 管理岗位 | G92: 《综合知识》类 | H92: T362019071522613001769 | J92: 522630198902201524 | L92: 贵州省黔东南自治州 | M92: 榕江县 | N92: 001769 | P92: 女 | Q92: 1989.02.20 | R92: 贵州省台江县 | S92: 苗族 | T92: 中国共产主义青年团团员 | U92: 贵阳护理职业学院 | W92: 中药专业 | X92: 大学专科毕业 | Y92: 无 | AA92: 2014.07 | AB92: 贵州省台江县施洞镇景洞塘村六组 | AC92: 是 | AD92: 贵州省台江县施洞镇景洞塘村六组 | AE92: 无 | AF92: 其他（临时工、未就业人员等） | AG92: 贵州省贵阳市 | AH92: 无 | AI92: 是 | AJ92: 13765813944 | AK92: 13765813944 | AM92: 15285262004 | AN92: 榕江县场坝社区服务中心 | AO92: 13019管理岗位 | AP92: 2008年09月-2011年07月在凯里学院附属中学就读高中；2011年09月-2014年07月在贵阳护理职业学院就读中药专业；2014年07月-2017年03月在贵州三力制药股份有限公司就职；2017年04月在家待业至今。 | AR92: 2 | AS92: 06 | AT92: 03 | AV92: 31 | AW92: 4 | AX92: 1 | AY92: 05 | AZ92: 1 | BA92: 126130918 | BB92: 126130918019 | BC92: 362019071522613001769 | BE92: 77.65 | BF92: 38.83 | BG92: 63.33 | BH92: 31.67 | BI92: =RANK(BE92,$BE$90:$BE$92) -> 1 | BJ92: 入围资格复审 | BK92: 2019年8月－9日 | BL92: 合格 | BP92: 70.49 | BQ92: =RANK(BP92,$BP$90:$BP$92) -> 3
B93: 1320190325 | D93: 1 | E93: 梁宏伟 | F93: 管理岗位 | G93: 《综合知识》类 | H93: T362019071522613032905 | J93: 522229199410015036 | L93: 贵州省黔东南自治州 | M93: 榕江县 | N93: 032905 | P93: 男 | Q93: 1994.10.01 | R93: 贵州省松桃苗族自治县 | S93: 苗族 | T93: 中国共产主义青年团团员 | U93: 铜仁职业技术学院 | W93: 水利水电建筑工程 | X93: 大学专科毕业 | Y93: 无 | AA93: 2018.07 | AB93: 贵州省松桃苗族自治县平头乡平头司村二组 | AC93: 是 | AD93: 贵州省松桃苗族自治县平头乡平头司村二组 | AE93: 首钢贵阳特殊钢有限责任公司 | AF93: 国有企业职工 | AG93: 贵州省松桃苗族自治县 | AH93: 2018年取得水利水电建筑施工员证书 | AI93: 是 | AJ93: 13765671475 | AK93: 13765671475 | AM93: 18285654978 | AN93: 榕江县朗洞镇水利站 | AO93: 13128管理岗位 | AP93: 2010年9-2013年7铜仁明德衡民中学 2013年9-2014年9铜仁职业技术学院 2014年9-2016年9武警阿坝州支队 2016年9-2018年7铜仁职业技术学院 2018年7月-2019年1月待业 2019年1月至今贵阳特殊钢有限责任公司 | AR93: 1 | AS93: 06 | AT93: 03 | AV93: 31 | AW93: 4 | AX93: 1 | AY93: 04 | AZ93: 1 | BA93: 126130997 | BB93: 126130997128 | BC93: 362019071522613032905 | BE93: 72.45 | BF93: 36.23 | BG93: 77.67 | BH93: 38.84 | BI93: =RANK(BE93,$BE$93:$BE$95) -> 2 | BJ93: 入围资格复审 | BK93: 2019年8月－9日 | BL93: 合格 | BP93: 75.06 | BQ93: =RANK(BP93,$BP$93:$BP$95) -> 1 | BR93: 入围体检 | BS93: 2019-09-08
B94: 1320190326 | D94: 2 | E94: 杨彪 | F94: 管理岗位 | G94: 《综合知识》类 | H94: T362019071522613018350 | J94: 522629199003082233 | L94: 贵州省黔东南自治州 | M94: 榕江县 | N94: 018350 | P94: 男 | Q94: 19900308 | R94: 贵州省剑河县 | S94: 苗族 | T94: 群众 | U94: 国家开放大学 | W94: 水利水电工程 | X94: 大学本科毕业 | Y94: 无 | AA94: 201901 | AB94: 贵州省剑河县太拥镇 | AC94: 否 | AD94: 贵州省剑河县太拥镇翁王村一组 | AE94: 无 | AF94: 其他（临时工、未就业人员等） | AG94: 贵州省剑河县 | AH94: 无 | AI94: 是 | AJ94: 15085245098 | AK94: 13595542719 | AM94: 15329254119 | AN94: 榕江县朗洞镇水利站 | AO94: 13128管理岗位 | AP94: 2008.09-2011.07剑河县民族中学学习；2011.09-2014.07贵州商业高等专科学校学习；2014.08-2017.08剑河县太拥镇人民政府（志愿者）2017.09-至今在家待业，期间：2017.01-2019.01国家开放大学学习。 | AR94: 1 | AS94: 06 | AT94: 13 | AV94: 21 | AW94: 4 | AX94: 2 | AY94: 05 | AZ94: 1 | BA94: 126130997 | BB94: 126130997128 | BC94: 362019071522613018350 | BE94: 71 | BF94: 35.50 | BG94: 71.67 | BH94: 35.84 | BI94: =RANK(BE94,$BE$93:$BE$95) -> 3 | BJ94: 入围资格复审 | BK94: 2019年8月－9日 | BL94: 合格 | BP94: 71.34 | BQ94: =RANK(BP94,$BP$93:$BP$95) -> 2
B95: 1320190327 | D95: 3 | E95: 林常彪 | F95: 管理岗位 | G95: 《综合知识》类 | H95: T362019071522613058535 | J95: 522632199404077839 | L95: 贵州省黔东南自治州 | M95: 榕江县 | N95: 058535 | P95: 男 | Q95: 1994.04.07 | R95: 贵州榕江 | S95: 侗族 | T95: 中国共产主义青年团团员 | U95: 贵州理工学院 | W95: 水利水电工程 | X95: 大学本科毕业 | Y95: 学士 | AA95: 2018.07 | AB95: 贵州省榕江县朗洞镇 | AC95: 是 | AD95: 榕江县朗洞镇宰林村二组 | AE95: 贵州拓土资源开发有限公司 | AF95: 其他（临时工、未就业人员等） | AG95: 贵州省榕江县 | AH95: 无 | AI95: 是 | AJ95: 15329508334 | AK95: 1085681097 | AM95: 13765501039 | AN95: 榕江县朗洞镇水利站 | AO95: 13128管理岗位 | AP95: 2002年九月-2005年7月宰林小学；2005年9月-2007年7月朗洞小学；2007年9月-2010年7月朗洞中学；2010年9月-2014年6月榕江县第一中学；2014年9月-2018年7月贵州理工学院；2018年9月-2019年7月贵州拓土资源开发有限公司 | AR95: 1 | AS95: 12 | AT95: 03 | AV95: 21 | AW95: 3 | AX95: 1 | AY95: 05 | AZ95: 1 | BA95: 126130997 | BB95: 126130997128 | BC95: 362019071522613058535 | BE95: 74.25 | BF95: 37.13 | BG95: 67.33 | BH95: 33.67 | BI95: =RANK(BE95,$BE$93:$BE$95) -> 1 | BJ95: 入围资格复审 | BK95: 2019年8月－9日 | BL95: 合格 | BP95: 70.79 | BQ95: =RANK(BP95,$BP$93:$BP$95) -> 3
B96: 1320190328 | D96: 4 | E96: 郭朝宏 | F96: 管理岗位 | G96: 《综合知识》类 | H96: T362019071522613028337 | J96: 53262619950826211X | L96: 贵州省黔东南自治州 | M96: 榕江县 | N96: 028337 | P96: 男 | Q96: 1995.08.26 | R96: 云南丘北 | S96: 汉族 | T96: 群众 | U96: 文山学院 | W96: 文秘 | X96: 大学专科毕业 | Y96: 无 | AA96: 2016.07 | AB96: 云南省丘北县官寨乡 | AC96: 是 | AD96: 云南省丘北县新康家园27栋203 | AE96: 无 | AF96: 其他（临时工、未就业人员等） | AG96: 云南丘北 | AH96: 无 | AI96: 是 | AJ96: 17787684449 | AK96: 17787684449 | AM96: 13187623039 | AN96: 中共榕江县委榕江县人民政府书记县长群众直通交流台 | AO96: 13023管理岗位 | AP96: 2010年9月—2013年6月丘北县第一中学 2013年9月—2016年6月文山学院 2016年6月—2019年7月在家待业 | AR96: 1 | AS96: 01 | AT96: 13 | AV96: 31 | AW96: 4 | AX96: 1 | AY96: 05 | AZ96: 1 | BA96: 126130920 | BB96: 126130920023 | BC96: 362019071522613028337 | BE96: 81.2 | BF96: 40.60 | BG96: 72.67 | BH96: 36.34 | BI96: =RANK(BE96,$BE$96:$BE$98) -> 1 | BJ96: 入围资格复审 | BK96: 2019年8月－9日 | BL96: 合格 | BP96: 76.94 | BQ96: =RANK(BP97,$BP$97:$BP$98) -> 1 | BR96: 入围体检 | BS96: 2019-09-08
B97: 1320190329 | D97: 5 | E97: 胡秋杰 | F97: 管理岗位 | G97: 《综合知识》类 | H97: T362019071522613021212 | J97: 532128199508140601 | L97: 贵州省黔东南自治州 | M97: 榕江县 | N97: 021212 | P97: 女 | Q97: 1995.08.14 | R97: 云南省昭通市 | S97: 汉族 | T97: 中国共产主义青年团团员 | U97: 昭通学院 | W97: 文秘 | X97: 大学专科毕业 | Y97: 无 | AA97: 2016.07 | AB97: 云南省昭通市镇雄县中屯乡 | AC97: 是 | AD97: 云南省昭通市镇雄县中屯乡小院子村民小组35号 | AE97: 无 | AF97: 其他（临时工、未就业人员等） | AG97: 云南省昭通市 | AH97: 2015年6月取得国家三级秘书资格证书。 | AI97: 是 | AJ97: 15125389944 | AK97: 15125389944 | AM97: 15126618553 | AN97: 中共榕江县委榕江县人民政府书记县长群众直通交流台 | AO97: 13023管理岗位 | AP97: 2009年至2013年7月，在昭通市镇雄县第四中学就读高中。 2013年9月至2016年7月，在昭通市昭通学院就读大学，专业文秘。 2016年9月至2018年12月，在云南劳服实业总公司担任办公室主任一职。 现无工作。 | AR97: 2 | AS97: 01 | AT97: 03 | AV97: 31 | AW97: 4 | AX97: 1 | AY97: 05 | AZ97: 1 | BA97: 126130920 | BB97: 126130920023 | BC97: 362019071522613021212 | BE97: 68.35 | BF97: 34.18 | BG97: 78 | BH97: 39.00 | BI97: =RANK(BE97,$BE$96:$BE$98) -> 2 | BJ97: 入围资格复审 | BK97: 2019年8月－9日 | BL97: 合格 | BP97: 73.18 | BQ97: =RANK(BP98,$BP$97:$BP$98) -> 2
B98: 1320190330 | D98: 6 | E98: 袁再金 | F98: 管理岗位 | G98: 《综合知识》类 | H98: T362019071522613081622 | J98: 522629199411213423 | L98: 贵州省黔东南自治州 | M98: 榕江县 | N98: 081622 | P98: 女 | Q98: 1994.11.21 | R98: 贵州省剑河县 | S98: 侗族 | T98: 群众 | U98: 湖南高速铁路职业技术学院 | W98: 文秘 | X98: 大学专科毕业 | Y98: 无 | AA98: 20160701 | AB98: 贵州省剑河县南加镇塘边村三组 | AC98: 是 | AD98: 贵州省剑河县南加镇塘边村三组 | AE98: 无 | AF98: 其他（临时工、未就业人员等） | AG98: 贵州省剑河县 | AH98: 2015年7月秘书四级职业资格证 2014年2月高等院校英语应用能力A级 2014年7月普通话二级乙等 | AI98: 是 | AJ98: 15185759021 | AK98: 15185759021 | AM98: 15870231556 | AN98: 中共榕江县委榕江县人民政府书记县长群众直通交流台 | AO98: 13023管理岗位 | AP98: 2010.09-2013.06剑河县华信高级中学 2013.09-2016.07湖南高速铁路职业技术学院 2016.07至今在家待业 | AR98: 2 | AS98: 12 | AT98: 13 | AV98: 31 | AW98: 4 | AX98: 1 | AY98: 05 | AZ98: 1 | BA98: 126130920 | BB98: 126130920023 | BC98: 362019071522613081622 | BE98: 67.45 | BF98: 33.73 | BG98: 74 | BH98: 37.00 | BI98: =RANK(BE98,$BE$96:$BE$98) -> 3 | BJ98: 递补入围资格复审 | BL98: 合格 | BP98: 70.73 | BQ98: 3
B99: 1320190331 | D99: 7 | E99: 顾启茜 | F99: 管理岗位 | G99: 《综合知识》类 | H99: T362019071522613080713 | J99: 522632199503150069 | L99: 贵州省黔东南自治州 | M99: 榕江县 | N99: 080713 | P99: 女 | Q99: 1995.03.15 | R99: 贵州省榕江县 | S99: 侗族 | T99: 中国共产主义青年团团员 | U99: 郑州航空工业管理学院 | W99: 工程管理 | X99: 大学本科毕业 | Y99: 学士 | AA99: 2018.07 | AB99: 贵州省榕江县古州镇 | AC99: 是 | AD99: 贵州省榕江县古州镇湘榕路1-36号 | AE99: 无 | AF99: 其他（临时工、未就业人员等） | AG99: 贵州省榕江县 | AH99: 无 | AI99: 是 | AJ99: 18184530917 | AK99: 18184530917 | AM99: 13648554397 | AN99: 榕江县场坝社区服务中心 | AO99: 13020管理岗位 | AP99: 2008.09-2011.06在榕江县第二中学学习；2011.09-2014.06在黔东南州民族高级中学学习；2014.09-2018.07在郑州航空工业管理学院土木工程系工程管理专业学习；2018.07至今待业。 | AR99: 2 | AS99: 12 | AT99: 03 | AV99: 21 | AW99: 3 | AX99: 1 | AY99: 05 | AZ99: 1 | BA99: 126130918 | BB99: 126130918020 | BC99: 362019071522613080713 | BE99: 77.85 | BF99: 38.93 | BG99: 83.33 | BH99: 41.67 | BI99: =RANK(BE99,$BE$99:$BE$101) -> 1 | BJ99: 入围资格复审 | BK99: 2019年8月－9日 | BL99: 合格 | BP99: 80.59 | BQ99: 1 | BR99: 入围体检 | BS99: 2019-09-08
B100: 1320190332 | D100: 8 | E100: 邱春秋 | F100: 管理岗位 | G100: 《综合知识》类 | H100: T362019071522613058606 | J100: 522632199702080016 | L100: 贵州省黔东南自治州 | M100: 榕江县 | N100: 058606 | P100: 男 | Q100: 19970208 | R100: 贵州省榕江县 | S100: 苗族 | T100: 中国共产主义青年团团员 | U100: 贵州大学明德学院 | W100: 工程管理 | X100: 大学本科毕业 | Y100: 学士 | AA100: 2019.07 | AB100: 贵州省榕江县古州镇 | AC100: 是 | AD100: 贵州省榕江县古州镇西环中路21号 | AE100: 无 | AF100: 其他（临时工、未就业人员等） | AG100: 贵州省榕江县 | AH100: 无 | AI100: 是 | AJ100: 15285283274 | AK100: 6621920 | AM100: 13985812245 | AN100: 榕江县场坝社区服务中心 | AO100: 13020管理岗位 | AP100: 2009年9月-2012年6月就读于榕江县第二中学 2012年9月-2015年6月就读于榕江县第一中学 2015年9月-2019年7月就读于贵州大学明德学院 | AR100: 1 | AS100: 06 | AT100: 03 | AV100: 21 | AW100: 3 | AX100: 1 | AY100: 05 | AZ100: 1 | BA100: 126130918 | BB100: 126130918020 | BC100: 362019071522613058606 | BE100: 76.35 | BF100: 38.18 | BG100: 78.67 | BH100: 39.34 | BI100: =RANK(BE100,$BE$99:$BE$101) -> 2 | BJ100: 入围资格复审 | BK100: 2019年8月－9日 | BL100: 合格 | BP100: 77.51 | BQ100: 2
B101: 1320190333 | D101: 9 | E101: 杨通毫 | F101: 管理岗位 | G101: 《综合知识》类 | H101: T362019071522613019220 | J101: 522632199403267315 | L101: 贵州省黔东南自治州 | M101: 榕江县 | N101: 019220 | P101: 男 | Q101: 1994.03.26 | R101: 贵州省榕江县 | S101: 侗族 | T101: 中国共产主义青年团团员 | U101: 西安欧亚学院 | W101: 工程管理 | X101: 大学本科毕业 | Y101: 学士 | AA101: 2017.07 | AB101: 贵州省榕江县寨蒿镇 | AC101: 是 | AD101: 贵州省榕江县寨蒿镇高赧村一组 | AE101: 无 | AF101: 其他（临时工、未就业人员等） | AG101: 贵州省榕江县 | AH101: 无 | AI101: 是 | AJ101: 15329553421 | AK101: 15329559647 | AM101: 15001997437 | AN101: 榕江县场坝社区服务中心 | AO101: 13020管理岗位 | AP101: 2010.09-2013.07贵州省榕江县第一中学学习； 2013.09-2017.07陕西省西安欧亚学院工程管理专业本科学习； 2017.07-2019.05贵阳申度建筑幕墙有限工程任幕墙设计师； 2019.05-至今在家待业。 | AR101: 1 | AS101: 12 | AT101: 03 | AV101: 21 | AW101: 3 | AX101: 1 | AY101: 05 | AZ101: 1 | BA101: 126130918 | BB101: 126130918020 | BC101: 362019071522613019220 | BE101: 74.85 | BF101: 37.43 | BG101: 69.67 | BH101: 34.84 | BI101: =RANK(BE101,$BE$99:$BE$101) -> 3 | BJ101: 入围资格复审 | BK101: 2019年8月－9日 | BL101: 合格 | BP101: 72.26 | BQ101: 3
A102: 第四考场 | B102: 1320190401 | D102: 10 | E102: 杨艳 | F102: 管理岗位 | G102: 《综合知识》类 | H102: T362019071522613066886 | J102: 522632199209108820 | L102: 贵州省黔东南自治州 | M102: 榕江县 | N102: 066886 | P102: 女 | Q102: 1992.09.10 | R102: 贵州省榕江县 | S102: 汉族 | T102: 中国共产党党员 | U102: 贵州大学科技学院 | W102: 法学 | X102: 大学本科毕业 | Y102: 学士 | AA102: 2016.07 | AB102: 贵州省榕江县崇义乡上咸村一组 | AC102: 是 | AD102: 贵州省榕江县古州南路附一路28-71号 | AE102: 无 | AF102: 其他（临时工、未就业人员等） | AG102: 贵州省榕江县 | AH102: 无 | AI102: 是 | AJ102: 13985281184 | AK102: 13985281184 | AM102: 13985308164 | AN102: 榕江县梨子园社区服务中心 | AO102: 13021管理岗位 | AP102: 2009年9月-2012年6月就读于贵州省榕江县第一中学 2012年9月-2016年7月就读于贵州大学科技学院 2016年7月至今待业 | AR102: 2 | AS102: 01 | AT102: 01 | AV102: 21 | AW102: 3 | AX102: 1 | AY102: 05 | AZ102: 1 | BA102: 126130919 | BB102: 126130919021 | BC102: 362019071522613066886 | BE102: 79.2 | BF102: =BE102*0.5 -> 39.60 | BG102: 81.33 | BH102: =BG102*0.5 -> 40.67 | BI102: =RANK(BE102,$BE$102:$BE$104) -> 1 | BJ102: 入围资格复审 | BK102: 2019年8月－9日 | BL102: 合格 | BP102: =BF102+BH102 -> 80.27 | BQ102: 1 | BR102: 入围体检 | BS102: 2019-09-08
B103: 1320190402 | D103: 11 | E103: 许国进 | F103: 管理岗位 | G103: 《综合知识》类 | H103: T362019071522613021172 | J103: 52012119860510241X | L103: 贵州省黔东南自治州 | M103: 榕江县 | N103: 021172 | P103: 男 | Q103: 1986.05.10 | R103: 贵州省开阳县 | S103: 汉族 | T103: 群众 | U103: 贵州警官职业学院 | W103: 法律事务 | X103: 大学专科毕业 | Y103: 无 | AA103: 200907 | AB103: 贵州省贵阳市开阳县永温镇 | AC103: 是 | AD103: 贵州省贵阳市开阳县永温镇安大村 | AE103: 无 | AF103: 其他（临时工、未就业人员等） | AG103: 贵州省贵阳市开阳县 | AH103: 无 | AI103: 是 | AJ103: 15285951651 | AK103: 15285951651 | AM103: 18275014085 | AN103: 榕江县梨子园社区服务中心 | AO103: 13021管理岗位 | AP103: 2003.09-2005.07年在开阳县第三中学学习；2005.09－2006.07年在白云区东方高级中学补习；2006.09－2009.07年在贵州警官职业学院法律事务大专学习；2009.07-至今在家待业 | AR103: 1 | AS103: 01 | AT103: 13 | AV103: 31 | AW103: 4 | AX103: 1 | AY103: 05 | AZ103: 1 | BA103: 126130919 | BB103: 126130919021 | BC103: 362019071522613021172 | BE103: 76.55 | BF103: 38.28 | BG103: 79 | BH103: 39.50 | BI103: =RANK(BE103,$BE$102:$BE$104) -> 3 | BJ103: 入围资格复审 | BK103: 2019年8月－9日 | BL103: 合格 | BP103: 77.78 | BQ103: 2
B104: 1320190403 | D104: 12 | E104: 何军莉 | F104: 管理岗位 | G104: 《综合知识》类 | H104: T362019071522613038063 | J104: 612522198601273547 | L104: 贵州省黔东南自治州 | M104: 榕江县 | N104: 038063 | P104: 女 | Q104: 1986.01.27 | R104: 贵州省黔东南州榕江县 | S104: 汉族 | T104: 群众 | U104: 西安工业大学 | W104: 法学 | X104: 大学本科毕业 | Y104: 学士 | AA104: 2011年7月 | AB104: 贵州省榕江县寨蒿镇高赧村一组 | AC104: 是 | AD104: 贵州省榕江县弘坤商业城7栋2单元301室 | AE104: 无 | AF104: 其他（临时工、未就业人员等） | AG104: 贵州省凯里市榕江县 | AH104: 无 | AI104: 是 | AJ104: 13671539306 | AK104: 15329551140 | AM104: 15001997437 | AN104: 榕江县梨子园社区服务中心 | AO104: 13021管理岗位 | AP104: 2003年9月~2007年7月陕西省洛南县中学2007年9月~2011年7月西安工业大学2011年8月~2018年12月上海首信知识产权代理有限公司2019年1月~今待业 | AR104: 2 | AS104: 01 | AT104: 13 | AV104: 21 | AW104: 3 | AX104: 1 | AY104: 05 | AZ104: 1 | BA104: 126130919 | BB104: 126130919021 | BC104: 362019071522613038063 | BE104: 78.15 | BF104: 39.08 | BG104: 72.33 | BH104: 36.17 | BI104: =RANK(BE104,$BE$102:$BE$104) -> 2 | BJ104: 入围资格复审 | BK104: 2019年8月－9日 | BL104: 合格 | BP104: 75.24 | BQ104: 3
B105: 1320190404 | D105: 13 | E105: 石丽 | F105: 管理岗位 | G105: 《综合知识》类 | H105: T362019071522613058436 | J105: 522632199209217824 | L105: 贵州省黔东南自治州 | M105: 榕江县 | N105: 058436 | P105: 女 | Q105: 1992.09.21 | R105: 贵州省榕江县 | S105: 侗族 | T105: 中国共产党党员 | U105: 凯里学院 | W105: 地理科学 | X105: 大学本科毕业 | Y105: 学士 | AA105: 2017.07 | AB105: 贵州省榕江县朗洞镇色边村十一组 | AC105: 是 | AD105: 贵州省榕江县朗洞镇色边村十一组 | AE105: 贵州省榕江县崇义乡人民政府 | AF105: 其他（临时工、未就业人员等） | AG105: 贵州省榕江县 | AH105: 2017年6月取得高级中学地理教师资格证 | AI105: 是 | AJ105: 13638068645 | AK105: 13638068645 | AM105: 15761660019 | AN105: 榕江县乐里镇扶贫工作站 | AO105: 13116管理岗位 | AP105: 2008.9—2011.7榕江一中就读高中 2011.9—2012.7榕江一中补习 2012.9—2017.7凯里学院预科+旅游学院地理科学专业本科学习 2017.8-至今参加西部计划志愿者服务于榕江县崇义乡人民政府 | AR105: 2 | AS105: 12 | AT105: 01 | AV105: 21 | AW105: 3 | AX105: 1 | AY105: 05 | AZ105: 1 | BA105: 126130985 | BB105: 126130985116 | BC105: 362019071522613058436 | BE105: 69.2 | BF105: 34.60 | BG105: 82 | BH105: 41.00 | BI105: =RANK(BE105,$BE$105:$BE$107) -> 1 | BJ105: 入围资格复审 | BK105: 2019年8月－9日 | BL105: 合格 | BP105: 75.60 | BQ105: 1 | BR105: 入围体检 | BS105: 2019-09-08
B106: 1320190405 | D106: 14 | E106: 姚微微 | F106: 管理岗位 | G106: 《综合知识》类 | H106: T362019071522613015788 | J106: 522632199505203320 | L106: 贵州省黔东南自治州 | M106: 榕江县 | N106: 015788 | P106: 女 | Q106: 1995.05.20 | R106: 贵州省榕江县 | S106: 水族 | T106: 中国共产主义青年团团员 | U106: 贵州工业职业技术学院 | W106: 公共事务管理 | X106: 大学专科毕业 | Y106: 无 | AA106: 2017.07 | AB106: 贵州省榕江县仁里乡寿昌村四组 | AC106: 是 | AD106: 贵州省榕江县仁里乡寿昌村四组 | AE106: 榕江县平永镇人民政府 | AF106: 其他（临时工、未就业人员等） | AG106: 贵州省榕江县 | AH106: 无 | AI106: 是 | AJ106: 18786009536 | AK106: 18786009536 | AM106: 18208643043 | AN106: 榕江县乐里镇扶贫工作站 | AO106: 13116管理岗位 | AP106: 2008.09-2011.07榕江县仁里中学 2011.09-2014.07榕江县实验中学 2014.09-2017.07贵州工业职业技术学院 2017.07——贵州省榕江县平用镇人民政府（西部计划志愿者） | AR106: 2 | AS106: 25 | AT106: 03 | AV106: 31 | AW106: 4 | AX106: 1 | AY106: 05 | AZ106: 1 | BA106: 126130985 | BB106: 126130985116 | BC106: 362019071522613015788 | BE106: 59.4 | BF106: 29.70 | BG106: 73.33 | BH106: 36.67 | BI106: =RANK(BE106,$BE$105:$BE$107) -> 3 | BJ106: 入围资格复审 | BK106: 2019年8月－9日 | BL106: 合格 | BP106: 66.37 | BQ106: 2
B107: 1320190406 | D107: 15 | E107: 姜敏 | F107: 管理岗位 | G107: 《综合知识》类 | H107: T362019071522613040686 | J107: 522632198506181560 | L107: 贵州省黔东南自治州 | M107: 榕江县 | N107: 040686 | P107: 女 | Q107: 1985.6.18 | R107: 贵州省榕江县 | S107: 汉族 | T107: 中国共产党党员 | U107: 凯里学院 | W107: 环境与科学学院 | X107: 大学专科毕业 | Y107: 无 | AA107: 2009.7 | AB107: 贵州省榕江县忠诚镇忠诚村 | AC107: 是 | AD107: 贵州省榕江县忠诚镇忠诚村 | AE107: 忠诚镇忠诚社区 | AF107: 其他（临时工、未就业人员等） | AG107: 贵州省榕江县 | AH107: 2008.3取得教师资格证 | AI107: 是 | AJ107: 15086223234 | AK107: 18212455207 | AM107: 15185657917 | AN107: 榕江县乐里镇扶贫工作站 | AO107: 13116管理岗位 | AP107: 2002.9-2006.7毕业榕江一中 2006.9-2009.7毕业凯里学院 2009.12-2014.3驻榕江县忠诚镇正乐村“一村一名大学生” 2014.4-2017.1在家待业 2017.1-至今在榕江县忠诚镇忠诚社区任社区副主任 | AR107: 2 | AS107: 01 | AT107: 01 | AV107: 31 | AW107: 4 | AX107: 1 | AY107: 05 | AZ107: 1 | BA107: 126130985 | BB107: 126130985116 | BC107: 362019071522613040686 | BE107: 63.3 | BF107: 31.65 | BG107: 65 | BH107: 32.50 | BI107: =RANK(BE107,$BE$105:$BE$107) -> 2 | BJ107: 入围资格复审 | BK107: 2019年8月－9日 | BL107: 合格 | BP107: 64.15 | BQ107: 3
B108: 1320190407 | D108: 16 | E108: 杨艳 | F108: 管理岗位 | G108: 《综合知识》类 | H108: T362019071522613008049 | J108: 522632198906142827 | L108: 贵州省黔东南自治州 | M108: 榕江县 | N108: 008049 | P108: 女 | Q108: 1989.06.14 | R108: 贵州省榕江县 | S108: 侗族 | T108: 群众 | U108: 贵州职业技术学院 | W108: 会计 | X108: 大学专科毕业 | Y108: 无 | AA108: 2012.07 | AB108: 贵州省榕江县仁里水族乡 | AC108: 是 | AD108: 贵州省榕江县仁里水族乡太元村四组 | AE108: 无 | AF108: 其他（临时工、未就业人员等） | AG108: 贵州省榕江县 | AH108: 2010年9月取得会计从业资格证书 | AI108: 是 | AJ108: 18786408573 | AK108: 18786408573 | AM108: 15085375940 | AN108: 榕江县信访信息和网上信访中心 | AO108: 13024管理岗位 | AP108: 2005.09-2008.06，在榕江县第一中学读书；2008.09-2009.06，在榕江县实验中学读书；2009.09-2012.06，在贵州职业技术学院会计专业学习；2012.07至今待业。 | AR108: 2 | AS108: 12 | AT108: 13 | AV108: 31 | AW108: 4 | AX108: 1 | AY108: 05 | AZ108: 1 | BA108: 126130921 | BB108: 126130921024 | BC108: 362019071522613008049 | BE108: 79.7 | BF108: 39.85 | BG108: 77 | BH108: 38.50 | BI108: =RANK(BE108,$BE$108:$BE$110) -> 1 | BJ108: 入围资格复审 | BK108: 2019年8月－9日 | BL108: 合格 | BP108: 78.35 | BQ108: =RANK(BP108,$BP$108:$BP$110) -> 1 | BR108: 入围体检 | BS108: 2019-09-08
B109: 1320190408 | D109: 17 | E109: 吴美 | F109: 管理岗位 | G109: 《综合知识》类 | H109: T362019071522613029734 | J109: 52263219930728158X | L109: 贵州省黔东南自治州 | M109: 榕江县 | N109: 029734 | P109: 女 | Q109: 1993.07.28 | R109: 贵州省榕江县 | S109: 侗族 | T109: 群众 | U109: 安顺职业技术学院 | W109: 会计电算化 | X109: 大学专科毕业 | Y109: 无 | AA109: 2013.07 | AB109: 贵州省榕江县忠诚镇扣麻村领加三组 | AC109: 是 | AD109: 贵州省榕江县忠诚镇扣麻村领加三组 | AE109: 无 | AF109: 其他（临时工、未就业人员等） | AG109: 贵州省榕江县 | AH109: 2018年取得初级会计职称 | AI109: 是 | AJ109: 15985537091 | AK109: 15985537091 | AM109: 15772505274 | AN109: 榕江县信访信息和网上信访中心 | AO109: 13024管理岗位 | AP109: 2007年9月-2010年7月就读于榕江一中 2010年9月-2013年7月就读于安顺职业技术学院 2013年8月-2015年7月在家待业 2015年8月-2018年12月在黔东南州饰界建筑装饰有限责任公司就职 2019年1月至今在家待业 | AR109: 2 | AS109: 12 | AT109: 13 | AV109: 31 | AW109: 4 | AX109: 1 | AY109: 05 | AZ109: 1 | BA109: 126130921 | BB109: 126130921024 | BC109: 362019071522613029734 | BE109: 72.75 | BF109: 36.38 | BG109: 79 | BH109: 39.50 | BI109: =RANK(BE109,$BE$108:$BE$110) -> 2 | BJ109: 入围资格复审 | BK109: 2019年8月－9日 | BL109: 合格 | BP109: 75.88 | BQ109: =RANK(BP109,$BP$108:$BP$110) -> 2
B110: 1320190409 | D110: 18 | E110: 李恩锐 | F110: 管理岗位 | G110: 《综合知识》类 | H110: T362019071522613049227 | J110: 522632199704030055 | L110: 贵州省黔东南自治州 | M110: 榕江县 | N110: 049227 | P110: 男 | Q110: 1997.04.03 | R110: 贵州省榕江县 | S110: 汉族 | T110: 群众 | U110: 黔南民族职业技术学院 | W110: 会计 | X110: 大学专科毕业 | Y110: 无 | AA110: 2019.07 | AB110: 贵州省榕江县 | AC110: 是 | AD110: 贵州省榕江县古州镇古州南路附一路16 | AE110: 无 | AF110: 其他（临时工、未就业人员等） | AG110: 贵州省榕江县 | AH110: 无 | AI110: 是 | AJ110: 18386722835 | AK110: 13985830722 | AM110: 15185679981 | AN110: 榕江县信访信息和网上信访中心 | AO110: 13024管理岗位 | AP110: 2013年09月至2016年07月在榕江一中高中部就读。 2016年09月至2019年07月在黔南民族职业技术学院会计专业就读并毕业。 | AR110: 1 | AS110: 01 | AT110: 13 | AV110: 31 | AW110: 4 | AX110: 1 | AY110: 05 | AZ110: 1 | BA110: 126130921 | BB110: 126130921024 | BC110: 362019071522613049227 | BE110: 71.4 | BF110: 35.70 | BG110: 73.67 | BH110: 36.84 | BI110: =RANK(BE110,$BE$108:$BE$110) -> 3 | BJ110: 入围资格复审 | BK110: 2019年8月－9日 | BL110: 合格 | BP110: 72.54 | BQ110: 3
B111: 1320190410 | D111: 22 | E111: 张达新 | F111: 管理岗位 | G111: 《综合知识》类 | H111: T362019071522613016720 | J111: 522632199302015821 | L111: 贵州省黔东南自治州 | M111: 榕江县 | N111: 016720 | P111: 女 | Q111: 1993.02.01 | R111: 贵州省榕江县 | S111: 苗族 | T111: 中国共产党党员 | U111: 凯里学院 | W111: 农林经济管理 | X111: 大学本科毕业 | Y111: 学士 | AA111: 2019.07 | AB111: 贵州省榕江县兴华乡摆贝村七组 | AC111: 是 | AD111: 贵州省榕江县兴华乡摆贝村七组 | AE111: 无 | AF111: 其他（临时工、未就业人员等） | AG111: 贵州省榕江县 | AH111: 无 | AI111: 是 | AJ111: 15286618347 | AK111: 15286618347 | AM111: 15286616152 | AN111: 榕江县农业工程建设中心 | AO111: 13049管理岗位 | AP111: 2010年9月至2014年7月在榕江县第一中学 2014年9月至2015年7月在凯里学院教育科学学院学习 2015年7月至2019年7月在凯里学院经济与管理学院学习 2019年7月至今未就业 | AR111: 2 | AS111: 06 | AT111: 01 | AV111: 21 | AW111: 3 | AX111: 1 | AY111: 05 | AZ111: 1 | BA111: 126130940 | BB111: 126130940049 | BC111: 362019071522613016720 | BE111: 81.7 | BF111: =BE111*0.5 -> 40.85 | BG111: 80.33 | BH111: =BG111*0.5 -> 40.17 | BI111: =RANK(BE111,$BE$111:$BE$113) -> 2 | BJ111: 入围资格复审 | BK111: 2019年8月－9日 | BL111: 合格 | BP111: =BF111+BH111 -> 81.02 | BQ111: =RANK(BP111,$BP$111:$BP$113) -> 1 | BR111: 入围体检 | BS111: 2019-09-08
B112: 1320190411 | D112: 23 | E112: 石柳 | F112: 管理岗位 | G112: 《综合知识》类 | H112: T362019071522613054583 | J112: 522632199503122324 | L112: 贵州省黔东南自治州 | M112: 榕江县 | N112: 054583 | P112: 女 | Q112: 1995.03.12 | R112: 贵州省榕江县 | S112: 侗族 | T112: 中国共产主义青年团团员 | U112: 贵州财经大学 | W112: 农林经济管理 | X112: 大学本科毕业 | Y112: 学士 | AA112: 2018.06 | AB112: 贵州省榕江县栽麻乡 | AC112: 是 | AD112: 贵州省榕江县栽麻乡归柳村六组 | AE112: 无 | AF112: 其他（临时工、未就业人员等） | AG112: 贵州省榕江县 | AH112: 2016年1月取得会计从业资格证书；2018年7月取得初中化学教师资格证书 | AI112: 是 | AJ112: 18212235264 | AK112: 13037828892 | AM112: 13765567225 | AN112: 榕江县农业工程建设中心 | AO112: 13049管理岗位 | AP112: 2008.09-2011.06：榕江县第二中学； 2011.09-2014.06：榕江县第一中学； 2014.09-2018.06：贵州财经大学； 2018.07-至今：待业 | AR112: 2 | AS112: 12 | AT112: 03 | AV112: 21 | AW112: 3 | AX112: 1 | AY112: 05 | AZ112: 1 | BA112: 126130940 | BB112: 126130940049 | BC112: 362019071522613054583 | BE112: 82.95 | BF112: 41.48 | BG112: 75 | BH112: 37.50 | BI112: =RANK(BE112,$BE$111:$BE$113) -> 1 | BJ112: 入围资格复审 | BK112: 2019年8月－9日 | BL112: 合格 | BP112: 78.98 | BQ112: =RANK(BP112,$BP$111:$BP$113) -> 2
B113: 1320190412 | D113: 24 | E113: 周珍珍 | F113: 管理岗位 | G113: 《综合知识》类 | H113: T362019071522613052495 | J113: 522732199405153421 | L113: 贵州省黔东南自治州 | M113: 榕江县 | N113: 052495 | P113: 女 | Q113: 1994.05.15 | R113: 贵州省三都水族自治县 | S113: 布依族 | T113: 中国共产党党员 | U113: 贵州大学 | W113: 农业机械化及其自动化 | X113: 大学本科毕业 | Y113: 学士 | AA113: 2017.06 | AB113: 贵州省三都水族自治县蒲安邦镇 | AC113: 是 | AD113: 贵州省三都水族自治县普安镇双江村二组 | AE113: 无 | AF113: 其他（临时工、未就业人员等） | AG113: 贵州省三都水族自治县 | AH113: 无 | AI113: 是 | AJ113: 15761629784 | AK113: 15761629784 | AM113: 13708546920 | AN113: 榕江县农业工程建设中心 | AO113: 13049管理岗位 | AP113: 2010.9~2013.6在贵州省三都县高级中学就读高中 2013.9~2017.6在贵州大学就读大学 2017.7~2019.4在广东省汕尾市信利光电股份有限公司上班 2019.4至今在家待业 | AR113: 2 | AS113: 09 | AT113: 01 | AV113: 21 | AW113: 3 | AX113: 1 | AY113: 05 | AZ113: 1 | BA113: 126130940 | BB113: 126130940049 | BC113: 362019071522613052495 | BE113: 79.4 | BF113: 39.70 | BG113: 76 | BH113: 38.00 | BI113: =RANK(BE113,$BE$111:$BE$113) -> 3 | BJ113: 入围资格复审 | BK113: 2019年8月－9日 | BL113: 合格 | BP113: 77.70 | BQ113: =RANK(BP113,$BP$111:$BP$113) -> 3
B114: 1320190413 | D114: 25 | E114: 杨榕 | F114: 专业技术岗位 | G114: 《综合知识》类 | H114: T362019071522613074896 | J114: 522632198903180043 | L114: 贵州省黔东南自治州 | M114: 榕江县 | N114: 074896 | P114: 女 | Q114: 1989.03.18 | R114: 贵州省榕江县 | S114: 侗族 | T114: 群众 | U114: 贵州师范大学 | W114: 园林 | X114: 大学本科毕业 | Y114: 学士 | AA114: 2012.07 | AB114: 贵州省榕江县古州镇西环南路附一路1-24号 | AC114: 是 | AD114: 贵州省榕江县古州镇西环南路附一路1-24号 | AE114: 贵州福爱百年珠宝有限公司 | AF114: 其他（临时工、未就业人员等） | AG114: 贵州省榕江县 | AH114: 2012年6月取得高级中学地理教师资格证2011年7月取得工程测量员四级资格证 | AI114: 是 | AJ114: 13037848679 | AK114: 无 | AM114: 13985841437 | AN114: 榕江县月亮山自然保护区工作站 | AO114: 13031专业技术岗位 | AP114: 04年09-07年07榕江县第一中学高中07年09-08年07天柱县民族中学高中08年09-12年07贵州师范大学12年06-13年08周生生珠宝14年05-18年02上海福云商贸有限公司18年02-10路威酩轩香水化妆品公司2019.03-07福爱百年珠宝 | AR114: 2 | AS114: 12 | AT114: 13 | AV114: 21 | AW114: 3 | AX114: 1 | AY114: 05 | AZ114: 1 | BA114: 126130926 | BB114: 126130926031 | BC114: 362019071522613074896 | BE114: 66.5 | BF114: 33.25 | BG114: 79.33 | BH114: 39.67 | BI114: =RANK(BE114,$BE$114:$BE$116) -> 3 | BJ114: 递补入围资格复审 | BL114: 合格 | BP114: 72.92 | BQ114: =RANK(BP114,$BP$114:$BP$116) -> 1 | BR114: 入围体检 | BS114: 2019-09-08
B115: 1320190414 | D115: 26 | E115: 杨升荣 | F115: 专业技术岗位 | G115: 《综合知识》类 | H115: T362019071522613060576 | J115: 522632199505127065 | L115: 贵州省黔东南自治州 | M115: 榕江县 | N115: 060576 | P115: 女 | Q115: 19950512 | R115: 贵州省榕江县 | S115: 苗族 | T115: 群众 | U115: 黔东南民族职业技术学院 | W115: 园林技术 | X115: 大学专科毕业 | Y115: 无 | AA115: 2017.07 | AB115: 贵州省榕江县平阳乡伍社村二组 | AC115: 是 | AD115: 贵州省榕江县平阳乡伍社村二组 | AE115: 无 | AF115: 其他（临时工、未就业人员等） | AG115: 贵州省榕江县 | AH115: 无 | AI115: 是 | AJ115: 18212238298 | AK115: 18212238298 | AM115: 18798588037 | AN115: 榕江县月亮山自然保护区工作站 | AO115: 13031专业技术岗位 | AP115: 2011.9-2014.6就读于凯里市赏郎高中2014.9-2017.7就读于黔东南民族职业技术学院2016.6-2017.6在黔东南州工商行政管理局凯里经济开发区工商分局实习2017.6-2019.3在黔东南州工商行政管理局凯里经济开发区工商分局上班 | AR115: 2 | AS115: 06 | AT115: 13 | AV115: 31 | AW115: 4 | AX115: 1 | AY115: 05 | AZ115: 1 | BA115: 126130926 | BB115: 126130926031 | BC115: 362019071522613060576 | BE115: 73.45 | BF115: 36.73 | BG115: 69.33 | BH115: 34.67 | BI115: =RANK(BE115,$BE$114:$BE$116) -> 2 | BJ115: 入围资格复审 | BK115: 2019年8月－9日 | BL115: 合格 | BP115: 71.39 | BQ115: =RANK(BP115,$BP$114:$BP$116) -> 2
B116: 1320190415 | D116: 27 | E116: 张宪府 | F116: 专业技术岗位 | G116: 《综合知识》类 | H116: T362019071522613068250 | J116: 522327199001010819 | L116: 贵州省黔东南自治州 | M116: 榕江县 | N116: 068250 | P116: 男 | Q116: 19900101 | R116: 贵州省册亨县 | S116: 汉族 | T116: 中国共产主义青年团团员 | U116: 黔东南民族职业技术学院 | W116: 园林技术 | X116: 大学专科毕业 | Y116: 无 | AA116: 201207 | AB116: 贵州省册亨县冗渡镇岜么村 | AC116: 是 | AD116: 贵州省册亨县冗渡镇岜么村岩洞组 | AE116: 无 | AF116: 其他（临时工、未就业人员等） | AG116: 贵州省册亨县 | AH116: 无 | AI116: 是 | AJ116: 15121479221 | AK116: 15121479221 | AM116: 18208688426 | AN116: 榕江县月亮山自然保护区工作站 | AO116: 13031专业技术岗位 | AP116: 2003年9月-2009年6月册亨民族高；2009年9月-2012年7月黔东南民族职业技术学院；2012年10月-2016年5月岑巩县德意房地产公司；2016年7月-2019年5月浙江宁波群创光电公；2019年5月至今在家待业。 | AR116: 1 | AS116: 01 | AT116: 03 | AV116: 31 | AW116: 4 | AX116: 1 | AY116: 05 | AZ116: 1 | BA116: 126130926 | BB116: 126130926031 | BC116: 362019071522613068250 | BE116: 73.9 | BF116: 36.95 | BG116: 61.33 | BH116: 30.67 | BI116: =RANK(BE116,$BE$114:$BE$116) -> 1 | BJ116: 入围资格复审 | BK116: 2019年8月－9日 | BL116: 合格 | BP116: 67.62 | BQ116: =RANK(BP116,$BP$114:$BP$116) -> 3
B117: 1320190416 | D117: 28 | E117: 杨开明 | F117: 管理岗位 | G117: 《综合知识》类 | H117: T362019071522613089552 | J117: 52263219960517431X | L117: 贵州省黔东南自治州 | M117: 榕江县 | N117: 089552 | P117: 男 | Q117: 1996.05.17 | R117: 贵州省榕江县 | S117: 苗族 | T117: 群众 | U117: 安顺学院 | W117: 房地产开发与管理 | X117: 大学本科毕业 | Y117: 学士 | AA117: 2018.07 | AB117: 贵州省榕江县八开镇摆列村二组 | AC117: 是 | AD117: 贵州省榕江县八开镇摆列村二组 | AE117: 无 | AF117: 其他（临时工、未就业人员等） | AG117: 贵州省榕江县 | AH117: 无 | AI117: 是 | AJ117: 18334060348 | AK117: 18334060348 | AM117: 15985552793 | AN117: 榕江县月亮山自然保护区工作站 | AO117: 13032管理岗位 | AP117: 2008年9月1日—2011年7月1日就读于八开民族中学；2011年9月1日—2014年7月1日就读于榕江一中；2014年9月1日—2018年7月1日就读于安顺学院；2018年7月1日—至今是无业人员。 | AR117: 1 | AS117: 06 | AT117: 13 | AV117: 21 | AW117: 3 | AX117: 1 | AY117: 05 | AZ117: 1 | BA117: 126130926 | BB117: 126130926032 | BC117: 362019071522613089552 | BE117: 81.8 | BF117: 40.90 | BG117: 83.33 | BH117: 41.67 | BI117: =RANK(BE117,$BE$117:$BE$119) -> 2 | BJ117: 入围资格复审 | BK117: 2019年8月－9日 | BL117: 合格 | BP117: 82.57 | BQ117: =RANK(BP117,$BP$117:$BP$119) -> 1 | BR117: 入围体检 | BS117: 2019-09-08
B118: 1320190417 | D118: 29 | E118: 李雨龙 | F118: 管理岗位 | G118: 《综合知识》类 | H118: T362019071522613010970 | J118: 522632199412267317 | L118: 贵州省黔东南自治州 | M118: 榕江县 | N118: 010970 | P118: 男 | Q118: 19941226 | R118: 贵州省榕江县 | S118: 汉族 | T118: 群众 | U118: 贵州大学 | W118: 生物工程 | X118: 大学本科毕业 | Y118: 学士 | AA118: 2017.07 | AB118: 贵州省榕江县寨蒿镇居民村二组 | AC118: 是 | AD118: 贵州省榕江县寨蒿镇居民村二组 | AE118: 无 | AF118: 其他（临时工、未就业人员等） | AG118: 贵州省榕江县 | AH118: 无 | AI118: 是 | AJ118: 15599102315 | AK118: 18184591748 | AM118: 13638050611 | AN118: 榕江县月亮山自然保护区工作站 | AO118: 13032管理岗位 | AP118: 20100901-20130701黔东南民族高级中学 20130901-20170701贵州大学 20170701-至今临时性就业 | AR118: 1 | AS118: 01 | AT118: 13 | AV118: 21 | AW118: 3 | AX118: 1 | AY118: 05 | AZ118: 1 | BA118: 126130926 | BB118: 126130926032 | BC118: 362019071522613010970 | BE118: 82.75 | BF118: 41.38 | BG118: 82 | BH118: 41.00 | BI118: =RANK(BE118,$BE$117:$BE$119) -> 1 | BJ118: 入围资格复审 | BK118: 2019年8月－9日 | BL118: 合格 | BP118: 82.38 | BQ118: =RANK(BP118,$BP$117:$BP$119) -> 2
B119: 1320190418 | D119: 30 | E119: 吴家财 | F119: 管理岗位 | G119: 《综合知识》类 | H119: T362019071522613044574 | J119: 522632198409247310 | L119: 贵州省黔东南自治州 | M119: 榕江县 | N119: 044574 | P119: 男 | Q119: 1984.09.24 | R119: 贵州省榕江县 | S119: 侗族 | T119: 群众 | U119: 安徽工业大学 | W119: 材料成型及控制工程 | X119: 大学本科毕业 | Y119: 学士 | AA119: 2006.07 | AB119: 贵州省榕江县古州镇西环中路 | AC119: 是 | AD119: 贵州省榕江县古州镇西环中路东昇榕府二单元1401 | AE119: 无 | AF119: 其他（临时工、未就业人员等） | AG119: 贵州省榕江县 | AH119: 无 | AI119: 是 | AJ119: 15186937017 | AK119: 15186937017 | AM119: 15121404636 | AN119: 榕江县月亮山自然保护区工作站 | AO119: 13032管理岗位 | AP119: 1996年9月-1999年7月就读榕江县第二中学 1999年9月-2002年7月就读凯里振华民族中学 2002年9月-2006年7月就读安徽工业大学 2006年7月至今在家待业 | AR119: 1 | AS119: 12 | AT119: 13 | AV119: 21 | AW119: 3 | AX119: 1 | AY119: 05 | AZ119: 1 | BA119: 126130926 | BB119: 126130926032 | BC119: 362019071522613044574 | BE119: 78.6 | BF119: 39.30 | BG119: 78.67 | BH119: 39.34 | BI119: =RANK(BE119,$BE$117:$BE$119) -> 3 | BJ119: 入围资格复审 | BK119: 2019年8月－9日 | BL119: 合格 | BP119: 78.64 | BQ119: =RANK(BP119,$BP$117:$BP$119) -> 3
B120: 1320190419 | D120: 1 | E120: 李家福 | F120: 管理岗位 | G120: 《综合知识》类 | H120: T362019071522613007561 | J120: 522632199108016812 | L120: 贵州省黔东南自治州 | M120: 榕江县 | N120: 007561 | P120: 男 | Q120: 1991.08.01 | R120: 贵州省榕江县 | S120: 苗族 | T120: 群众 | U120: 南通大学 | W120: 轻化工程 | X120: 大学本科毕业 | Y120: 学士 | AA120: 2014.07 | AB120: 贵州省榕江县两汪乡 | AC120: 是 | AD120: 贵州省榕江县两汪乡长吉村二组53号 | AE120: 松桃民族工艺科 | AF120: 其他（临时工、未就业人员等） | AG120: 贵州省榕江县 | AH120: 无 | AI120: 是 | AJ120: 18212273500 | AK120: 18212273500 | AM120: 15167795119 | AN120: 榕江县林木种苗站 | AO120: 13033管理岗位 | AP120: 2006.09-2010.06就读于榕江一中理科班 2010.09-2014.07就读于南通大学轻化工程 2014.08-2015.08任职于温州卓效企业管理公司 2015.09-今于松桃民族工艺科 | AR120: 1 | AS120: 06 | AT120: 13 | AV120: 21 | AW120: 3 | AX120: 1 | AY120: 05 | AZ120: 1 | BA120: 126130927 | BB120: 126130927033 | BC120: 362019071522613007561 | BE120: 79.3 | BF120: 39.65 | BG120: 77.67 | BH120: 38.84 | BI120: =RANK(BE120,$BE$120:$BE$122) -> 2 | BJ120: 入围资格复审 | BK120: 2019年8月－9日 | BL120: 合格 | BP120: 78.49 | BQ120: =RANK(BP120,$BP$120:$BP$122) -> 1 | BR120: 入围体检 | BS120: 2019-09-08
B121: 1320190420 | D121: 2 | E121: 杨罗坤 | F121: 管理岗位 | G121: 《综合知识》类 | H121: T362019071522613055703 | J121: 522632198910056112 | L121: 贵州省黔东南自治州 | M121: 榕江县 | N121: 055703 | P121: 男 | Q121: 1989.10.05 | R121: 贵州省榕江县 | S121: 侗族 | T121: 群众 | U121: 贵州大学 | W121: 材料物理 | X121: 大学本科毕业 | Y121: 学士 | AA121: 2015.07 | AB121: 贵州省榕江县乐里镇 | AC121: 是 | AD121: 贵州省榕江县乐里镇 | AE121: 无 | AF121: 其他（临时工、未就业人员等） | AG121: 贵州省榕江县 | AH121: 无 | AI121: 是 | AJ121: 18230719227 | AK121: 18230719227 | AM121: 15721721300 | AN121: 榕江县林木种苗站 | AO121: 13033管理岗位 | AP121: 2008.9-2011.7榕江县一中。2011.9-2015.7贵州大学材料与冶金学院。2014.7至8参加学校在贵阳0八三的见习。2015.7-2016.5就职于贵州中鼎环保科技有限公司。2016.6-2018.6就职于中建西部建设贵州公司。2018.7至今待业。 | AR121: 1 | AS121: 12 | AT121: 13 | AV121: 21 | AW121: 3 | AX121: 1 | AY121: 05 | AZ121: 1 | BA121: 126130927 | BB121: 126130927033 | BC121: 362019071522613055703 | BE121: 79.2 | BF121: 39.60 | BG121: 75 | BH121: 37.50 | BI121: =RANK(BE121,$BE$120:$BE$122) -> 3 | BJ121: 入围资格复审 | BK121: 2019年8月－9日 | BL121: 合格 | BP121: 77.10 | BQ121: =RANK(BP121,$BP$120:$BP$122) -> 2
B122: 1320190421 | D122: 3 | E122: 杨光向 | F122: 管理岗位 | G122: 《综合知识》类 | H122: T362019071522613048509 | J122: 52263219900118607X | L122: 贵州省黔东南自治州 | M122: 榕江县 | N122: 048509 | P122: 男 | Q122: 1990.01.18 | R122: 贵州省榕江县 | S122: 侗族 | T122: 群众 | U122: 北方民族大学 | W122: 制药工程 | X122: 大学本科毕业 | Y122: 学士 | AA122: 2014.07 | AB122: 贵州省榕江县乐里镇平相村第二组 | AC122: 是 | AD122: 贵州省榕江县乐里镇平相村第二组 | AE122: 无 | AF122: 其他（临时工、未就业人员等） | AG122: 贵州省榕江县 | AH122: 无 | AI122: 是 | AJ122: 17680328365 | AK122: 17680328365 | AM122: 18708515152 | AN122: 榕江县林木种苗站 | AO122: 13033管理岗位 | AP122: 2006年9月1日至2010年7月1日就读于榕江县第一中学；2010年9月1日至2014年7月1日就读于北方民族大学；2014年7月2日至今待业。 | AR122: 1 | AS122: 12 | AT122: 13 | AV122: 21 | AW122: 3 | AX122: 1 | AY122: 05 | AZ122: 1 | BA122: 126130927 | BB122: 126130927033 | BC122: 362019071522613048509 | BE122: 79.9 | BF122: 39.95 | BG122: 69.33 | BH122: 34.67 | BI122: =RANK(BE122,$BE$120:$BE$122) -> 1 | BJ122: 入围资格复审 | BK122: 2019年8月－9日 | BL122: 合格 | BP122: 74.62 | BQ122: =RANK(BP122,$BP$120:$BP$122) -> 3
B123: 1320190422 | D123: 4 | E123: 杨俊 | F123: 专业技术岗位 | G123: 《综合知识》类 | H123: T362019071522613013867 | J123: 522227199209216810 | L123: 贵州省黔东南自治州 | M123: 榕江县 | N123: 013867 | P123: 男 | Q123: 1992.09.21 | R123: 贵州省德江县 | S123: 土家族 | T123: 中国共产主义青年团团员 | U123: 中国石油大学（北京） | W123: 测控技术与仪器 | X123: 大学本科毕业 | Y123: 学士 | AA123: 201607 | AB123: 贵州省德江县青龙镇红旗街 | AC123: 是 | AD123: 贵州省德江县青龙镇红旗街 | AE123: 贵州省贵安新区管理委员会经济发展局（临聘人员） | AF123: 其他（临时工、未就业人员等） | AG123: 贵州省贵阳市 | AH123: 无 | AI123: 是 | AJ123: 13027832284 | AK123: 88909788 | AM123: 18185646813 | AN123: 榕江县建设工程质量安全服务站 | AO123: 13052专业技术岗位 | AP123: 2008-2011贵州省实验中学读高中 2011-2016中国石油大学（北京）读大学 2016-2017中国石化销售有限公司华南分公司贵阳管理处工作 2018-至今贵州贵安新区管理委员会经济发展局工作 | AR123: 1 | AS123: 15 | AT123: 03 | AV123: 21 | AW123: 3 | AX123: 1 | AY123: 05 | AZ123: 1 | BA123: 126130943 | BB123: 126130943052 | BC123: 362019071522613013867 | BE123: 82.6 | BF123: 41.30 | BG123: 82 | BH123: 41.00 | BI123: =RANK(BE123,$BE$123:$BE$125) -> 1 | BJ123: 入围资格复审 | BK123: 2019年8月－9日 | BL123: 合格 | BP123: 82.30 | BQ123: =RANK(BP123,$BP$123:$BP$125) -> 1 | BR123: 入围体检 | BS123: 2019-09-08
B124: 1320190423 | D124: 5 | E124: 张凯福 | F124: 专业技术岗位 | G124: 《综合知识》类 | H124: T362019071522613000675 | J124: 522630199305170410 | L124: 贵州省黔东南自治州 | M124: 榕江县 | N124: 000675 | P124: 男 | Q124: 1993.05.17 | R124: 贵州省台江县 | S124: 苗族 | T124: 中国共产主义青年团团员 | U124: 河南工业大学 | W124: 测控技术与仪器 | X124: 大学本科毕业 | Y124: 学士 | AA124: 2016.07 | AB124: 贵州省台江县老屯乡 | AC124: 是 | AD124: 贵州省台江县文昌花园小区1单元302 | AE124: 北大荒乐福旗舰连锁店 | AF124: 其他（临时工、未就业人员等） | AG124: 贵州省台江县 | AH124: 2013年5月取得普通话二级乙等证书 2015年4月取得中级电工证书 | AI124: 是 | AJ124: 18744845638 | AK124: 15185665193 | AM124: 15121418915 | AN124: 榕江县建设工程质量安全服务站 | AO124: 13052专业技术岗位 | AP124: 2008.8-2011.6 凯里市第三中学 2012.9-2016.7 河南工业大学 2016.8-2018.1 中控智慧科技股份有限公司 结构工程师 2018.1-2019.3 黔东南新农城乡网络科技服务有限公司 行政管理 | AR124: 1 | AS124: 06 | AT124: 03 | AV124: 21 | AW124: 3 | AX124: 1 | AY124: 05 | AZ124: 1 | BA124: 126130943 | BB124: 126130943052 | BC124: 362019071522613000675 | BE124: 81.6 | BF124: 40.80 | BG124: 82 | BH124: 41.00 | BI124: =RANK(BE124,$BE$123:$BE$125) -> 3 | BJ124: 入围资格复审 | BK124: 2019年8月－9日 | BL124: 合格 | BP124: 81.80 | BQ124: =RANK(BP124,$BP$123:$BP$125) -> 2
B125: 1320190424 | D125: 6 | E125: 潘忠宇 | F125: 专业技术岗位 | G125: 《综合知识》类 | H125: T362019071522613011547 | J125: 522633199707127094 | L125: 贵州省黔东南自治州 | M125: 榕江县 | N125: 011547 | P125: 男 | Q125: 19970712 | R125: 贵州省从江县 | S125: 侗族 | T125: 群众 | U125: 湘潭大学 | W125: 测控技术与仪器 | X125: 大学本科毕业 | Y125: 学士 | AA125: 2019.07 | AB125: 贵州省从江县下江镇平江村一组 | AC125: 是 | AD125: 贵州省从江县下江镇平江村一组 | AE125: 无 | AF125: 其他（临时工、未就业人员等） | AG125: 贵州省从江县 | AH125: 无 | AI125: 是 | AJ125: 18890338226 | AK125: 18890338226 | AM125: 13885516527 | AN125: 榕江县建设工程质量安全服务站 | AO125: 13052专业技术岗位 | AP125: 2012.09-2015.07贵州省凯里市凯里学院附属中学就读高中 2015.09-2019.07湖南省湘潭市湘潭大学物理与光电工程学院测控技术与仪器专业就读本科 | AR125: 1 | AS125: 12 | AT125: 13 | AV125: 21 | AW125: 3 | AX125: 1 | AY125: 05 | AZ125: 1 | BA125: 126130943 | BB125: 126130943052 | BC125: 362019071522613011547 | BE125: 82.35 | BF125: 41.18 | BG125: 80.33 | BH125: 40.17 | BI125: =RANK(BE125,$BE$123:$BE$125) -> 2 | BJ125: 入围资格复审 | BK125: 2019年8月－9日 | BL125: 合格 | BP125: 81.34 | BQ125: =RANK(BP125,$BP$123:$BP$125) -> 3
B126: 1320190425 | D126: 7 | E126: 全芳 | F126: 管理岗位 | G126: 《综合知识》类 | H126: T362019071522613028586 | J126: 522632199310200023 | L126: 贵州省黔东南自治州 | M126: 榕江县 | N126: 028586 | P126: 女 | Q126: 1993.10.20 | R126: 贵州省黔东南州榕江县 | S126: 汉族 | T126: 中国共产主义青年团团员 | U126: 贵州大学 | W126: 英语 | X126: 大学本科毕业 | Y126: 学士 | AA126: 2015.07 | AB126: 贵州省黔东南州榕江县古州镇 | AC126: 是 | AD126: 贵州省黔东南州榕江县古州镇西环北路31-1号 | AE126: 无 | AF126: 其他（临时工、未就业人员等） | AG126: 贵州省黔东南州榕江县 | AH126: 2017年1月取得广播电视编辑记者资格合格证 | AI126: 是 | AJ126: 15772502623 | AK126: 18285110943 | AM126: 13885532163 | AN126: 榕江县移民服务中心 | AO126: 13026管理岗位 | AP126: 2008年9月至2011年6月，就读于榕江县第一中学； 2011年9月至2015年7月，就读于贵州大学； 2015年7月至2018年3月，就业于贵阳广播电视台从事编导及代理制片工作； 2018年3月至今待业。 | AR126: 2 | AS126: 01 | AT126: 03 | AV126: 21 | AW126: 3 | AX126: 1 | AY126: 05 | AZ126: 1 | BA126: 126130922 | BB126: 126130922026 | BC126: 362019071522613028586 | BE126: 85 | BF126: 42.50 | BG126: 86.67 | BH126: 43.34 | BI126: =RANK(BE126,$BE$126:$BE$131) -> 1 | BJ126: 入围资格复审 | BK126: 2019年8月－9日 | BL126: 合格 | BP126: 85.84 | BQ126: =RANK(BP126,$BP$126:$BP$131) -> 1 | BR126: 入围体检 | BS126: 2019-09-08
B127: 1320190426 | D127: 8 | E127: 杨应仙 | F127: 管理岗位 | G127: 《综合知识》类 | H127: T362019071522613024265 | J127: 522632198603087840 | L127: 贵州省黔东南自治州 | M127: 榕江县 | N127: 024265 | P127: 女 | Q127: 1986.03.08 | R127: 贵州省榕江县 | S127: 侗族 | T127: 中国共产党党员 | U127: 贵州大学 | W127: 旅游管理 | X127: 大学本科毕业 | Y127: 学士 | AA127: 2009.07 | AB127: 贵州省榕江县朗洞镇 | AC127: 是 | AD127: 贵州省榕江县朗洞镇宰岑村二组 | AE127: 未就业 | AF127: 其他（临时工、未就业人员等） | AG127: 贵州省榕江县 | AH127: 无 | AI127: 是 | AJ127: 18285131549 | AK127: 无 | AM127: 13765577219 | AN127: 榕江县移民服务中心 | AO127: 13026管理岗位 | AP127: 2002.09-2005.07毕业于榕江第一中学 2005.09-2009.07毕业于贵州大学人文学院旅游管理专业，毕业后一直在民营企业从事金融产品销售类工作并取得一定的成绩 | AR127: 2 | AS127: 12 | AT127: 01 | AV127: 21 | AW127: 3 | AX127: 1 | AY127: 05 | AZ127: 1 | BA127: 126130922 | BB127: 126130922026 | BC127: 362019071522613024265 | BE127: 81.4 | BF127: 40.70 | BG127: 84.67 | BH127: 42.34 | BI127: 4 | BJ127: 入围资格复审 | BK127: 2019年8月－9日 | BL127: 合格 | BP127: 83.04 | BQ127: 2 | BR127: 入围体检 | BS127: 2019-09-08
B128: 1320190427 | D128: 9 | E128: 粟多英 | F128: 管理岗位 | G128: 《综合知识》类 | H128: T362019071522613026761 | J128: 522632199407107327 | L128: 贵州省黔东南自治州 | M128: 榕江县 | N128: 026761 | P128: 女 | Q128: 1994.07.10 | R128: 贵州省榕江县 | S128: 侗族 | T128: 中国共产主义青年团团员 | U128: 丽水学院 | W128: 思想政治教育 | X128: 大学本科毕业 | Y128: 学士 | AA128: 2018.06 | AB128: 贵州省榕江县寨蒿镇 | AC128: 是 | AD128: 贵州省榕江县寨蒿镇高赧村一组 | AE128: 无 | AF128: 其他（临时工、未就业人员等） | AG128: 贵州省榕江县 | AH128: 无 | AI128: 是 | AJ128: 18386731379 | AK128: 18386731379 | AM128: 15185587343 | AN128: 榕江县移民服务中心 | AO128: 13026管理岗位 | AP128: 2010年9月至2013年6月于榕江一中学习 2014年9月至2018年6月于浙江省丽水学院思想政治教育专业学习 2018年9月至2019年3月于榕江县教育局见习 2019年4月至今在家待业 | AR128: 2 | AS128: 12 | AT128: 03 | AV128: 21 | AW128: 3 | AX128: 1 | AY128: 05 | AZ128: 1 | BA128: 126130922 | BB128: 126130922026 | BC128: 362019071522613026761 | BE128: 81.6 | BF128: 40.80 | BG128: 83 | BH128: 41.50 | BI128: 3 | BJ128: 入围资格复审 | BK128: 2019年8月－9日 | BL128: 合格 | BP128: 82.30 | BQ128: 3
B129: 1320190428 | D129: 10 | E129: 王家欢 | F129: 管理岗位 | G129: 《综合知识》类 | H129: T362019071522613042079 | J129: 522632199402014324 | L129: 贵州省黔东南自治州 | M129: 榕江县 | N129: 042079 | P129: 女 | Q129: 1994.02.01 | R129: 贵州省榕江县 | S129: 苗族 | T129: 中国共产主义青年团团员 | U129: 上海工程技术大学 | W129: 公共事业管理 | X129: 大学本科毕业 | Y129: 学士 | AA129: 2018.06 | AB129: 贵州省榕江县八开乡 | AC129: 是 | AD129: 贵州省榕江县八开乡腊酉村三组 | AE129: 黔东南州心理健康教育协会 | AF129: 其他（临时工、未就业人员等） | AG129: 贵州省榕江县 | AH129: 无 | AI129: 是 | AJ129: 15186794876 | AK129: 18444901654 | AM129: 13595566413 | AN129: 榕江县移民服务中心 | AO129: 13026管理岗位 | AP129: 2009.9-2012.7凯里学院附属中学（高中） 2012.9-2013.7榕江一中（复读） 2013.9-2014.7吉首大学（预科） 2014.9-2018.6上海工程技术大学 2018.7-11月榕江县残联 2018.12至今州心理健康教育协会 | AR129: 2 | AS129: 06 | AT129: 03 | AV129: 21 | AW129: 3 | AX129: 1 | AY129: 05 | AZ129: 1 | BA129: 126130922 | BB129: 126130922026 | BC129: 362019071522613042079 | BE129: 81.3 | BF129: 40.65 | BG129: 80.67 | BH129: 40.34 | BI129: 6 | BJ129: 入围资格复审 | BK129: 2019年8月－9日 | BL129: 合格 | BP129: 80.99 | BQ129: 4
B130: 1320190429 | D130: 11 | E130: 杨青 | F130: 管理岗位 | G130: 《综合知识》类 | H130: T362019071522613030990 | J130: 522632198802102812 | L130: 贵州省黔东南自治州 | M130: 榕江县 | N130: 030990 | P130: 男 | Q130: 19880210 | R130: 贵州省榕江县 | S130: 侗族 | T130: 群众 | U130: 贵州大学 | W130: 工业工程 | X130: 大学本科毕业 | Y130: 学士 | AA130: 2011.07 | AB130: 贵州省榕江县平江乡田榜村七组 | AC130: 是 | AD130: 贵州省榕江县平江乡田榜村七组 | AE130: 无 | AF130: 其他（临时工、未就业人员等） | AG130: 贵州省榕江县 | AH130: 无 | AI130: 是 | AJ130: 15085698884 | AK130: 18286556758 | AM130: 18785584007 | AN130: 榕江县移民服务中心 | AO130: 13026管理岗位 | AP130: 2003年9月至2007年7月就读于榕江县第一中学；2007年9月至2011年7月就读于贵州大学机械工程学院工业工程专业；2010年12月至2011年12月在中国平安财产保险股份有限公司贵州分公司做查勘定损工作；2012年1月至今待业。 | AR130: 1 | AS130: 12 | AT130: 13 | AV130: 21 | AW130: 3 | AX130: 1 | AY130: 05 | AZ130: 1 | BA130: 126130922 | BB130: 126130922026 | BC130: 362019071522613030990 | BE130: 82.65 | BF130: 41.33 | BG130: 76.67 | BH130: 38.34 | BI130: 2 | BJ130: 入围资格复审 | BK130: 2019年8月－9日 | BL130: 合格 | BP130: 79.66 | BQ130: 5
B131: 1320190430 | D131: 12 | E131: 吴涛 | F131: 管理岗位 | G131: 《综合知识》类 | H131: T362019071522613077390 | J131: 522632199306088817 | L131: 贵州省黔东南自治州 | M131: 榕江县 | N131: 077390 | P131: 男 | Q131: 1993.06.08 | R131: 贵州省榕江县 | S131: 侗族 | T131: 群众 | U131: 内蒙古民族大学 | W131: 机械设计制造及其自动化 | X131: 大学本科毕业 | Y131: 学士 | AA131: 2017.06 | AB131: 贵州省榕江县古州镇 | AC131: 是 | AD131: 贵州省榕江县古州镇万都富宇国际小区11栋502 | AE131: 无 | AF131: 其他（临时工、未就业人员等） | AG131: 贵州省榕江县 | AH131: 无 | AI131: 是 | AJ131: 18798597989 | AK131: 18798597989 | AM131: 15186792296 | AN131: 榕江县移民服务中心 | AO131: 13026管理岗位 | AP131: 2009年9月—2013年6月就读于榕江县一中 2013年9月—2017年6月就读于内蒙古民族大学 2017年6月—2019年7月待业中 | AR131: 1 | AS131: 12 | AT131: 13 | AV131: 21 | AW131: 3 | AX131: 1 | AY131: 05 | AZ131: 1 | BA131: 126130922 | BB131: 126130922026 | BC131: 362019071522613077390 | BE131: 81.35 | BF131: 40.68 | BG131: 77.67 | BH131: 38.84 | BI131: 5 | BJ131: 入围资格复审 | BK131: 2019年8月－9日 | BL131: 合格 | BP131: 79.51 | BQ131: 6
A132: 第五考场 | B132: 1320190501 | E132: 杨文平 | F132: 专业技术岗位 | G132: 《综合知识》类 | H132: T362019071522613002860 | J132: 522632199001202594 | L132: 贵州省黔东南自治州 | M132: 榕江县 | N132: 002860 | P132: 男 | Q132: 1990.01.20 | R132: 贵州省榕江县 | S132: 侗族 | T132: 群众 | U132: 江西农业大学 | W132: 水产养殖学 | X132: 大学本科毕业 | Y132: 无 | AA132: 2014.07 | AB132: 贵州省榕江县平永镇 | AC132: 是 | AD132: 贵州省榕江县平永镇柳兴村二组 | AE132: 柳兴村居民委员会 | AF132: 其他（临时工、未就业人员等） | AG132: 贵州省榕江县 | AH132: 3013年11月取得机动车驾驶证C1证书。 | AI132: 是 | AJ132: 18770042910 | AK132: 18770042910 | AM132: 杨秀群，15186846475 | AN132: 榕江县平永镇农业服中心 | AO132: 13148专业技术岗位 | AP132: 2005.9-2010.7就读于榕江县第一中学；2010.9-2014.7就读于江西农业大学；2014.7-2015.2实习；2015.3-2016.12就职广东正大水产有限公司；2017.3-2018.1在柳兴村同步小康工作组工作；2018.2-今任平永镇柳兴村副主任。 | AR132: 1 | AS132: 12 | AT132: 13 | AV132: 21 | AW132: 4 | AX132: 1 | AY132: 05 | AZ132: 1 | BA132: 126131017 | BB132: 126131017148 | BC132: 362019071522613002860 | BE132: 71.05 | BF132: 35.53 | BG132: 81 | BH132: 40.50 | BI132: =RANK(BE132,$BE$132:$BE$134) -> 2 | BJ132: 入围资格复审 | BK132: 2019年8月－9日 | BL132: 合格 | BP132: 76.03 | BQ132: =RANK(BP132,$BP$132:$BP$134) -> 1 | BR132: 入围体检 | BS132: 2019-09-08
B133: 1320190502 | E133: 张玉贵 | F133: 专业技术岗位 | G133: 《综合知识》类 | H133: T362019071522613048017 | J133: 522632199112227073 | L133: 贵州省黔东南自治州 | M133: 榕江县 | N133: 048017 | P133: 男 | Q133: 1991.12.22 | R133: 贵州省榕江县 | S133: 苗族 | T133: 群众 | U133: 湖南应用技术学院 | W133: 水产养殖 | X133: 大学专科毕业 | Y133: 无 | AA133: 2015.06 | AB133: 贵州省榕江县平阳乡小丹江村 | AC133: 是 | AD133: 贵州省榕江县平阳乡小丹江村 | AE133: 榕江县平阳乡派出所 | AF133: 其他（临时工、未就业人员等） | AG133: 贵州省榕江县 | AH133: 2015年5月取得水产养殖专业中级证书 | AI133: 是 | AJ133: 15085687631 | AK133: 15085687631 | AM133: 18212262607 | AN133: 榕江县平永镇农业服中心 | AO133: 13148专业技术岗位 | AP133: 2009.9-2012.7就读于雷山县民族高中。 2012.9-2015.6就读于湖南应用技术学院生物工程系水产养殖专业。 2015至今在家期间帮助父亲生产管理和销售青钱柳茶叶，偶尔在外做零工。 | AR133: 1 | AS133: 06 | AT133: 13 | AV133: 31 | AW133: 4 | AX133: 1 | AY133: 05 | AZ133: 1 | BA133: 126131017 | BB133: 126131017148 | BC133: 362019071522613048017 | BE133: 67.8 | BF133: 33.90 | BG133: 83 | BH133: 41.50 | BI133: =RANK(BE133,$BE$132:$BE$134) -> 3 | BJ133: 入围资格复审 | BK133: 2019年8月－9日 | BL133: 合格 | BP133: 75.40 | BQ133: =RANK(BP133,$BP$132:$BP$134) -> 2
B134: 1320190503 | E134: 杨玉梅 | F134: 专业技术岗位 | G134: 《综合知识》类 | H134: T362019071522613038923 | J134: 522634199412063229 | L134: 贵州省黔东南自治州 | M134: 榕江县 | N134: 038923 | P134: 女 | Q134: 1994.12.06 | R134: 贵州省雷山县 | S134: 苗族 | T134: 中国共产主义青年团团员 | U134: 黔东南民族职业技术学院 | W134: 畜牧兽医 | X134: 大学专科毕业 | Y134: 无 | AA134: 2017.07 | AB134: 贵州省雷山县大塘镇 | AC134: 是 | AD134: 贵州省雷山县大塘镇掌坳村四组 | AE134: 贵州省雷山县郎德镇人民政府 | AF134: 其他（临时工、未就业人员等） | AG134: 贵州省雷山县 | AH134: 2016年3月1日取得动物疾病防治员三级。 | AI134: 是 | AJ134: 15286608037 | AK134: 18685701886 | AM134: 15985563926 | AN134: 榕江县平永镇农业服中心 | AO134: 13148专业技术岗位 | AP134: 2011年9月1日—2014年7月1日雷山县民族中学 2014年9月1日—2017年7月1日黔东南民族职业技术学院 2017年7月2日—2017年10月30日中国人寿保险股份有限公司 2017年11月1日—2019年7月至今雷山县郎德镇人民政府 | AR134: 2 | AS134: 06 | AT134: 03 | AV134: 31 | AW134: 4 | AX134: 1 | AY134: 05 | AZ134: 1 | BA134: 126131017 | BB134: 126131017148 | BC134: 362019071522613038923 | BE134: 72.85 | BF134: 36.43 | BG134: 74.66 | BH134: 37.33 | BI134: =RANK(BE134,$BE$132:$BE$134) -> 1 | BJ134: 入围资格复审 | BK134: 2019年8月－9日 | BL134: 合格 | BP134: 73.76 | BQ134: =RANK(BP134,$BP$132:$BP$134) -> 3
B135: 1320190505 | D135: 17 | E135: 王金垒 | F135: 管理岗位 | G135: 《综合知识》类 | H135: T362019071522613029987 | J135: 522730199408160050 | L135: 贵州省黔东南自治州 | M135: 榕江县 | N135: 029987 | P135: 男 | Q135: 1994.08.16 | R135: 重庆市綦江县 | S135: 土家族 | T135: 中国共产主义青年团团员 | U135: 福建医科大学 | W135: 预防医学 | X135: 大学本科毕业 | Y135: 学士 | AA135: 2017.07 | AB135: 贵州省贵阳市南明区四方河路一号 | AC135: 是 | AD135: 贵阳市南明区四方河路一号55栋 | AE135: 无 | AF135: 其他（临时工、未就业人员等） | AG135: 贵州省贵阳市南明区 | AH135: 无 | AI135: 是 | AJ135: 18198297261 | AK135: 无 | AM135: 13765058678 | AN135: 榕江县大健康产业服务中心 | AO135: 13040管理岗位 | AP135: 2009.09-2012.06贵阳市第六中学就读 2012.09-2017.07福建医科大学就读 2017.07-2019.06贵州省富慧汽配经营部 2019.06-至今白云区新星社区卫生服务站（临时工） | AR135: 1 | AS135: 15 | AT135: 03 | AV135: 21 | AW135: 3 | AX135: 1 | AY135: 05 | AZ135: 1 | BA135: 126130931 | BB135: 126130931040 | BC135: 362019071522613029987 | BE135: 79.8 | BF135: 39.90 | BG135: 82 | BH135: 41.00 | BI135: =RANK(BE135,$BE$135:$BE$139) -> 2 | BJ135: 入围资格复审 | BK135: 2019年8月－9日 | BL135: 合格 | BP135: 80.90 | BQ135: =RANK(BP135,$BP$135:$BP$142) -> 1 | BR135: 入围体检 | BS135: 2019-09-08
B136: 1320190506 | D136: 18 | E136: 毛国林 | F136: 管理岗位 | G136: 《综合知识》类 | H136: T362019071522613031872 | J136: 522129199312175516 | L136: 贵州省黔东南自治州 | M136: 榕江县 | N136: 031872 | P136: 男 | Q136: 19931217 | R136: 贵州省余庆县 | S136: 汉族 | T136: 群众 | U136: 遵义师范学院 | W136: 植物生物技术 | X136: 大学本科毕业 | Y136: 学士 | AA136: 201507 | AB136: 贵州省余庆县关兴镇 | AC136: 是 | AD136: 贵州省遵义市余庆县关兴镇高炉村钟扑组1号 | AE136: 无 | AF136: 其他（临时工、未就业人员等） | AG136: 贵州省余庆县 | AH136: 2018年7月取得高中生物教师资格证书。 | AI136: 是 | AJ136: 17785777199 | AK136: 15286076602 | AM136: 18285119183 | AN136: 榕江县大健康产业服务中心 | AO136: 13040管理岗位 | AP136: 2008.09-2011.06就读贵州省余庆中学；2011.09-2015.07就读于遵义师范学院；2016.02-2016.07余庆县构皮滩中学任生物学科代课教师；2018.02-2018.07遵义市第二十五中学任生物学科代课教师；2018.07-至今待业。 | AR136: 1 | AS136: 01 | AT136: 13 | AV136: 21 | AW136: 3 | AX136: 1 | AY136: 05 | AZ136: 1 | BA136: 126130931 | BB136: 126130931040 | BC136: 362019071522613031872 | BE136: 80.8 | BF136: 40.40 | BG136: 78.33 | BH136: 39.17 | BI136: 1 | BJ136: 入围资格复审 | BK136: 2019年8月－9日 | BL136: 合格 | BP136: 79.57 | BQ136: 2 | BR136: 入围体检 | BS136: 2019-09-08
B137: 1320190507 | D137: 19 | E137: 石璞 | F137: 管理岗位 | G137: 《综合知识》类 | H137: T362019071522613015578 | J137: 522632199610147076 | L137: 贵州省黔东南自治州 | M137: 榕江县 | N137: 015578 | P137: 男 | Q137: 1996.10.14 | R137: 贵州省榕江县 | S137: 侗族 | T137: 中国共产主义青年团团员 | U137: 贵州师范大学 | W137: 园艺 | X137: 大学本科毕业 | Y137: 学士 | AA137: 2018.07 | AB137: 贵州省榕江县平阳乡硐里村一组 | AC137: 是 | AD137: 贵州省榕江县平阳乡硐里村一组 | AE137: 无 | AF137: 其他（临时工、未就业人员等） | AG137: 贵州省榕江县 | AH137: 无 | AI137: 是 | AJ137: 18886101171 | AK137: 18786793142 | AM137: 13595597053 | AN137: 榕江县大健康产业服务中心 | AO137: 13040管理岗位 | AP137: 2011.09—2014.06榕江县民族中学高中学习； 2014.09—2018.07贵州师范大学生命科学学院园艺专业学习； 2018.07—2019.07在家待业. | AR137: 1 | AS137: 12 | AT137: 03 | AV137: 21 | AW137: 3 | AX137: 1 | AY137: 05 | AZ137: 1 | BA137: 126130931 | BB137: 126130931040 | BC137: 362019071522613015578 | BE137: 73.9 | BF137: 36.95 | BG137: 78.66 | BH137: 39.33 | BI137: 4 | BJ137: 入围资格复审 | BK137: 2019年8月－9日 | BL137: 合格 | BP137: 76.28 | BQ137: 3 | BR137: 入围体检 | BS137: 2019-09-08
B138: 1320190508 | D138: 20 | E138: 朱法侯 | F138: 管理岗位 | G138: 《综合知识》类 | H138: T362019071522613008501 | J138: 522632199605288819 | L138: 贵州省黔东南自治州 | M138: 榕江县 | N138: 008501 | P138: 男 | Q138: 1996.05.28 | R138: 贵州省榕江县 | S138: 汉族 | T138: 中国共产主义青年团团员 | U138: 凯里学院 | W138: 园艺 | X138: 大学本科毕业 | Y138: 学士 | AA138: 2019.07 | AB138: 贵州省榕江县崇义乡 | AC138: 是 | AD138: 榕江县古州镇三角井电站旁 | AE138: 无 | AF138: 其他（临时工、未就业人员等） | AG138: 贵州省榕江县 | AH138: 2019年7月取得农学学士学位。 | AI138: 是 | AJ138: 18212241127 | AK138: 15121403917 | AM138: 13885502497 | AN138: 榕江县大健康产业服务中心 | AO138: 13040管理岗位 | AP138: 2011.08-2014.06在贵州省榕江县第一中学读高中，2014.08-2015.07年在贵州省榕江县第一中学复读，2015.09-2019.07在凯里学院大健康学院园艺专业学习，并在2019年7月顺利获得农学学士学位。 | AR138: 1 | AS138: 01 | AT138: 03 | AV138: 21 | AW138: 3 | AX138: 1 | AY138: 05 | AZ138: 1 | BA138: 126130931 | BB138: 126130931040 | BC138: 362019071522613008501 | BE138: 71.7 | BF138: 35.85 | BG138: 80.33 | BH138: 40.17 | BI138: 5 | BJ138: 入围资格复审 | BK138: 2019年8月－9日 | BL138: 合格 | BP138: 76.02 | BQ138: 4
B139: 1320190509 | D139: 21 | E139: 莫莉利 | F139: 管理岗位 | G139: 《综合知识》类 | H139: T362019071522613030474 | J139: 522732199304107346 | L139: 贵州省黔东南自治州 | M139: 榕江县 | N139: 030474 | P139: 女 | Q139: 19930410 | R139: 贵州省三都县 | S139: 水族 | T139: 群众 | U139: 黔南民族师范学院 | W139: 茶学 | X139: 大学本科毕业 | Y139: 学士 | AA139: 201807 | AB139: 贵州省三都水族自治县周覃镇 | AC139: 是 | AD139: 贵州省三都水族自治县周覃镇引虽村中寨组 | AE139: 无 | AF139: 其他（临时工、未就业人员等） | AG139: 贵州省都匀市 | AH139: 2017年12月取得高级茶艺师证和高级评茶员 | AI139: 是 | AJ139: 18722813876 | AK139: 18224842568 | AM139: 17885262605 | AN139: 榕江县大健康产业服务中心 | AO139: 13040管理岗位 | AP139: 2011.8-2014.6就读于都匀一中 2014.9-2018.7就读于黔南民族师范学院 2018.8-至今在家待业 | AR139: 2 | AS139: 25 | AT139: 13 | AV139: 21 | AW139: 3 | AX139: 1 | AY139: 05 | AZ139: 1 | BA139: 126130931 | BB139: 126130931040 | BC139: 362019071522613030474 | BE139: 75.35 | BF139: 37.68 | BG139: 73.33 | BH139: 36.67 | BI139: 3 | BJ139: 入围资格复审 | BK139: 2019年8月－9日 | BL139: 合格 | BP139: 74.34 | BQ139: 5
B140: 1320190510 | D140: 13 | E140: 李南黎 | F140: 管理岗位 | G140: 《综合知识》类 | H140: T362019071522613046422 | J140: 522625199302234326 | L140: 贵州省黔东南自治州 | M140: 榕江县 | N140: 046422 | P140: 女 | Q140: 1993.02.23 | R140: 贵州省镇远县 | S140: 侗族 | T140: 中国共产主义青年团团员 | U140: 贵州医科大学 | W140: 临床医学 | X140: 大学本科毕业 | Y140: 学士 | AA140: 2018.07 | AB140: 贵州省镇远县舞阳镇卫城社区和平四组 | AC140: 是 | AD140: 贵州省镇远县舞阳镇卫城社区和平四组 | AE140: 无 | AF140: 其他（临时工、未就业人员等） | AG140: 贵州省镇远县 | AH140: 无 | AI140: 是 | AJ140: 15870258207 | AK140: 无 | AM140: 15186842983 | AN140: 榕江县大健康产业服务中心 | AO140: 13040管理岗位 | AP140: 2007年9月至2010年6月高中就读于贵州省镇远中学 2013年9月至2018年7月本科就读于贵州医科大学 2018年7月至今待业 | AR140: 2 | AS140: 12 | AT140: 03 | AV140: 21 | AW140: 3 | AX140: 1 | AY140: 05 | AZ140: 1 | BA140: 126130931 | BB140: 126130931040 | BC140: 362019071522613046422 | BE140: 79.2 | BF140: 39.60 | BG140: 68.33 | BH140: 34.17 | BJ140: 入围资格复审 | BK140: 2019年8月－9日 | BL140: 合格 | BP140: 73.77 | BQ140: 6
B141: 1320190511 | D141: 14 | E141: 卜天宏 | F141: 管理岗位 | G141: 《综合知识》类 | H141: T362019071522613016004 | J141: 522423199412177314 | L141: 贵州省黔东南自治州 | M141: 榕江县 | N141: 016004 | P141: 男 | Q141: 1994.12.17 | R141: 贵州省毕节市黔西县 | S141: 汉族 | T141: 群众 | U141: 海南大学 | W141: 农学 | X141: 大学本科毕业 | Y141: 学士 | AA141: 2017.06 | AB141: 贵州省黔西县重新镇 | AC141: 是 | AD141: 贵州省黔西县重新镇居委会 | AE141: 无 | AF141: 其他（临时工、未就业人员等） | AG141: 贵州省黔西县 | AH141: 无 | AI141: 是 | AJ141: 15501837412 | AK141: 无 | AM141: 卜运超：13885704131 | AN141: 榕江县大健康产业服务中心 | AO141: 13040管理岗位 | AP141: 2010.09-2013.07贵州省黔西县第一中学学习 2013.09-2017.06海南省海南大学农学院（热带农业学院）农学专业学习 2017.07-2018.03四川省成都市链家工作 2018.03-至今在家待业备考 | AR141: 1 | AS141: 01 | AT141: 13 | AV141: 21 | AW141: 3 | AX141: 1 | AY141: 05 | AZ141: 1 | BA141: 126130931 | BB141: 126130931040 | BC141: 362019071522613016004 | BE141: 68.85 | BF141: 34.43 | BG141: 76.33 | BH141: 38.17 | BJ141: 递补入围资格复审 | BL141: 合格 | BP141: 72.59 | BQ141: 7
B142: 1320190512 | D142: 15 | E142: 李芳 | F142: 管理岗位 | G142: 《综合知识》类 | H142: T362019071522613040082 | J142: 430521199602204271 | L142: 贵州省黔东南自治州 | M142: 榕江县 | N142: 040082 | P142: 男 | Q142: 1996.02.20 | R142: 湖南省邵东县 | S142: 汉族 | T142: 群众 | U142: 天津医科大学临床医学院 | W142: 临床医学 | X142: 大学本科毕业 | Y142: 学士 | AA142: 2019.06 | AB142: 贵州省榕江县古州镇古州北路158号 | AC142: 是 | AD142: 贵州省榕江县古州镇宏坤商业城5栋802 | AE142: 暂未就业 | AF142: 其他（临时工、未就业人员等） | AG142: 贵州省榕江县 | AH142: 暂未获得 | AI142: 是 | AJ142: 199020623936 | AK142: 6655230 | AM142: 15985545218 | AN142: 榕江县大健康产业服务中心 | AO142: 13040管理岗位 | AP142: 2008年9月-2011年6月，榕江县第二中学毕业 2011年9月-2014年6月，凯里市第一中学毕业 2014年9月-2019年6月，天津医科大学临床医学院毕业 2018年6月-2019年5月，在天津第三中心医院实习 | AR142: 1 | AS142: 01 | AT142: 13 | AV142: 21 | AW142: 3 | AX142: 1 | AY142: 05 | AZ142: 1 | BA142: 126130931 | BB142: 126130931040 | BC142: 362019071522613040082 | BE142: 68.85 | BF142: 34.43 | BG142: 75 | BH142: 37.50 | BJ142: 递补入围资格复审 | BL142: 合格 | BP142: 71.93 | BQ142: 8
B143: 1320190513 | D143: 22 | E143: 罗秋桃 | F143: 专业技术岗位 | G143: 《综合知识》类 | H143: T362019071522613012615 | J143: 522732199608184228 | L143: 贵州省黔东南自治州 | M143: 榕江县 | N143: 012615 | P143: 女 | Q143: 1996.08.18 | R143: 贵州三都 | S143: 侗族 | T143: 中国共产党预备党员 | U143: 中央民族大学 | W143: 生态学 | X143: 大学本科毕业 | Y143: 学士 | AA143: 2019.06 | AB143: 贵州省三都县都江镇上江村七组 | AC143: 是 | AD143: 贵州省三都县都江镇上江村七组 | AE143: 无 | AF143: 其他（临时工、未就业人员等） | AG143: 贵州省三都县 | AH143: 无 | AI143: 是 | AJ143: 15329647952 | AK143: 18811709233 | AM143: 15286277358 | AN143: 榕江县国有林场 | AO143: 13034专业技术岗位 | AP143: 2012.09-2015.06高中就读于都匀市第一中学 2015.09-2019.06大学就读于北京市中央民族大学 2017年7月在北京市门头沟小龙门林场进行专业实习 2019.06至今在家待业 | AR143: 2 | AS143: 12 | AT143: 02 | AV143: 21 | AW143: 3 | AX143: 1 | AY143: 05 | AZ143: 1 | BA143: 126130928 | BB143: 126130928034 | BC143: 362019071522613012615 | BE143: 74.3 | BF143: =BE143*0.5 -> 37.15 | BG143: 81.66 | BH143: =BG143*0.5 -> 40.83 | BI143: =RANK(BE143,$BE$143:$BE$145) -> 1 | BJ143: 入围资格复审 | BK143: 2019年8月－9日 | BL143: 合格 | BP143: =BF143+BH143 -> 77.98 | BQ143: =RANK(BP143,$BP$143:$BP$145) -> 1 | BR143: 入围体检 | BS143: 2019-09-08
B144: 1320190514 | D144: 23 | E144: 曾倩 | F144: 专业技术岗位 | G144: 《综合知识》类 | H144: T362019071522613004028 | J144: 522229199403142029 | L144: 贵州省黔东南自治州 | M144: 榕江县 | N144: 004028 | P144: 女 | Q144: 19940314 | R144: 贵州省松桃苗族自治县 | S144: 汉族 | T144: 群众 | U144: 广西大学 | W144: 生态学 | X144: 大学本科毕业 | Y144: 学士 | AA144: 2016.06 | AB144: 贵州省松桃苗族自治县普觉镇 | AC144: 是 | AD144: 贵州省松桃苗族自治县普觉镇道塘村 | AE144: 贵阳市息烽县温泉镇人民政府 | AF144: 其他（临时工、未就业人员等） | AG144: 贵州省碧江区 | AH144: 无 | AI144: 是 | AJ144: 18485619791 | AK144: 18798025749 | AM144: 13885675107 | AN144: 榕江县国有林场 | AO144: 13034专业技术岗位 | AP144: 2009年9月至2012年6月，就读于贵州省铜仁市第二中学 2012年9月至2016年6月，就读于广西大学 2016年6月至2017年9月，待业 2017年9月至今，服务于贵阳市息烽县温泉镇人民政府“三支一扶”人员 | AR144: 2 | AS144: 01 | AT144: 13 | AV144: 21 | AW144: 3 | AX144: 1 | AY144: 05 | AZ144: 1 | BA144: 126130928 | BB144: 126130928034 | BC144: 362019071522613004028 | BE144: 71.8 | BF144: 35.90 | BG144: 73 | BH144: 36.50 | BI144: =RANK(BE144,$BE$143:$BE$145) -> 2 | BJ144: 入围资格复审 | BK144: 2019年8月－9日 | BL144: 合格 | BP144: 72.40 | BQ144: =RANK(BP144,$BP$143:$BP$145) -> 2
B145: 1320190515 | D145: 24 | E145: 罗维 | F145: 专业技术岗位 | G145: 《综合知识》类 | H145: T362019071522601008682 | J145: 520202199612278561 | L145: 贵州省黔东南自治州 | M145: 榕江县 | N145: 008682 | P145: 女 | Q145: 1996.12.27 | R145: 贵州省盘县 | S145: 苗族 | T145: 中国共产主义青年团团员 | U145: 贵阳学院 | W145: 环境生态工程 | X145: 大学本科毕业 | Y145: 学士 | AA145: 2019.07 | AB145: 贵州省盘县保基乡 | AC145: 是 | AD145: 贵州省盘县保基乡雨哪洼村朝子坡组 | AE145: 贵州贵和鑫环境工程有限公司 | AF145: 其他（临时工、未就业人员等） | AG145: 贵州省盘县 | AH145: 2018年5月取得高中生物教师资格证书 | AI145: 是 | AJ145: 18300888115 | AK145: 15086415439 | AM145: 15329189578 | AN145: 榕江县国有林场 | AO145: 13034专业技术岗位 | AP145: 贵州贵和鑫环境工程有限公司技术工作人员 | AR145: 2 | AS145: 06 | AT145: 03 | AV145: 21 | AW145: 3 | AX145: 1 | AY145: 05 | AZ145: 1 | BA145: 126130928 | BB145: 126130928034 | BC145: 362019071522601008682 | BE145: 70.45 | BF145: 35.23 | BG145: 72 | BH145: 36.00 | BI145: =RANK(BE145,$BE$143:$BE$145) -> 3 | BJ145: 入围资格复审 | BK145: 2019年8月－9日 | BL145: 合格 | BP145: 71.23 | BQ145: 3
B146: 1320190516 | D146: 25 | E146: 陆益明 | F146: 专业技术岗位 | G146: 《综合知识》类 | H146: T362019071522613057815 | J146: 522632199407050017 | L146: 贵州省黔东南自治州 | M146: 榕江县 | N146: 057815 | P146: 男 | Q146: 1994.07.05 | R146: 贵州省榕江县 | S146: 汉族 | T146: 群众 | U146: 贵州财经大学 | W146: 会计专业 | X146: 大学专科毕业 | Y146: 无 | AA146: 2017.07 | AB146: 贵州省榕江县环城西路 | AC146: 是 | AD146: 榕江县古州镇锦州新城B区D栋1402 | AE146: 无 | AF146: 其他（临时工、未就业人员等） | AG146: 贵州省贵阳市 | AH146: 无 | AI146: 是 | AJ146: 15628094548 | AK146: 6621182 | AM146: 16684759468 | AN146: 榕江县国有林场 | AO146: 13035专业技术岗位 | AP146: 2010年9月-2013年9月就读于贵州省榕江县第一中学 2013年9月-2017年7月就读于贵州省贵阳市贵州财经大学会计专业 2017年8月-2018年8月在家待业 2018年9月-2019年4月在贵州省榕江县财政局见习 | AR146: 1 | AS146: 01 | AT146: 13 | AV146: 31 | AW146: 4 | AX146: 1 | AY146: 05 | AZ146: 1 | BA146: 126130928 | BB146: 126130928035 | BC146: 362019071522613057815 | BE146: 79.15 | BF146: 39.58 | BG146: 74 | BH146: 37.00 | BI146: =RANK(BE146,$BE$146:$BE$148) -> 1 | BJ146: 入围资格复审 | BK146: 2019年8月－9日 | BL146: 合格 | BP146: 76.58 | BQ146: =RANK(BP146,$BP$146:$BP$148) -> 1 | BR146: 入围体检 | BS146: 2019-09-08
B147: 1320190517 | D147: 26 | E147: 吴昌兵 | F147: 专业技术岗位 | G147: 《综合知识》类 | H147: T362019071522613036951 | J147: 522632199407152574 | L147: 贵州省黔东南自治州 | M147: 榕江县 | N147: 036951 | P147: 男 | Q147: 1994.07.15 | R147: 贵州省榕江县 | S147: 侗族 | T147: 中国共产主义青年团团员 | U147: 贵州财经大学商务学院 | W147: 会计学 | X147: 大学本科毕业 | Y147: 学士 | AA147: 2018.06 | AB147: 贵州省榕江县平永镇平由村第三组 | AC147: 是 | AD147: 贵州省榕江县平永镇平由村第三组 | AE147: 无 | AF147: 其他（临时工、未就业人员等） | AG147: 贵州省榕江县 | AH147: 2015年9月获得计算机二级证书 2016年3月获得会计从业资格证 2017年5月获得会计初级资格证书 2018年5月获得贵州财经大学商务学院“三好学生”称号 | AI147: 是 | AJ147: 19808491598 | AK147: 19808491598 | AM147: 15870221548 | AN147: 榕江县国有林场 | AO147: 13035专业技术岗位 | AP147: 2010年9月-2014年6月就读于榕江县第一中学（复读一年） 2014年9月-2018年6月就读于贵州财经大学商务学院 2018年6月-至今待业 | AR147: 1 | AS147: 12 | AT147: 03 | AV147: 21 | AW147: 3 | AX147: 1 | AY147: 05 | AZ147: 1 | BA147: 126130928 | BB147: 126130928035 | BC147: 362019071522613036951 | BE147: 75.2 | BF147: 37.60 | BG147: 76.33 | BH147: 38.17 | BI147: =RANK(BE147,$BE$146:$BE$148) -> 2 | BJ147: 入围资格复审 | BK147: 2019年8月－9日 | BL147: 合格 | BP147: 75.77 | BQ147: =RANK(BP147,$BP$146:$BP$148) -> 2
B148: 1320190518 | D148: 27 | E148: 王则立 | F148: 专业技术岗位 | G148: 《综合知识》类 | H148: T362019071522613034131 | J148: 522632199507136811 | L148: 贵州省黔东南自治州 | M148: 榕江县 | N148: 034131 | P148: 男 | Q148: 1995.07.13 | R148: 贵州省榕江县 | S148: 苗族 | T148: 群众 | U148: 黔东南民族职业技术学院 | W148: 财务管理 | X148: 大学专科毕业 | Y148: 无 | AA148: 2017.07 | AB148: 贵州省榕江县两汪乡 | AC148: 是 | AD148: 贵州省榕江县两汪乡乌厦村四组 | AE148: 榕江县两汪乡人民政府 | AF148: 其他（临时工、未就业人员等） | AG148: 贵州省榕江县 | AH148: 2016年5月取得会计从业资格证书 | AI148: 是 | AJ148: 15085675664 | AK148: 15085675664 | AM148: 18286546637 | AN148: 榕江县国有林场 | AO148: 13035专业技术岗位 | AP148: 2011年9月—2014年7月就读于榕江县第一中学； 2014年9月—2017年7月就读于黔东南民族职业技术学院； 2017年7月在榕江县两汪乡人民政府工作至今； | AR148: 1 | AS148: 06 | AT148: 13 | AV148: 31 | AW148: 4 | AX148: 1 | AY148: 05 | AZ148: 1 | BA148: 126130928 | BB148: 126130928035 | BC148: 362019071522613034131 | BE148: 72.85 | BF148: 36.43 | BG148: 66.33 | BH148: 33.17 | BI148: =RANK(BE148,$BE$146:$BE$148) -> 3 | BJ148: 入围资格复审 | BK148: 2019年8月－9日 | BL148: 合格 | BP148: 69.59 | BQ148: 3
B149: 1320190519 | D149: 28 | E149: 申时玉 | F149: 管理岗位 | G149: 《综合知识》类 | H149: T362019071522613033488 | J149: 522425199602103917 | L149: 贵州省黔东南自治州 | M149: 榕江县 | N149: 033488 | P149: 男 | Q149: 19960210 | R149: 贵州省织金县 | S149: 其他 | T149: 中国共产主义青年团团员 | U149: 天津理工大学 | W149: 计算机科学与技术 | X149: 大学本科毕业 | Y149: 学士 | AA149: 201707 | AB149: 贵州省织金县化起镇 | AC149: 是 | AD149: 贵州省清镇市百花社区梁家寨村 | AE149: 无 | AF149: 其他（临时工、未就业人员等） | AG149: 贵州省织金县 | AH149: 无 | AI149: 是 | AJ149: 15902684303 | AK149: 15902684303 | AM149: 18798895092 | AN149: 榕江县大数据发展中心 | AO149: 13036管理岗位 | AP149: 2010年9月-2013年7月就读于织金县第一中学 2013年9月-2017年7月就读于天津理工大学 2017年7月至今自由职业 | AR149: 1 | AS149: 97 | AT149: 03 | AV149: 21 | AW149: 3 | AX149: 1 | AY149: 05 | AZ149: 1 | BA149: 126130929 | BB149: 126130929036 | BC149: 362019071522613033488 | BE149: 79.15 | BF149: 39.58 | BG149: 80 | BH149: 40.00 | BI149: =RANK(BE149,$BE$149:$BE$150) -> 1 | BJ149: 入围资格复审 | BK149: 2019年8月－9日 | BL149: 合格 | BP149: 79.58 | BQ149: =RANK(BP149,$BP$149:$BP$150) -> 1 | BR149: 入围体检 | BS149: 2019-09-08
B150: 1320190521 | D150: 30 | E150: 杨悦眉 | F150: 管理岗位 | G150: 《综合知识》类 | H150: T362019071522613089496 | J150: 522529199601130068 | L150: 贵州省黔东南自治州 | M150: 榕江县 | N150: 089496 | P150: 女 | Q150: 1996.01.13 | R150: 贵州镇宁 | S150: 汉族 | T150: 中国共产主义青年团团员 | U150: 桂林电子科技大学信息科技学院 | W150: 计算机科学与技术 | X150: 大学本科毕业 | Y150: 学士 | AA150: 2018.07 | AB150: 贵州省镇宁县城关镇 | AC150: 是 | AD150: 贵州省镇宁县锦绘新都C1栋 | AE150: 无 | AF150: 其他（临时工、未就业人员等） | AG150: 贵州省镇宁县 | AH150: 2019年7月取得小学信息技术教师资格证书 | AI150: 是 | AJ150: 15685364631 | AK150: 15685364631 | AM150: 13035586630 | AN150: 榕江县大数据发展中心 | AO150: 13036管理岗位 | AP150: 1.2011-2014镇宁民族中学读高中 2.2014-2018桂林电子科技大学信息科技学院读大学 3.2018.7-2019.2镇宁白马湖街道办事处实习 4.2019.3至今待业 | AR150: 2 | AS150: 01 | AT150: 03 | AV150: 21 | AW150: 3 | AX150: 1 | AY150: 05 | AZ150: 1 | BA150: 126130929 | BB150: 126130929036 | BC150: 362019071522613089496 | BE150: 75 | BF150: 37.50 | BG150: 81 | BH150: 40.50 | BI150: =RANK(BE150,$BE$149:$BE$150) -> 2 | BJ150: 入围资格复审 | BK150: 2019年8月－9日 | BL150: 合格 | BP150: 78.00 | BQ150: =RANK(BP150,$BP$149:$BP$150) -> 2
B151: 1320190522 | E151: 杨宵宇 | F151: 管理岗位 | G151: 《综合知识》类 | H151: T362019071522613028020 | J151: 522632199608021618 | L151: 贵州省黔东南自治州 | M151: 榕江县 | N151: 028020 | P151: 男 | Q151: 1996.08.02 | R151: 贵州省榕江县 | S151: 侗族 | T151: 中国共产主义青年团团员 | U151: 河海大学 | W151: 财务管理 | X151: 大学本科毕业 | Y151: 学士 | AA151: 2018.06 | AB151: 贵州省榕江县忠诚镇 | AC151: 是 | AD151: 贵州省榕江县忠诚镇安乐村五组 | AE151: 无 | AF151: 其他（临时工、未就业人员等） | AG151: 贵州省凯里市 | AH151: 无 | AI151: 是 | AJ151: 17625994909 | AK151: 18084575762 | AM151: 杨胜敏18985456893 | AN151: 榕江县大数据发展中心 | AO151: 13037管理岗位 | AP151: 2011.09-2014.07贵州省凯里市第一中学高中学习 2014.09-2018.06河海大学商学院财务管理专业学习 2018.07-2019.04中交四航局珠海工程有限公司任出纳岗 2019.05-至今在家待业 | AR151: 1 | AS151: 12 | AT151: 03 | AV151: 21 | AW151: 3 | AX151: 1 | AY151: 05 | AZ151: 1 | BA151: 126130929 | BB151: 126130929037 | BC151: 362019071522613028020 | BE151: 84.75 | BF151: =BE151*0.5 -> 42.38 | BG151: 76.66 | BH151: =BG151*0.5 -> 38.33 | BI151: =RANK(BE151,$BE$151:$BE$153) -> 1 | BJ151: 入围资格复审 | BK151: 2019年8月－9日 | BL151: 合格 | BP151: =BF151+BH151 -> 80.71 | BQ151: =RANK(BP151,$BP$151:$BP$153) -> 1 | BR151: 入围体检 | BS151: 2019-09-08
B152: 1320190523 | E152: 王炳贤 | F152: 管理岗位 | G152: 《综合知识》类 | H152: T362019071522613008785 | J152: 532932199404130343 | L152: 贵州省黔东南自治州 | M152: 榕江县 | N152: 008785 | P152: 女 | Q152: 1994.04.13 | R152: 云南省大理白族自治州鹤庆县 | S152: 白族 | T152: 中国共产主义青年团团员 | U152: 九江学院 | W152: 会计学 | X152: 大学本科毕业 | Y152: 学士 | AA152: 2018.07 | AB152: 贵州省黔东南苗族侗族自治州榕江县 | AC152: 是 | AD152: 贵州省榕江县古州镇水榭榕城11栋3单元405室 | AE152: 待业 | AF152: 其他（临时工、未就业人员等） | AG152: 云南省大理州鹤庆县 | AH152: 2016年11月取得会计从业资格证 | AI152: 是 | AJ152: 15270571650 | AK152: 15885836694 | AM152: 15885814843 | AN152: 榕江县大数据发展中心 | AO152: 13037管理岗位 | AP152: 2010.09-2013.06高中：鹤庆一中 2013.09-2014.06预科：南昌工学院 2014.09-2018.07大学：九江学院 2018.07至今待业 | AR152: 2 | AS152: 14 | AT152: 03 | AV152: 21 | AW152: 3 | AX152: 1 | AY152: 05 | AZ152: 1 | BA152: 126130929 | BB152: 126130929037 | BC152: 362019071522613008785 | BE152: 76.9 | BF152: 38.45 | BG152: 83.33 | BH152: 41.67 | BI152: =RANK(BE152,$BE$151:$BE$153) -> 3 | BJ152: 入围资格复审 | BK152: 2019年8月－9日 | BL152: 合格 | BP152: 80.12 | BQ152: =RANK(BP152,$BP$151:$BP$153) -> 2
B153: 1320190524 | E153: 陈爽 | F153: 管理岗位 | G153: 《综合知识》类 | H153: T362019071522613074323 | J153: 522632199610060026 | L153: 贵州省黔东南自治州 | M153: 榕江县 | N153: 074323 | P153: 女 | Q153: 1996.10.06 | R153: 贵州省榕江县 | S153: 汉族 | T153: 群众 | U153: 贵州财经大学 | W153: 会计学 | X153: 大学本科毕业 | Y153: 学士 | AA153: 2019.07 | AB153: 贵州省榕江县治安路 | AC153: 是 | AD153: 榕江县水榭榕城6栋302 | AE153: 无 | AF153: 其他（临时工、未就业人员等） | AG153: 贵州省榕江县 | AH153: 2016年10月取得证券从业资格证 | AI153: 是 | AJ153: 18275279057 | AK153: 无 | AM153: 13765594233 | AN153: 榕江县大数据发展中心 | AO153: 13037管理岗位 | AP153: 高中：2012-2015年在榕江县第一中学就读 大学：2015-2019年在贵阳市贵州财经大学就读 2018年6月至2018年8月在榕江县信用合作联社滨江分社作为信贷员进行为期2月的实习 | AR153: 2 | AS153: 01 | AT153: 13 | AV153: 21 | AW153: 3 | AX153: 1 | AY153: 05 | AZ153: 1 | BA153: 126130929 | BB153: 126130929037 | BC153: 362019071522613074323 | BE153: 79.1 | BF153: 39.55 | BG153: 75.33 | BH153: 37.67 | BI153: =RANK(BE153,$BE$151:$BE$153) -> 2 | BJ153: 入围资格复审 | BK153: 2019年8月－9日 | BL153: 合格 | BP153: 77.22 | BQ153: =RANK(BP153,$BP$151:$BP$153) -> 3
B154: 1320190525 | E154: 杨迅 | F154: 管理岗位 | G154: 《综合知识》类 | H154: T362019071522613031696 | J154: 522632199405197074 | L154: 贵州省黔东南自治州 | M154: 榕江县 | N154: 031696 | P154: 男 | Q154: 1994.05.19 | R154: 贵州省榕江县 | S154: 侗族 | T154: 中国共产主义青年团团员 | U154: 安徽理工大学 | W154: 安全工程 | X154: 大学本科毕业 | Y154: 学士 | AA154: 2017.06 | AB154: 贵州省榕江县平阳乡 | AC154: 是 | AD154: 贵州省榕江县平阳乡街上村 | AE154: 无。 | AF154: 其他（临时工、未就业人员等） | AG154: 贵州省榕江县 | AH154: 2018年1月助理级工程师证 2018年2月皖建安C证 | AI154: 是 | AJ154: 15855468903 | AK154: 15855468903 | AM154: 13885504457 | AN154: 榕江县应急救援中心 | AO154: 13039管理岗位 | AP154: 2019.09-2012.06凯里学院附属中学学生； 2012.08-2013.06榕江县第一中学学生； 2013.09-2017.06安徽理工大学学生； 2017.07-2019.05中铁四局集团第五工程有限公司见习生、助理工程师。 | AR154: 1 | AS154: 12 | AT154: 03 | AV154: 21 | AW154: 3 | AX154: 1 | AY154: 05 | AZ154: 1 | BA154: 126130930 | BB154: 126130930039 | BC154: 362019071522613031696 | BE154: 75.95 | BF154: 37.98 | BG154: 83.33 | BH154: 41.67 | BI154: =RANK(BE154,$BE$154:$BE$156) -> 3 | BJ154: 入围资格复审 | BK154: 2019年8月－9日 | BL154: 合格 | BP154: 79.64 | BQ154: =RANK(BP154,$BP$154:$BP$156) -> 1 | BR154: 入围体检 | BS154: 2019-09-08
B155: 1320190526 | E155: 肖健 | F155: 管理岗位 | G155: 《综合知识》类 | H155: T362019071522613082178 | J155: 520121199407172817 | L155: 贵州省黔东南自治州 | M155: 榕江县 | N155: 082178 | P155: 男 | Q155: 1994.07.17 | R155: 贵州省开阳县 | S155: 汉族 | T155: 中国共产党党员 | U155: 湖南工学院 | W155: 安全工程 | X155: 大学本科毕业 | Y155: 学士 | AA155: 2018.07 | AB155: 贵州省开阳县楠木渡镇两路村 | AC155: 是 | AD155: 贵州省开阳县楠木渡镇两路村大堰组 | AE155: 无 | AF155: 其他（临时工、未就业人员等） | AG155: 贵州 | AH155: 2018大学生计算机二级 2018大学生英语四级 | AI155: 是 | AJ155: 15908511358 | AK155: 17608511358 | AM155: 18216014393 | AN155: 榕江县应急救援中心 | AO155: 13039管理岗位 | AP155: 2010-2014开阳一中 2014-2018湖南工学院 | AR155: 1 | AS155: 01 | AT155: 01 | AV155: 21 | AW155: 3 | AX155: 1 | AY155: 05 | AZ155: 1 | BA155: 126130930 | BB155: 126130930039 | BC155: 362019071522613082178 | BE155: 81.75 | BF155: 40.88 | BG155: 73 | BH155: 36.50 | BI155: =RANK(BE155,$BE$154:$BE$156) -> 1 | BJ155: 入围资格复审 | BK155: 2019年8月－9日 | BL155: 合格 | BP155: 77.38 | BQ155: =RANK(BP155,$BP$154:$BP$156) -> 2
B156: 1320190527 | E156: 莫敬朗 | F156: 管理岗位 | G156: 《综合知识》类 | H156: T362019071522613025496 | J156: 522722199612012012 | L156: 贵州省黔东南自治州 | M156: 榕江县 | N156: 025496 | P156: 男 | Q156: 1996.12.01 | R156: 贵州省荔波县 | S156: 布依族 | T156: 中国共产主义青年团团员 | U156: 贵州警察学院 | W156: 安全防范技术 | X156: 大学专科毕业 | Y156: 无 | AA156: 2018.07 | AB156: 贵州省荔波县甲良镇尧并村上尧更组 | AC156: 是 | AD156: 贵州省荔波县甲良镇尧并村上尧更组47号 | AE156: 荔波县森林公安局 | AF156: 其他（临时工、未就业人员等） | AG156: 贵州省荔波县 | AH156: 2017年3月取得C1驾驶证。 | AI156: 是 | AJ156: 18224858067 | AK156: 18224858067 | AM156: 15286245175 | AN156: 榕江县应急救援中心 | AO156: 13039管理岗位 | AP156: 2012.09-2015.06：荔波高级中学 2015.09-2018.07：贵州警察学院 2018.08-至今：荔波县森林公安局辅警 | AR156: 1 | AS156: 09 | AT156: 03 | AV156: 31 | AW156: 4 | AX156: 1 | AY156: 05 | AZ156: 1 | BA156: 126130930 | BB156: 126130930039 | BC156: 362019071522613025496 | BE156: 76.35 | BF156: 38.18 | BG156: 75.66 | BH156: 37.83 | BI156: =RANK(BE156,$BE$154:$BE$156) -> 2 | BJ156: 入围资格复审 | BK156: 2019年8月－9日 | BL156: 合格 | BP156: 76.01 | BQ156: =RANK(BP156,$BP$154:$BP$156) -> 3
B157: 1320190528 | E157: 黄透渊 | F157: 专业技术岗位 | G157: 《综合知识》类 | H157: T362019071522613026490 | J157: 522632199706227070 | L157: 贵州省黔东南自治州 | M157: 榕江县 | N157: 026490 | P157: 男 | Q157: 1997.06.22 | R157: 贵州省榕江县 | S157: 苗族 | T157: 中国共产主义青年团团员 | U157: 济南大学 | W157: 水文与水资源工程 | X157: 大学本科毕业 | Y157: 学士 | AA157: 2019.07 | AB157: 贵州省榕江县平阳乡街上村十组 | AC157: 是 | AD157: 贵州省榕江县古州镇商贸城附件 | AE157: 无 | AF157: 其他（临时工、未就业人员等） | AG157: 贵州省榕江县 | AH157: 无 | AI157: 是 | AJ157: 15772589748 | AK157: 无 | AM157: 13595508217 | AN157: 榕江县水利工程质量与安全中心 | AO157: 13041专业技术岗位 | AP157: 2012.9-2015.6就读于榕江第一中学2015.9-2019.6就读于济南大学 | AR157: 1 | AS157: 06 | AT157: 03 | AV157: 21 | AW157: 3 | AX157: 1 | AY157: 05 | AZ157: 1 | BA157: 126130932 | BB157: 126130932041 | BC157: 362019071522613026490 | BE157: 76.5 | BF157: 38.25 | BG157: 80 | BH157: 40.00 | BI157: =RANK(BE157,$BE$157:$BE$159) -> 2 | BJ157: 入围资格复审 | BK157: 2019年8月－9日 | BL157: 合格 | BP157: 78.25 | BQ157: =RANK(BP157,$BP$157:$BP$159) -> 1 | BR157: 入围体检 | BS157: 2019-09-08
B158: 1320190529 | E158: 涂云 | F158: 专业技术岗位 | G158: 《综合知识》类 | H158: T362019071522613029950 | J158: 522130199610244837 | L158: 贵州省黔东南自治州 | M158: 榕江县 | N158: 029950 | P158: 男 | Q158: 1996.10.24 | R158: 贵州省仁怀市 | S158: 汉族 | T158: 中国共产主义青年团团员 | U158: 贵州工程应用技术学院 | W158: 水利水电工程 | X158: 大学本科毕业 | Y158: 学士 | AA158: 2019.07 | AB158: 贵州省仁怀市高大坪乡银水村兴龙组 | AC158: 是 | AD158: 贵州省仁怀市高大坪乡银水村兴龙组015号 | AE158: 无 | AF158: 其他（临时工、未就业人员等） | AG158: 贵州省仁怀市 | AH158: 无 | AI158: 是 | AJ158: 13698544304 | AK158: 13698544304 | AM158: 13595218397 | AN158: 榕江县水利工程质量与安全中心 | AO158: 13041专业技术岗位 | AP158: 2012.09-2015.07贵州省仁怀市第四中学高中学习； 2015.09-2019.07贵州省毕节市贵州工程应用技术学院本科学习。 | AR158: 1 | AS158: 01 | AT158: 03 | AV158: 21 | AW158: 3 | AX158: 1 | AY158: 05 | AZ158: 1 | BA158: 126130932 | BB158: 126130932041 | BC158: 362019071522613029950 | BE158: 77.4 | BF158: 38.70 | BG158: 76.66 | BH158: 38.33 | BI158: =RANK(BE158,$BE$157:$BE$159) -> 1 | BJ158: 入围资格复审 | BK158: 2019年8月－9日 | BL158: 合格 | BP158: 77.03 | BQ158: =RANK(BP158,$BP$157:$BP$159) -> 2
B159: 1320190530 | E159: 谢学智 | F159: 专业技术岗位 | G159: 《综合知识》类 | H159: T362019071522613026281 | J159: 522632199701100011 | L159: 贵州省黔东南自治州 | M159: 榕江县 | N159: 026281 | P159: 男 | Q159: 1997.01.10 | R159: 贵州省榕江县 | S159: 水族 | T159: 群众 | U159: 重庆交通职业学院 | W159: 水利水电工程技术 | X159: 大学专科毕业 | Y159: 无 | AA159: 2019.07 | AB159: 贵州省榕江县古州镇 | AC159: 是 | AD159: 贵州省榕江县榕城尚品小区八栋302 | AE159: 待业 | AF159: 其他（临时工、未就业人员等） | AG159: 贵州省黔东南 | AH159: 无 | AI159: 是 | AJ159: 18085522025 | AK159: 18085522025 | AM159: 13379630700 | AN159: 榕江县水利工程质量与安全中心 | AO159: 13041专业技术岗位 | AP159: 2014.09至2016.06就读于凯里市第一中学； 2016.09至2019.07就读于重庆交通职业学院； 2019.07至今待业。 | AR159: 1 | AS159: 25 | AT159: 13 | AV159: 31 | AW159: 4 | AX159: 1 | AY159: 05 | AZ159: 1 | BA159: 126130932 | BB159: 126130932041 | BC159: 362019071522613026281 | BE159: 73.2 | BF159: 36.60 | BG159: 80.66 | BH159: 40.33 | BI159: =RANK(BE159,$BE$157:$BE$159) -> 3 | BJ159: 入围资格复审 | BK159: 2019年8月－9日 | BL159: 合格 | BP159: 76.93 | BQ159: =RANK(BP159,$BP$157:$BP$159) -> 3
B160: 1320190531 | E160: 文仁权 | F160: 管理岗位 | G160: 《综合知识》类 | H160: T362019071522613047310 | J160: 522634199608031114 | L160: 贵州省黔东南自治州 | M160: 榕江县 | N160: 047310 | P160: 男 | Q160: 1996.08.03 | R160: 贵州省雷山县 | S160: 苗族 | T160: 中国共产主义青年团团员 | U160: 天津农学院 | W160: 水利水电工程 | X160: 大学本科毕业 | Y160: 学士 | AA160: 2019.06 | AB160: 贵州省雷山县郎德镇 | AC160: 是 | AD160: 贵州省雷山县人民银行支行宿舍楼2栋3楼 | AE160: 无 | AF160: 其他（临时工、未就业人员等） | AG160: 贵州省雷山县 | AH160: 无 | AI160: 是 | AJ160: 18722156204 | AK160: 无 | AM160: 15185634328 | AN160: 榕江县水旱灾害防御中心 | AO160: 13042管理岗位 | AP160: 2012.09-2015.06贵州省雷山县雷山民族中学高中学习 2015.09-2019.06天津市天津农学院水利工程学院水利水电工程专业本科学习 | AR160: 1 | AS160: 06 | AT160: 03 | AV160: 21 | AW160: 3 | AX160: 1 | AY160: 05 | AZ160: 1 | BA160: 126130933 | BB160: 126130933042 | BC160: 362019071522613047310 | BE160: 72.95 | BF160: 36.48 | BG160: 76.66 | BH160: 38.33 | BI160: =RANK(BE160,$BE$160:$BE$162) -> 2 | BJ160: 入围资格复审 | BK160: 2019年8月－9日 | BL160: 合格 | BP160: 74.81 | BQ160: =RANK(BP160,$BP$160:$BP$162) -> 1 | BR160: 入围体检 | BS160: 2019-09-08
B161: 1320190532 | E161: 徐子涵 | F161: 管理岗位 | G161: 《综合知识》类 | H161: T362019071522613059806 | J161: 500221199504220018 | L161: 贵州省黔东南自治州 | M161: 榕江县 | N161: 059806 | P161: 男 | Q161: 1995.04.22 | R161: 重庆市长寿区 | S161: 汉族 | T161: 中国共产主义青年团团员 | U161: 四川水利职业技术学院 | W161: 水利水电建筑工程 | X161: 大学专科毕业 | Y161: 无 | AA161: 2016.06 | AB161: 重庆市长寿区凤城街道 | AC161: 是 | AD161: 重庆市长寿区桃源东路2号 | AE161: 重庆泓吉水利水电工程管理有限责任公司 | AF161: 其他（临时工、未就业人员等） | AG161: 重庆市长寿区 | AH161: 2014年10月取得中级工程测量工资格证书 | AI161: 是 | AJ161: 18408299763 | AK161: 023-40256131 | AM161: 13212349959 | AN161: 榕江县水旱灾害防御中心 | AO161: 13042管理岗位 | AP161: 2013.09-2016.06四川水利职业技术学院水利水电建筑工程专业读大专 2016.06-2017.06在家待业 2017.06-至今重庆泓吉水利水电工程管理有限责任公司工作 | AR161: 1 | AS161: 01 | AT161: 03 | AV161: 31 | AW161: 4 | AX161: 1 | AY161: 05 | AZ161: 1 | BA161: 126130933 | BB161: 126130933042 | BC161: 362019071522613059806 | BE161: 75 | BF161: 37.50 | BG161: 73.66 | BH161: 36.83 | BI161: =RANK(BE161,$BE$160:$BE$162) -> 1 | BJ161: 入围资格复审 | BK161: 2019年8月－9日 | BL161: 合格 | BP161: 74.33 | BQ161: =RANK(BP161,$BP$160:$BP$162) -> 2
B162: 1320190533 | E162: 雷虹 | F162: 管理岗位 | G162: 《综合知识》类 | H162: T362019071522613064995 | J162: 522632199512220022 | L162: 贵州省黔东南自治州 | M162: 榕江县 | N162: 064995 | P162: 女 | Q162: 1995.12.22 | R162: 贵州省榕江县 | S162: 汉族 | T162: 群众 | U162: 江西水利职业学院 | W162: 水利工程 | X162: 大学专科毕业 | Y162: 无 | AA162: 2018.07 | AB162: 贵州省榕江县古州镇太平巷54 | AC162: 是 | AD162: 贵州省榕江县古州镇太平巷54号 | AE162: 无 | AF162: 其他（临时工、未就业人员等） | AG162: 贵州省黔东南苗族侗族自治州榕江县 | AH162: 2017年9月份取得施工员资格证书 | AI162: 是 | AJ162: 15329932392 | AK162: 15329932392 | AM162: 18084326057 | AN162: 榕江县水旱灾害防御中心 | AO162: 13042管理岗位 | AP162: 2011.09-2014.08贵州省榕江县民族中学学习； 2015.09-2018.07江西省水利职业学院学习； 2018.09-2018.11榕江县水务局见习； 2018.12-至今贵州德凤建筑有限责任公司榕江分公司工作 | AR162: 2 | AS162: 01 | AT162: 13 | AV162: 31 | AW162: 4 | AX162: 1 | AY162: 05 | AZ162: 1 | BA162: 126130933 | BB162: 126130933042 | BC162: 362019071522613064995 | BE162: 68.7 | BF162: 34.35 | BG162: 77.33 | BH162: 38.67 | BI162: =RANK(BE162,$BE$160:$BE$162) -> 3 | BJ162: 入围资格复审 | BK162: 2019年8月－9日 | BL162: 合格 | BP162: 73.02 | BQ162: =RANK(BP162,$BP$160:$BP$162) -> 3
A163: 第六考场 | B163: 1320190601 | E163: 何娅 | F163: 专业技术岗位 | G163: 《综合知识》类 | H163: T362019071522613051788 | J163: 430923199010274924 | L163: 贵州省黔东南自治州 | M163: 榕江县 | N163: 051788 | P163: 女 | Q163: 1990.10.27 | R163: 湖南省安化县 | S163: 汉族 | T163: 群众 | U163: 贵州民族大学 | W163: 社会学 | X163: 大学本科毕业 | Y163: 学士 | AA163: 2013.07 | AB163: 贵州省贵阳市 | AC163: 是 | AD163: 贵州省清镇市云岭东路高原明珠 | AE163: 无 | AF163: 其他（临时工、未就业人员等） | AG163: 湖南省安化县 | AH163: 无 | AI163: 是 | AJ163: 17785928895 | AK163: 18873721027 | AM163: 17726196523 | AN163: 榕江县儿童福利院 | AO163: 13043专业技术岗位 | AP163: 2006.09至2009.07湖南省安化县第一中学 2009.09至2013.07贵州民族大学 2014.01至2016.05厦门创信 2017.01至2018.10铂荟酒店 2018.10至今待业 | AR163: 2 | AS163: 01 | AT163: 13 | AV163: 21 | AW163: 3 | AX163: 1 | AY163: 05 | AZ163: 1 | BA163: 126130934 | BB163: 126130934043 | BC163: 362019071522613051788 | BE163: 82.55 | BF163: 41.28 | BG163: 80.83 | BH163: 40.42 | BI163: =RANK(BE163,$BE$163:$BE$165) -> 1 | BJ163: 入围资格复审 | BK163: 2019年8月－9日 | BL163: 合格 | BP163: 81.69 | BQ163: =RANK(BP163,$BP$163:$BP$165) -> 1 | BR163: 入围体检 | BS163: 2019-09-09
B164: 1320190602 | E164: 陈涛 | F164: 专业技术岗位 | G164: 《综合知识》类 | H164: T362019071522613030346 | J164: 532225199703270336 | L164: 贵州省黔东南自治州 | M164: 榕江县 | N164: 030346 | P164: 男 | Q164: 1997.03.27 | R164: 云南省曲靖市富源县 | S164: 汉族 | T164: 中国共产主义青年团团员 | U164: 玉溪师范学院 | W164: 社会工作 | X164: 大学本科毕业 | Y164: 学士 | AA164: 2018.07 | AB164: 云南省富源县中安镇 | AC164: 是 | AD164: 云南省富源县中安镇龙海村委会陈家村23号 | AE164: 无 | AF164: 其他（临时工、未就业人员等） | AG164: 云南省富源县 | AH164: 2018年12月取得助理社工师 | AI164: 是 | AJ164: 18487732182 | AK164: 18487732182 | AM164: 15825073600 | AN164: 榕江县儿童福利院 | AO164: 13043专业技术岗位 | AP164: 2011.09——2014.06就读于云南省富源县胜境中学； 2014.09月——2018.07就读于玉溪师范学院； 2018.07——至今在家待业 | AR164: 1 | AS164: 01 | AT164: 03 | AV164: 21 | AW164: 3 | AX164: 1 | AY164: 05 | AZ164: 1 | BA164: 126130934 | BB164: 126130934043 | BC164: 362019071522613030346 | BE164: 82.15 | BF164: 41.08 | BG164: 78.67 | BH164: 39.34 | BI164: =RANK(BE164,$BE$163:$BE$165) -> 2 | BJ164: 入围资格复审 | BK164: 2019年8月－9日 | BL164: 合格 | BP164: 80.41 | BQ164: =RANK(BP164,$BP$163:$BP$165) -> 2
B165: 1320190603 | E165: 孔祥运 | F165: 专业技术岗位 | G165: 《综合知识》类 | H165: T362019071522613060374 | J165: 522427199103203254 | L165: 贵州省黔东南自治州 | M165: 榕江县 | N165: 060374 | P165: 男 | Q165: 1991.03.20 | R165: 贵州省威宁县 | S165: 汉族 | T165: 中国共产党预备党员 | U165: 贵阳学院 | W165: 社会工作 | X165: 大学本科毕业 | Y165: 学士 | AA165: 2016.07 | AB165: 贵州省威宁县炉山镇 | AC165: 是 | AD165: 贵州省威宁县炉山镇明河村新田组56号 | AE165: 无 | AF165: 其他（临时工、未就业人员等） | AG165: 贵州省威宁县 | AH165: 无 | AI165: 是 | AJ165: 18786485343 | AK165: 18786485343 | AM165: 孔祥爱13984098696 | AN165: 榕江县儿童福利院 | AO165: 13043专业技术岗位 | AP165: 2008年9月至2012年6月就读于威宁民族中学；2012年9月至2016年7月就读于贵阳学院；2016年8月至2018年8月作为大学生西部计划志愿者服务于百里杜鹃管理区仁和乡；2018年8月至今待业。 | AR165: 1 | AS165: 01 | AT165: 02 | AV165: 21 | AW165: 3 | AX165: 1 | AY165: 05 | AZ165: 1 | BA165: 126130934 | BB165: 126130934043 | BC165: 362019071522613060374 | BE165: 81.55 | BF165: 40.78 | BG165: 77.5 | BH165: 38.75 | BI165: =RANK(BE165,$BE$163:$BE$165) -> 3 | BJ165: 入围资格复审 | BK165: 2019年8月－9日 | BL165: 合格 | BP165: 79.53 | BQ165: 3
B166: 1320190604 | E166: 何寻义 | F166: 管理岗位 | G166: 《综合知识》类 | H166: T362019071522613038395 | J166: 522722199402111717 | L166: 贵州省黔东南自治州 | M166: 榕江县 | N166: 038395 | P166: 男 | Q166: 1994.02.11 | R166: 贵州省荔波县 | S166: 布依族 | T166: 中国共产主义青年团团员 | U166: 贵州大学 | W166: 农业资源与环境 | X166: 大学本科毕业 | Y166: 学士 | AA166: 2017.07 | AB166: 贵州省荔波县瑶山瑶族乡平岩村更甲组 | AC166: 是 | AD166: 贵州省荔波县瑶山瑶族乡平岩村更甲组08号 | AE166: 无 | AF166: 其他（临时工、未就业人员等） | AG166: 贵州省荔波县 | AH166: 无 | AI166: 是 | AJ166: 15761633350 | AK166: 15761633350 | AM166: 15985412426 | AN166: 榕江县两汪乡农业服务中心 | AO166: 13141管理岗位 | AP166: 2010年9月-2013年7月荔波高级中学 2013年9月-2017年7月贵州大学农业资源与环境专业学习 2017年8月-2019年7月荔波县瑶山瑶族乡人民政府临聘工作员 | AR166: 1 | AS166: 09 | AT166: 03 | AV166: 21 | AW166: 3 | AX166: 1 | AY166: 05 | AZ166: 1 | BA166: 126131010 | BB166: 126131010141 | BC166: 362019071522613038395 | BE166: 75.55 | BF166: =BE166*0.5 -> 37.78 | BG166: 80.97 | BH166: =BG166*0.5 -> 40.49 | BI166: =RANK(BE166,$BE$166:$BE$169) -> 1 | BJ166: 入围资格复审 | BK166: 2019年8月－9日 | BL166: 合格 | BP166: =BF166+BH166 -> 78.26 | BQ166: =RANK(BP166,$BP$166:$BP$169) -> 1 | BR166: 入围体检 | BS166: 2019-09-09
B167: 1320190605 | E167: 滕进军 | F167: 管理岗位 | G167: 《综合知识》类 | H167: T362019071522613047123 | J167: 522634199306060016 | L167: 贵州省黔东南自治州 | M167: 榕江县 | N167: 047123 | P167: 男 | Q167: 1993.06.06 | R167: 贵州省雷山县 | S167: 苗族 | T167: 中国共产党预备党员 | U167: 黔西南民族职业技术学院 | W167: 茶树栽培与茶叶加工 | X167: 大学专科毕业 | Y167: 无 | AA167: 2019.07 | AB167: 贵州省雷山县丹江镇教厂村十一组 | AC167: 是 | AD167: 贵州省雷山县丹江镇教厂村十一组 | AE167: 无 | AF167: 其他（临时工、未就业人员等） | AG167: 贵州省雷山县 | AH167: 2018年6月取得农作植保员四级/中级职业资格证书 | AI167: 是 | AJ167: 18386670980 | AK167: 18386670980 | AM167: 18386605349 | AN167: 榕江县两汪乡农业服务中心 | AO167: 13141管理岗位 | AP167: 2008.9－－2011.7雷山县民族中学 2011.8－－2016.7外出务工 2016.9－－2019.7黔西南民族职业技术学院 | AR167: 1 | AS167: 06 | AT167: 02 | AV167: 31 | AW167: 4 | AX167: 1 | AY167: 05 | AZ167: 1 | BA167: 126131010 | BB167: 126131010141 | BC167: 362019071522613047123 | BE167: 73.3 | BF167: 36.65 | BG167: 78.37 | BH167: 39.19 | BI167: =RANK(BE167,$BE$166:$BE$169) -> 2 | BJ167: 入围资格复审 | BK167: 2019年8月－9日 | BL167: 合格 | BP167: 75.84 | BQ167: =RANK(BP167,$BP$166:$BP$169) -> 2
B168: 1320190606 | E168: 亢红忠 | F168: 管理岗位 | G168: 《综合知识》类 | H168: T362019071522613033056 | J168: 522225199707210814 | L168: 贵州省黔东南自治州 | M168: 榕江县 | N168: 033056 | P168: 男 | Q168: 1997.07.21 | R168: 贵州省思南县 | S168: 汉族 | T168: 中国共产主义青年团团员 | U168: 贵州大学 | W168: 农业资源与环境 | X168: 大学本科毕业 | Y168: 学士 | AA168: 2019.07 | AB168: 贵州省思南县大河坝镇泥溪村亢家组 | AC168: 是 | AD168: 贵州省思南县大河坝镇泥溪村亢家组 | AE168: 无 | AF168: 其他（临时工、未就业人员等） | AG168: 贵州省思南县大河坝镇泥溪村亢家组 | AH168: 无 | AI168: 是 | AJ168: 18285698640 | AK168: 18285698640 | AM168: 13985857457 | AN168: 榕江县两汪乡农业服务中心 | AO168: 13141管理岗位 | AP168: 2012.09-2015.06思南县第六中学 2015.09-2019.07贵州大学 | AR168: 1 | AS168: 01 | AT168: 03 | AV168: 21 | AW168: 3 | AX168: 1 | AY168: 05 | AZ168: 1 | BA168: 126131010 | BB168: 126131010141 | BC168: 362019071522613033056 | BE168: 68.55 | BF168: 34.28 | BG168: 69.67 | BH168: 34.84 | BI168: =RANK(BE168,$BE$166:$BE$169) -> 3 | BJ168: 入围资格复审 | BK168: 2019年8月－9日 | BL168: 合格 | BP168: 69.11 | BQ168: =RANK(BP168,$BP$166:$BP$169) -> 3
B169: 1320190607 | E169: 黎孟宇 | F169: 管理岗位 | G169: 《综合知识》类 | H169: T362019071522613010782 | J169: 522726199610200031 | L169: 贵州省黔东南自治州 | M169: 榕江县 | N169: 010782 | P169: 男 | Q169: 1996.10.20 | R169: 贵州省独山县 | S169: 布依族 | T169: 中国共产主义青年团团员 | U169: 黔南民族师范学院 | W169: 茶学 | X169: 大学本科毕业 | Y169: 学士 | AA169: 201807 | AB169: 贵州省独山县里腊村 | AC169: 是 | AD169: 贵州省独山县百泉镇洞口路 | AE169: 贵州西南交通投资实业集团有限公司 | AF169: 其他（临时工、未就业人员等） | AG169: 贵州省独山县 | AH169: 无 | AI169: 是 | AJ169: 18375083328 | AK169: 18375083328 | AM169: 15117813468 | AN169: 榕江县两汪乡农业服务中心 | AO169: 13141管理岗位 | AP169: 2011/09-2014/07就读黔南州独山县高级中学； 2014/09-2018/07就读黔南民族师范学院； 2018.07至今就职于贵州西南交通投资实业集团有限公司。 | AR169: 1 | AS169: 09 | AT169: 03 | AV169: 21 | AW169: 3 | AX169: 1 | AY169: 05 | AZ169: 1 | BA169: 126131010 | BB169: 126131010141 | BC169: 362019071522613010782 | BE169: 68.55 | BF169: 34.28 | BG169: 66.03 | BH169: 33.02 | BI169: =RANK(BE169,$BE$166:$BE$169) -> 3 | BJ169: 入围资格复审 | BK169: 2019年8月－9日 | BL169: 合格 | BP169: 67.29 | BQ169: =RANK(BP169,$BP$166:$BP$169) -> 4
B170: 1320190608 | E170: 白金梅 | F170: 管理岗位 | G170: 《综合知识》类 | H170: T362019071522613092152 | J170: 533325199206261048 | L170: 贵州省黔东南自治州 | M170: 榕江县 | N170: 092152 | P170: 女 | Q170: 1992.06 | R170: 云南省怒江州 | S170: 白族 | T170: 中国共产主义青年团团员 | U170: 昆明理工大学 | W170: 材料科学与工程 | X170: 大学本科毕业 | Y170: 学士 | AA170: 2015.07 | AB170: 云南省怒江州兰坪县营盘镇新华村 | AC170: 是 | AD170: 云南省怒江州兰坪县营盘镇新华村 | AE170: 无 | AF170: 其他（临时工、未就业人员等） | AG170: 云南省怒江州 | AH170: 无 | AI170: 是 | AJ170: 13033369603 | AK170: 无 | AM170: 13988697206 | AN170: 榕江县流浪乞讨救助站 | AO170: 13044管理岗位 | AP170: 2008.09-2011.06怒江州民族中学 2011.09-2015.07昆明理工大学 2015.07-2016.04云南省通海斯贝佳食品有限公司 2016.05-2017.11云南挚合科技有限公司 2017.11-2019.02贵州非凡园林绿化工程有限公司 | AR170: 2 | AS170: 14 | AT170: 03 | AV170: 21 | AW170: 3 | AX170: 1 | AY170: 05 | AZ170: 1 | BA170: 126130935 | BB170: 126130935044 | BC170: 362019071522613092152 | BE170: 76.2 | BF170: 38.10 | BG170: 81.6 | BH170: 40.80 | BI170: =RANK(BE170,$BE$170:$BE$173) -> 1 | BJ170: 入围资格复审 | BK170: 2019年8月－9日 | BL170: 合格 | BP170: 78.90 | BQ170: =RANK(BP170,$BP$170:$BP$173) -> 1 | BR170: 入围体检 | BS170: 2019-09-09
B171: 1320190609 | E171: 唐勤 | F171: 管理岗位 | G171: 《综合知识》类 | H171: T362019071522613005089 | J171: 43122219851101281X | L171: 贵州省黔东南自治州 | M171: 榕江县 | N171: 005089 | P171: 男 | Q171: 1985.11.01 | R171: 湖南省沅陵县 | S171: 土家族 | T171: 群众 | U171: 昆明学院 | W171: 机电一体化 | X171: 大学专科毕业 | Y171: 无 | AA171: 2007.07 | AB171: 云南省安宁市太平新城街道办事处 | AC171: 是 | AD171: 太平新城街道办事处太平南路玉龙名苑129幢1单元402室 | AE171: 安徽皖仪科技过份有限公司 | AF171: 其他（临时工、未就业人员等） | AG171: 湖南省沅陵县 | AH171: 无 | AI171: 是 | AJ171: 15087147170 | AK171: 15887804050 | AM171: 18088130624 | AN171: 榕江县流浪乞讨救助站 | AO171: 13044管理岗位 | AP171: 2001.09－2004.07沅陵县第一中学高中学习 2004.09－2007.07昆明学院电子信息与机械工程系机电一体化专业大专学习 2007.07—2009.03云南CY集团有限公司就职（国企） 2009.04—至今安徽皖仪科技过份有限公司 | AR171: 1 | AS171: 15 | AT171: 13 | AV171: 31 | AW171: 4 | AX171: 1 | AY171: 05 | AZ171: 1 | BA171: 126130935 | BB171: 126130935044 | BC171: 362019071522613005089 | BE171: 75.5 | BF171: 37.75 | BG171: 78.17 | BH171: 39.09 | BI171: =RANK(BE171,$BE$170:$BE$173) -> 3 | BJ171: 入围资格复审 | BK171: 2019年8月－9日 | BL171: 合格 | BP171: 76.84 | BQ171: =RANK(BP171,$BP$170:$BP$173) -> 2
B172: 1320190610 | E172: 杨成彬 | F172: 管理岗位 | G172: 《综合知识》类 | H172: T362019071522613016702 | J172: 522632199405270016 | L172: 贵州省黔东南自治州 | M172: 榕江县 | N172: 016702 | P172: 男 | Q172: 1994.05.27 | R172: 贵州省榕江县 | S172: 苗族 | T172: 中国共产主义青年团团员 | U172: 贵州师范学院 | W172: 农业资源与环境 | X172: 大学本科毕业 | Y172: 无 | AA172: 2019.07 | AB172: 贵州省榕江县古州镇派出所 | AC172: 是 | AD172: 贵州省榕江县古州镇古州中路附一路32号 | AE172: 无 | AF172: 其他（临时工、未就业人员等） | AG172: 贵州省榕江县 | AH172: 2019年9月取得全国计算机等级考试二级 | AI172: 是 | AJ172: 18302649543 | AK172: 6621386 | AM172: 15286616215 | AN172: 榕江县流浪乞讨救助站 | AO172: 13044管理岗位 | AP172: 2010年9月-2013年7月凯里振华民族中学高中 2013年9月-2014年7月榕江一中补习 2014年9月-2015年7月贵州师范学院预科 2015年9月-2019年7月贵州师范学院本科 | AR172: 1 | AS172: 06 | AT172: 03 | AV172: 21 | AW172: 4 | AX172: 1 | AY172: 05 | AZ172: 1 | BA172: 126130935 | BB172: 126130935044 | BC172: 362019071522613016702 | BE172: 75.5 | BF172: 37.75 | BG172: 74.93 | BH172: 37.47 | BI172: =RANK(BE172,$BE$170:$BE$173) -> 3 | BJ172: 入围资格复审 | BK172: 2019年8月－9日 | BL172: 合格 | BP172: 75.22 | BQ172: =RANK(BP172,$BP$170:$BP$173) -> 3
B173: 1320190611 | E173: 覃锡祥 | F173: 管理岗位 | G173: 《综合知识》类 | H173: T362019071522613005725 | J173: 52263219860412157X | L173: 贵州省黔东南自治州 | M173: 榕江县 | N173: 005725 | P173: 男 | Q173: 1986.04.12 | R173: 贵州省榕江县 | S173: 侗族 | T173: 群众 | U173: 华南理工大学 | W173: 物流工程 | X173: 大学本科毕业 | Y173: 学士 | AA173: 2009.07 | AB173: 贵州省榕江县忠诚镇 | AC173: 是 | AD173: 贵州省榕江县忠诚镇忠诚村八组 | AE173: 忠诚镇人民政府 | AF173: 其他（临时工、未就业人员等） | AG173: 贵州省榕江县 | AH173: 无 | AI173: 是 | AJ173: 13638515723 | AK173: 无 | AM173: 15185774207 | AN173: 榕江县流浪乞讨救助站 | AO173: 13044管理岗位 | AP173: 2003年9月-2005年7月黔东南州振华民族中学理科；2005年9月-2009年7月华南理工大学物流工程； 2010年3月-2016年4月贵阳凯美尔贸易有限公司物流助理； 2018年4月至今忠诚镇人民政府公益性岗位。 | AR173: 1 | AS173: 12 | AT173: 13 | AV173: 21 | AW173: 3 | AX173: 1 | AY173: 05 | AZ173: 1 | BA173: 126130935 | BB173: 126130935044 | BC173: 362019071522613005725 | BE173: 75.95 | BF173: 37.98 | BG173: 68.9 | BH173: 34.45 | BI173: =RANK(BE173,$BE$170:$BE$173) -> 2 | BJ173: 入围资格复审 | BK173: 2019年8月－9日 | BL173: 合格 | BP173: 72.43 | BQ173: =RANK(BP173,$BP$170:$BP$173) -> 4
B174: 1320190612 | E174: 朱鹏宇 | F174: 专业技术岗位 | G174: 《综合知识》类 | H174: T362019071522613065965 | J174: 522632199205261617 | L174: 贵州省黔东南自治州 | M174: 榕江县 | N174: 065965 | P174: 男 | Q174: 1992.05.26 | R174: 贵州省榕江县 | S174: 侗族 | T174: 群众 | U174: 贵州师范大学 | W174: 社会体育 | X174: 大学本科毕业 | Y174: 学士 | AA174: 2016.07 | AB174: 贵州省榕江县忠诚镇王岭村 | AC174: 是 | AD174: 贵州省榕江县忠诚镇王岭村 | AE174: 无 | AF174: 其他（临时工、未就业人员等） | AG174: 贵州省榕江县 | AH174: 2019年7月取得高级体育教师资格证书 | AI174: 是 | AJ174: 18798790024 | AK174: 18798790024 | AM174: 15185057747 | AN174: 榕江县体育训练中心 | AO174: 13045专业技术岗位 | AP174: 2007年9月至2012年7月就读榕江县第一中学 2012年9月至2016年7月就读贵州师范大学 2016年7月至今自由职业 | AR174: 1 | AS174: 12 | AT174: 13 | AV174: 21 | AW174: 3 | AX174: 1 | AY174: 05 | AZ174: 1 | BA174: 126130936 | BB174: 126130936045 | BC174: 362019071522613065965 | BE174: 79.7 | BF174: 39.85 | BG174: 74.83 | BH174: 37.42 | BI174: =RANK(BE174,$BE$174:$BE$176) -> 1 | BJ174: 入围资格复审 | BK174: 2019年8月－9日 | BL174: 合格 | BP174: 77.27 | BQ174: =RANK(BP174,$BP$174:$BP$176) -> 1 | BR174: 入围体检 | BS174: 2019-09-09
B175: 1320190613 | E175: 吴宏徽 | F175: 专业技术岗位 | G175: 《综合知识》类 | H175: T362019071522613070789 | J175: 522701198912173153 | L175: 贵州省黔东南自治州 | M175: 榕江县 | N175: 070789 | P175: 男 | Q175: 1989.12.17 | R175: 贵州省都匀市 | S175: 汉族 | T175: 群众 | U175: 武汉体育学院 | W175: 休闲体育 | X175: 大学本科毕业 | Y175: 学士 | AA175: 2014.07 | AB175: 贵州省黔南州都匀市匀东镇 | AC175: 是 | AD175: 贵州省黔南州都匀市匀东镇坝固村7组 | AE175: 都匀经济开发区招商引资局 | AF175: 其他（临时工、未就业人员等） | AG175: 贵州省都匀市 | AH175: 2011年4月取得国家田径二级裁判员资格证书； 2011年9月取得体操三级运动员资格证书； 2013年3月取得全国职业能力等级证书（初级体验式拓展培训师）； 2013年10月取得国家篮球二级裁判员资格证书。 | AI175: 是 | AJ175: 015527361867 | AK175: 0854-8319669 | AM175: 18722828913 | AN175: 榕江县体育训练中心 | AO175: 13045专业技术岗位 | AP175: 2006.07－2010.09都匀市民族中学； 2010.09－2014.07武汉体育学院经济与管理学院休闲体育专业学习； 2014.07－至今都匀经济开发区（城市综合执法局、招商引资局）工作（临时聘用）。 | AR175: 1 | AS175: 01 | AT175: 13 | AV175: 21 | AW175: 3 | AX175: 1 | AY175: 05 | AZ175: 1 | BA175: 126130936 | BB175: 126130936045 | BC175: 362019071522613070789 | BE175: 76.15 | BF175: 38.08 | BG175: 74.07 | BH175: 37.04 | BI175: =RANK(BE175,$BE$174:$BE$176) -> 2 | BJ175: 入围资格复审 | BK175: 2019年8月－9日 | BL175: 合格 | BP175: 75.11 | BQ175: =RANK(BP175,$BP$174:$BP$176) -> 2
B176: 1320190614 | E176: 吴进波 | F176: 专业技术岗位 | G176: 《综合知识》类 | H176: T362019071522613023748 | J176: 522632199407196075 | L176: 贵州省黔东南自治州 | M176: 榕江县 | N176: 023748 | P176: 男 | Q176: 19940719 | R176: 贵州省榕江县 | S176: 侗族 | T176: 群众 | U176: 重庆邮电大学 | W176: 社会体育指导与管理 | X176: 大学本科毕业 | Y176: 学士 | AA176: 2017.06 | AB176: 贵州省榕江县乐里镇保里村第六组 | AC176: 是 | AD176: 贵州省榕江县乐里镇保里村第六组 | AE176: 无 | AF176: 其他（临时工、未就业人员等） | AG176: 贵州省榕江县 | AH176: 无 | AI176: 是 | AJ176: 18883856687 | AK176: 18883856687 | AM176: 15185659866 | AN176: 榕江县体育训练中心 | AO176: 13045专业技术岗位 | AP176: 2010年9月至2013年6月就读于黎平县第一民族中学；2013年9月至2017年6月就读于重庆邮电大学；2018年3月至2019年6月在黔东强制隔离戒毒所做辅警工作；2019年7月至今待就业。 | AR176: 1 | AS176: 12 | AT176: 13 | AV176: 21 | AW176: 3 | AX176: 1 | AY176: 05 | AZ176: 1 | BA176: 126130936 | BB176: 126130936045 | BC176: 362019071522613023748 | BE176: 75.35 | BF176: 37.68 | BG176: 32.3 | BH176: 16.15 | BI176: =RANK(BE176,$BE$174:$BE$176) -> 3 | BJ176: 入围资格复审 | BK176: 2019年8月－9日 | BL176: 合格 | BP176: 53.83 | BQ176: 3
B177: 1320190615 | E177: 王琛 | F177: 专业技术岗位 | G177: 《综合知识》类 | H177: T362019071522613032419 | J177: 522632199601220040 | L177: 贵州省黔东南自治州 | M177: 榕江县 | N177: 032419 | P177: 女 | Q177: 1996.01.22 | R177: 贵州省榕江县 | S177: 布依族 | T177: 中国共产主义青年团团员 | U177: 凯里学院 | W177: 植物保护 | X177: 大学本科毕业 | Y177: 学士 | AA177: 2018.07 | AB177: 贵州省榕江县大十字社区 | AC177: 是 | AD177: 贵州省榕江县大十字街心花园 | AE177: 无 | AF177: 其他（临时工、未就业人员等） | AG177: 贵州省榕江县 | AH177: 无 | AI177: 是 | AJ177: 18685450799 | AK177: 18685450799 | AM177: 18085495875 | AN177: 榕江县农业植物保护中心 | AO177: 13048专业技术岗位 | AP177: 2011.8至2014.6榕江一中 2014.9至2018.7凯里学院 2017.7至2018.3凯里市云谷田园农业发展有限公司实习 2018.9至今古州镇人民政府见习 | AR177: 2 | AS177: 09 | AT177: 03 | AV177: 21 | AW177: 3 | AX177: 1 | AY177: 05 | AZ177: 1 | BA177: 126130939 | BB177: 126130939048 | BC177: 362019071522613032419 | BE177: 75 | BF177: 37.50 | BG177: 86.83 | BH177: 43.42 | BI177: =RANK(BE177,$BE$177:$BE$179) -> 1 | BJ177: 入围资格复审 | BK177: 2019年8月－9日 | BL177: 合格 | BP177: 80.92 | BQ177: =RANK(BP177,$BP$177:$BP$179) -> 1 | BR177: 入围体检 | BS177: 2019-09-09
B178: 1320190616 | E178: 钱安桥 | F178: 专业技术岗位 | G178: 《综合知识》类 | H178: T362019071522613000619 | J178: 522725199301261221 | L178: 贵州省黔东南自治州 | M178: 榕江县 | N178: 000619 | P178: 女 | Q178: 1993.01.26 | R178: 贵州省瓮安县 | S178: 汉族 | T178: 中国共产党党员 | U178: 贵州大学 | W178: 中草药栽培与鉴定 | X178: 大学本科毕业 | Y178: 学士 | AA178: 2017.07 | AB178: 贵州省瓮安县平定营镇细沙村花竹山组 | AC178: 是 | AD178: 贵州省瓮安县平定营镇细沙村花竹山组 | AE178: 无 | AF178: 其他（临时工、未就业人员等） | AG178: 贵州省瓮安县 | AH178: 2019年5月取得助理农艺师资格证书 | AI178: 是 | AJ178: 15761633881 | AK178: 18084489093 | AM178: 13410312245 | AN178: 榕江县农业植物保护中心 | AO178: 13048专业技术岗位 | AP178: 2010年9月至2013年6月贵州省瓮安中学 2013年9月至2017年7月贵州大学本科就读 2017年7月至2017年10月贵州芭田股份有限公司任农化研发员 2017年12月至2019年1月贵州锦绣江山智慧园艺有限公司任技术主管 至今待业 | AR178: 2 | AS178: 01 | AT178: 01 | AV178: 21 | AW178: 3 | AX178: 1 | AY178: 05 | AZ178: 1 | BA178: 126130939 | BB178: 126130939048 | BC178: 362019071522613000619 | BE178: 73.65 | BF178: 36.83 | BG178: 73.47 | BH178: 36.74 | BI178: =RANK(BE178,$BE$177:$BE$179) -> 2 | BJ178: 入围资格复审 | BK178: 2019年8月－9日 | BL178: 合格 | BP178: 73.56 | BQ178: =RANK(BP178,$BP$177:$BP$179) -> 2
B179: 1320190617 | E179: 韩雪芳 | F179: 专业技术岗位 | G179: 《综合知识》类 | H179: T362019071522613060221 | J179: 522428199306034821 | L179: 贵州省黔东南自治州 | M179: 榕江县 | N179: 060221 | P179: 女 | Q179: 1993.06.03 | R179: 贵州省赫章县 | S179: 汉族 | T179: 群众 | U179: 山东农业大学 | W179: 中药资源与开发 | X179: 大学本科毕业 | Y179: 学士 | AA179: 2016.07 | AB179: 贵州省赫章县平山乡 | AC179: 是 | AD179: 贵州省赫章县平山乡对江村桥边组 | AE179: 无 | AF179: 其他（临时工、未就业人员等） | AG179: 贵州省赫章县 | AH179: 无 | AI179: 是 | AJ179: 18798363223 | AK179: 无 | AM179: 韩友贤：13595792803 | AN179: 榕江县农业植物保护中心 | AO179: 13048专业技术岗位 | AP179: 2009年9月至2012年7月就读于赫章县第一中学 2012年9月至2016年7月就读于山东农业大学 2016年7月至今待业 | AR179: 2 | AS179: 01 | AT179: 13 | AV179: 21 | AW179: 3 | AX179: 1 | AY179: 05 | AZ179: 1 | BA179: 126130939 | BB179: 126130939048 | BC179: 362019071522613060221 | BE179: 72.7 | BF179: 36.35 | BG179: 73.33 | BH179: 36.67 | BI179: =RANK(BE179,$BE$177:$BE$179) -> 3 | BJ179: 入围资格复审 | BK179: 2019年8月－9日 | BL179: 合格 | BP179: 73.02 | BQ179: 3
B180: 1320190618 | E180: 欧阳诗举 | F180: 管理岗位 | G180: 《综合知识》类 | H180: T362019071522613079328 | J180: 522632199010192826 | L180: 贵州省黔东南自治州 | M180: 榕江县 | N180: 079328 | P180: 女 | Q180: 19901019 | R180: 贵州省榕江县 | S180: 瑶族 | T180: 中国共产主义青年团团员 | U180: 大连民族学院 | W180: 旅游管理 | X180: 大学本科毕业 | Y180: 学士 | AA180: 201407 | AB180: 贵州省榕江县平江乡 | AC180: 是 | AD180: 贵州省榕江县平江乡加会村三组 | AE180: 无 | AF180: 其他（临时工、未就业人员等） | AG180: 贵州省榕江县 | AH180: 2013年6月导游从业资格证，2015.9普通话二级甲等 | AI180: 是 | AJ180: 18275317831 | AK180: 18275317831 | AM180: 15186047680 | AN180: 榕江县旅游信息和服务中心 | AO180: 13046管理岗位 | AP180: 2007.9-2010.7振华民族中学，2010.9-2014.7大连民族学院，2014.7-2015.8百胜餐饮成都有限公司，2015.10.20-2016.9.30贵州维信诚通讯电子有限公司，2016.11.18-2017.7.20贵阳国际会议中心有限公司，2017.7.20至今待业 | AR180: 2 | AS180: 13 | AT180: 03 | AV180: 21 | AW180: 3 | AX180: 1 | AY180: 05 | AZ180: 1 | BA180: 126130937 | BB180: 126130937046 | BC180: 362019071522613079328 | BE180: 81 | BF180: =BE180*0.5 -> 40.50 | BG180: 74.6 | BH180: =BG180*0.5 -> 37.30 | BI180: =RANK(BE180,$BE$180:$BE$182) -> 2 | BJ180: 入围资格复审 | BK180: 2019年8月－9日 | BL180: 合格 | BP180: =BF180+BH180 -> 77.80 | BQ180: =RANK(BP180,$BP$180:$BP$182) -> 1 | BR180: 入围体检 | BS180: 2019-09-09
B181: 1320190619 | E181: 白旌 | F181: 管理岗位 | G181: 《综合知识》类 | H181: T362019071522613084032 | J181: 532101199402250933 | L181: 贵州省黔东南自治州 | M181: 榕江县 | N181: 084032 | P181: 男 | Q181: 1994.02.25 | R181: 云南省昭通市 | S181: 汉族 | T181: 群众 | U181: 西安思源学院 | W181: 工程造价 | X181: 大学本科毕业 | Y181: 学士 | AA181: 2017.07 | AB181: 云南省昭通市昭阳区凤霞街道 | AC181: 是 | AD181: 云南省昭通市昭阳区凤霞路52号附25号 | AE181: 无 | AF181: 其他（临时工、未就业人员等） | AG181: 云南省昭通市昭阳区 | AH181: 2014年11月取得质量员资格证书 2016年02月取得资料员资格证书 | AI181: 是 | AJ181: 13638891034 | AK181: 15398365868 | AM181: 13508709789 | AN181: 榕江县旅游信息和服务中心 | AO181: 13046管理岗位 | AP181: 2009.09－－2013.07就读于昭通市昭阳区第一中学 2013.09－－2017.07就读于西安思源学院城市建设学院工程造价（本科） 2017.07－－至今就业于昭通市城乡建筑工程公司担任造价员，土建房屋预算、道桥预算 | AR181: 1 | AS181: 01 | AT181: 13 | AV181: 21 | AW181: 3 | AX181: 1 | AY181: 05 | AZ181: 1 | BA181: 126130937 | BB181: 126130937046 | BC181: 362019071522613084032 | BE181: 78.3 | BF181: 39.15 | BG181: 73 | BH181: 36.50 | BI181: =RANK(BE181,$BE$180:$BE$182) -> 3 | BJ181: 入围资格复审 | BK181: 2019年8月－9日 | BL181: 合格 | BP181: 75.65 | BQ181: =RANK(BP181,$BP$180:$BP$182) -> 2
B182: 1320190620 | E182: 王维荣 | F182: 管理岗位 | G182: 《综合知识》类 | H182: T362019071522613007701 | J182: 520202199706073217 | L182: 贵州省黔东南自治州 | M182: 榕江县 | N182: 007701 | P182: 男 | Q182: 1997.06.07 | R182: 贵州省六盘水盘县 | S182: 汉族 | T182: 中国共产主义青年团团员 | U182: 贵州民族大学人文科技学院 | W182: 旅游管理 | X182: 大学本科毕业 | Y182: 学士 | AA182: 2019.07 | AB182: 贵州省六盘水市盘县平关镇 | AC182: 是 | AD182: 贵州省六盘水市盘县平关镇小街村四组 | AE182: 盘州市人民检察院 | AF182: 机关事业单位工勤人员 | AG182: 贵州省六盘水市 | AH182: 无 | AI182: 是 | AJ182: 18285840470 | AK182: 17785879097 | AM182: 15121748183 | AN182: 榕江县旅游信息和服务中心 | AO182: 13046管理岗位 | AP182: 2012年9月-2015年6月就读于六盘水市第四中学 2015年9月-2019年6月就读于贵州民族大学人文科技学院 | AR182: 1 | AS182: 01 | AT182: 03 | AV182: 21 | AW182: 3 | AX182: 1 | AY182: 03 | AZ182: 1 | BA182: 126130937 | BB182: 126130937046 | BC182: 362019071522613007701 | BE182: 81.75 | BF182: 40.88 | BG182: 66.6 | BH182: 33.30 | BI182: =RANK(BE182,$BE$180:$BE$182) -> 1 | BJ182: 入围资格复审 | BK182: 2019年8月－9日 | BL182: 合格 | BP182: 74.18 | BQ182: =RANK(BP182,$BP$180:$BP$182) -> 3
B183: 1320190621 | E183: 张忠阳 | F183: 管理岗位 | G183: 《综合知识》类 | H183: T362019071522613009668 | J183: 522632199603010012 | L183: 贵州省黔东南自治州 | M183: 榕江县 | N183: 009668 | P183: 男 | Q183: 1996.03.01 | R183: 贵州省榕江县 | S183: 苗族 | T183: 中国共产主义青年团团员 | U183: 海口经济学院 | W183: 财务管理 | X183: 大学本科毕业 | Y183: 学士 | AA183: 2019.7 | AB183: 贵州省榕江县古州镇 | AC183: 是 | AD183: 贵州省榕江县古州镇永安巷13号 | AE183: 无 | AF183: 其他（临时工、未就业人员等） | AG183: 贵州省榕江县 | AH183: 无 | AI183: 是 | AJ183: 18286510060 | AK183: 17733116291 | AM183: 13765595883 | AN183: 榕江县建筑施工服务站 | AO183: 13051管理岗位 | AP183: 2009.09-2012.07：就读于湖南邵东两市镇三中 2012.09-2015.07：就读于榕江县民族中学 2015.09-2019.07：就读于海口经济学院 | AR183: 1 | AS183: 06 | AT183: 03 | AV183: 21 | AW183: 3 | AX183: 1 | AY183: 05 | AZ183: 1 | BA183: 126130942 | BB183: 126130942051 | BC183: 362019071522613009668 | BE183: 80.65 | BF183: 40.33 | BG183: 76.97 | BH183: 38.49 | BI183: =RANK(BE183,$BE$183:$BE$185) -> 1 | BJ183: 入围资格复审 | BK183: 2019年8月－9日 | BL183: 合格 | BP183: 78.81 | BQ183: =RANK(BP183,$BP$183:$BP$185) -> 1 | BR183: 入围体检 | BS183: 2019-09-09
B184: 1320190622 | E184: 覃义猛 | F184: 管理岗位 | G184: 《综合知识》类 | H184: T362019071522613026576 | J184: 522632199610046814 | L184: 贵州省黔东南自治州 | M184: 榕江县 | N184: 026576 | P184: 男 | Q184: 1996.10.04 | R184: 贵州省榕江县 | S184: 汉族 | T184: 中国共产主义青年团团员 | U184: 沈阳大学 | W184: 会计学 | X184: 大学本科毕业 | Y184: 学士 | AA184: 2018.07 | AB184: 贵州省榕江县两汪乡 | AC184: 是 | AD184: 贵州省榕江县两汪乡两汪村七组 | AE184: 无 | AF184: 其他（临时工、未就业人员等） | AG184: 贵州省榕江县 | AH184: 2015年9月取得全国计算机等级考试二级合格证书。 2016年11月取得会计从业资格证书。 2017年5月取得初级会计师资格证书。 | AI184: 是 | AJ184: 17584893921 | AK184: 无 | AM184: 19885374768 | AN184: 榕江县建筑施工服务站 | AO184: 13051管理岗位 | AP184: 2002.09-2008.07两汪中心校 2008.09-2011.07两汪中学 2011.09-2014.07凯里学院附属中学 2014.09-2018.07沈阳大学 2018.09-2019.03榕江县自然资源局就业见习 2019.03-至今待业 | AR184: 1 | AS184: 01 | AT184: 03 | AV184: 21 | AW184: 3 | AX184: 1 | AY184: 05 | AZ184: 1 | BA184: 126130942 | BB184: 126130942051 | BC184: 362019071522613026576 | BE184: 78.2 | BF184: 39.10 | BG184: 79 | BH184: 39.50 | BI184: =RANK(BE184,$BE$183:$BE$185) -> 3 | BJ184: 入围资格复审 | BK184: 2019年8月－9日 | BL184: 合格 | BP184: 78.60 | BQ184: =RANK(BP184,$BP$183:$BP$185) -> 2
B185: 1320190623 | E185: 龙芳芳 | F185: 管理岗位 | G185: 《综合知识》类 | H185: T362019071522613064498 | J185: 522632199601243322 | L185: 贵州省黔东南自治州 | M185: 榕江县 | N185: 064498 | P185: 女 | Q185: 1996.01.24 | R185: 贵州省榕江县 | S185: 侗族 | T185: 中国共产主义青年团团员 | U185: 贵州财经大学商务学院 | W185: 会计学 | X185: 大学本科毕业 | Y185: 学士 | AA185: 2018.06 | AB185: 贵州省榕江县古州镇西环中路 | AC185: 是 | AD185: 贵州省榕江县古州镇西环中路45-1 | AE185: 榕江县民族宗教事务局（见习） | AF185: 其他（临时工、未就业人员等） | AG185: 贵州省榕江县 | AH185: 2015年3月取得计算机一级证书 2015年11月取得普通话二级乙等证书 | AI185: 是 | AJ185: 13765576623 | AK185: 13765576623 | AM185: 15085695796 | AN185: 榕江县建筑施工服务站 | AO185: 13051管理岗位 | AP185: 2011年9月-2014年6月就读于黔东南州民族高级中学 2014年9月-2018年6月就读于贵州财经大学商务学院 2018年7月-2018年9月在家待业 2018年9月-至今在榕江县民族宗教局见习 | AR185: 2 | AS185: 12 | AT185: 03 | AV185: 21 | AW185: 3 | AX185: 1 | AY185: 05 | AZ185: 1 | BA185: 126130942 | BB185: 126130942051 | BC185: 362019071522613064498 | BE185: 79.15 | BF185: 39.58 | BG185: 69.67 | BH185: 34.84 | BI185: =RANK(BE185,$BE$183:$BE$185) -> 2 | BJ185: 入围资格复审 | BK185: 2019年8月－9日 | BL185: 合格 | BP185: 74.41 | BQ185: =RANK(BP185,$BP$183:$BP$185) -> 3
B186: 1320190624 | E186: 帅静 | F186: 专业技术岗位 | G186: 《综合知识》类 | H186: T362019071522613035063 | J186: 522631199402050062 | L186: 贵州省黔东南自治州 | M186: 榕江县 | N186: 035063 | P186: 女 | Q186: 1994.02.05 | R186: 贵州省黎平县 | S186: 侗族 | T186: 群众 | U186: 贵州大学 | W186: 中草药栽培与鉴定 | X186: 大学本科毕业 | Y186: 学士 | AA186: 2016.07 | AB186: 贵州省黎平县德凤镇 | AC186: 是 | AD186: 贵州省黎平县德凤镇府前路17号 | AE186: 无 | AF186: 其他（临时工、未就业人员等） | AG186: 贵州省黎平县 | AH186: 无 | AI186: 是 | AJ186: 18798760149 | AK186: 18798760149 | AM186: 13765527596 | AN186: 榕江县三江水族乡扶贫工作站 | AO186: 13112专业技术岗位 | AP186: 2009.09-2012.07贵州省黎平县第一民族中学读高中；2012.09-2016.07贵州省贵州大学农学院读大学本科；2016.07-2017.10待业；2017.10-2018.09贵州省黎平县扶贫开发办公室工作，任工作人员职位；2018.09-至今待业 | AR186: 2 | AS186: 12 | AT186: 13 | AV186: 21 | AW186: 3 | AX186: 1 | AY186: 05 | AZ186: 1 | BA186: 126130981 | BB186: 126130981112 | BC186: 362019071522613035063 | BE186: 73.5 | BF186: 36.75 | BG186: 72.67 | BH186: 36.34 | BI186: =RANK(BE186,$BE$186:$BE$187) -> 1 | BJ186: 入围资格复审 | BK186: 2019年8月－9日 | BL186: 合格 | BP186: 73.09 | BQ186: =RANK(BP186,$BP$186:$BP$187) -> 1 | BR186: 入围体检 | BS186: 2019-09-09
B187: 1320190625 | E187: 吴再春 | F187: 专业技术岗位 | G187: 《综合知识》类 | H187: T362019071522613056970 | J187: 522632199805183317 | L187: 贵州省黔东南自治州 | M187: 榕江县 | N187: 056970 | P187: 男 | Q187: 1998.05.18 | R187: 贵州省榕江县 | S187: 侗族 | T187: 中国共产主义青年团团员 | U187: 安顺学院 | W187: 农学 | X187: 大学本科毕业 | Y187: 学士 | AA187: 2019.07 | AB187: 贵州省榕江县仁里乡 | AC187: 是 | AD187: 贵州省榕江县仁里乡仁吉村六组 | AE187: 无 | AF187: 其他（临时工、未就业人员等） | AG187: 贵州省榕江县 | AH187: 无 | AI187: 是 | AJ187: 18224797143 | AK187: 18385784817 | AM187: 19885347102 | AN187: 榕江县三江水族乡扶贫工作站 | AO187: 13112专业技术岗位 | AP187: 2012.09-2015.07榕江县民族中学学习 2015.09-2019.07安顺学院农学专业学习 | AR187: 1 | AS187: 12 | AT187: 03 | AV187: 21 | AW187: 3 | AX187: 1 | AY187: 05 | AZ187: 1 | BA187: 126130981 | BB187: 126130981112 | BC187: 362019071522613056970 | BE187: 72.6 | BF187: 36.30 | BG187: 69.7 | BH187: 34.85 | BI187: =RANK(BE187,$BE$186:$BE$187) -> 2 | BJ187: 入围资格复审 | BK187: 2019年8月－9日 | BL187: 合格 | BP187: 71.15 | BQ187: =RANK(BP187,$BP$186:$BP$187) -> 2
B188: 1320190627 | E188: 杨正凯 | F188: 专业技术岗位 | G188: 《综合知识》类 | H188: T362019071522613011899 | J188: 522632199409161618 | L188: 贵州省黔东南自治州 | M188: 榕江县 | N188: 011899 | P188: 男 | Q188: 1994.09.16 | R188: 贵州省榕江县 | S188: 侗族 | T188: 中国共产主义青年团团员 | U188: 安顺学院 | W188: 农学 | X188: 大学本科毕业 | Y188: 学士 | AA188: 2018.07 | AB188: 贵州省榕江县忠诚镇 | AC188: 是 | AD188: 贵州省榕江县忠诚镇扣麻村孖遂三组 | AE188: 无 | AF188: 其他（临时工、未就业人员等） | AG188: 贵州省榕江县 | AH188: 无 | AI188: 是 | AJ188: 13595366179 | AK188: 13595366179 | AM188: 15885831435 | AN188: 榕江县崇义乡农业服务中心 | AO188: 13147专业技术岗位 | AP188: 高中：（2011.09-2014.07）黎平一中 大学：（2014.09-2018.07）安顺学院 主要经历：（2017.03-2017.11）安顺农科院实习、（2018.07-2018.08）明奥科技有限公司（农业技术推广）、（2018.08-至今）待业 | AR188: 1 | AS188: 12 | AT188: 03 | AV188: 21 | AW188: 3 | AX188: 1 | AY188: 05 | AZ188: 1 | BA188: 126131016 | BB188: 126131016147 | BC188: 362019071522613011899 | BE188: 75.85 | BF188: 37.93 | BG188: 69.17 | BH188: 34.59 | BI188: =RANK(BE188,$BE$188:$BE$190) -> 1 | BJ188: 入围资格复审 | BK188: 2019年8月－9日 | BL188: 合格 | BP188: 72.51 | BQ188: =RANK(BP188,$BP$188:$BP$190) -> 1 | BR188: 入围体检 | BS188: 2019-09-09
B189: 1320190628 | E189: 周文珍 | F189: 专业技术岗位 | G189: 《综合知识》类 | H189: T362019071522613040868 | J189: 52262919971105222X | L189: 贵州省黔东南自治州 | M189: 榕江县 | N189: 040868 | P189: 女 | Q189: 1997.11.05 | R189: 贵州剑河 | S189: 汉族 | T189: 中国共产主义青年团团员 | U189: 黔东南民族职业技术学院 | W189: 园艺技术 | X189: 大学专科毕业 | Y189: 无 | AA189: 2019.07 | AB189: 贵州省剑河县太拥镇昂英村一组 | AC189: 是 | AD189: 贵州省剑河县太拥镇昂英村一组 | AE189: 昆明克莱兰农业科技有限公司 | AF189: 其他（临时工、未就业人员等） | AG189: 贵州省凯里市 | AH189: 2017年12月取得农作物植保 | AI189: 是 | AJ189: 18212385765 | AK189: 18212385765 | AM189: 18386753197 | AN189: 榕江县崇义乡农业服务中心 | AO189: 13147专业技术岗位 | AP189: 2013年-2016年榕江县第一中学 2016年-2019年黔东南民族职业技术学院 | AR189: 2 | AS189: 01 | AT189: 03 | AV189: 31 | AW189: 4 | AX189: 1 | AY189: 05 | AZ189: 1 | BA189: 126131016 | BB189: 126131016147 | BC189: 362019071522613040868 | BE189: 61.65 | BF189: 30.83 | BG189: 56.67 | BH189: 28.34 | BI189: =RANK(BE189,$BE$188:$BE$190) -> 2 | BJ189: 入围资格复审 | BK189: 2019年8月－9日 | BL189: 合格 | BP189: 59.16 | BQ189: =RANK(BP189,$BP$188:$BP$190) -> 2
B190: 1320190629 | E190: 杨文毕 | F190: 专业技术岗位 | G190: 《综合知识》类 | H190: T362019071522613034474 | J190: 522632199512102579 | L190: 贵州省黔东南自治州 | M190: 榕江县 | N190: 034474 | P190: 男 | Q190: 1995.12.10 | R190: 贵州榕江 | S190: 侗族 | T190: 群众 | U190: 黔南民族职业技术学院 | W190: 农产品质量检测 | X190: 大学专科毕业 | Y190: 无 | AA190: 2018.6 | AB190: 贵州省榕江县平永镇阶你村二组 | AC190: 是 | AD190: 贵州省榕江县平永镇阶你村二组 | AE190: 黔西南州贞丰县巷诺旅游开发有限责任公司 | AF190: 国有企业职工 | AG190: 贵州榕江 | AH190: 2018年获得食品检验工三级 | AI190: 是 | AJ190: 18286547495 | AK190: 18286547495 | AM190: 15870250513 | AN190: 榕江县崇义乡农业服务中心 | AO190: 13147专业技术岗位 | AP190: 2013年9月-2015年6月就读榕江县民族中学 2015年9月-20186月年就读黔南民族职业技术学院 2018年至2019年7月在贞丰县巷诺旅游开发有限责任公司担任质检员 | AR190: 1 | AS190: 12 | AT190: 13 | AV190: 31 | AW190: 4 | AX190: 1 | AY190: 04 | AZ190: 1 | BA190: 126131016 | BB190: 126131016147 | BC190: 362019071522613034474 | BE190: 59.3 | BF190: 29.65 | BG190: 57.67 | BH190: 28.84 | BI190: =RANK(BE190,$BE$188:$BE$190) -> 3 | BJ190: 递补入围资格复审 | BL190: 合格 | BP190: 58.49 | BQ190: 3
B191: 1320190630 | E191: 金世华 | F191: 专业技术岗位 | G191: 《综合知识》类 | H191: T362019071522602024466 | J191: 522634199411203234 | L191: 贵州省黔东南自治州 | M191: 榕江县 | N191: 024466 | P191: 男 | Q191: 1994.11.20 | R191: 贵州省雷山县 | S191: 苗族 | T191: 中国共产主义青年团团员 | U191: 青岛理工大学 | W191: 电子信息工程 | X191: 大学本科毕业 | Y191: 学士 | AA191: 201807 | AB191: 贵州省雷山县大塘乡 | AC191: 是 | AD191: 贵州省雷山县丹江镇红屯堡C区一栋 | AE191: 雷山县华亿建材供应中心 | AF191: 其他（临时工、未就业人员等） | AG191: 贵州省雷山县 | AH191: 无 | AI191: 是 | AJ191: 17585834753 | AK191: 18083172543 | AM191: 13312444566 | AN191: 榕江县塔石瑶族水族乡扶贫工作站 | AO191: 13113专业技术岗位 | AP191: 2011.09－－2014.07雷山县民族中学学习2014.09－－2018.07青岛理工大学通信学院电子信息工程专业本科学习2018.08－－2019.02雷山县市场监督管理局见习就业办公室工作人员2019.03－－至今雷山县华亿建材做市场管理员 | AR191: 1 | AS191: 06 | AT191: 03 | AV191: 21 | AW191: 3 | AX191: 1 | AY191: 05 | AZ191: 1 | BA191: 126130982 | BB191: 126130982113 | BC191: 362019071522602024466 | BE191: 74.35 | BF191: =BE191*0.5 -> 37.18 | BG191: 78.67 | BH191: =BG191*0.5 -> 39.34 | BI191: =RANK(BE191,$BE$191:$BE$193) -> 3 | BJ191: 入围资格复审 | BK191: 2019年8月－9日 | BL191: 合格 | BP191: =BF191+BH191 -> 76.51 | BQ191: =RANK(BP191,$BP$191:$BP$193) -> 1 | BR191: 入围体检 | BS191: 2019-09-09
B192: 1320190631 | E192: 杨青林 | F192: 专业技术岗位 | G192: 《综合知识》类 | H192: T362019071522613037778 | J192: 522634199304103019 | L192: 贵州省黔东南自治州 | M192: 榕江县 | N192: 037778 | P192: 男 | Q192: 1993.04.10 | R192: 贵州省雷山县 | S192: 苗族 | T192: 中国共产主义青年团团员 | U192: 福建工程学院 | W192: 电子信息工程 | X192: 大学本科毕业 | Y192: 学士 | AA192: 2017.06 | AB192: 贵州省雷山县方祥乡 | AC192: 是 | AD192: 贵州省雷山县方祥乡陡寨村七组 | AE192: 无 | AF192: 其他（临时工、未就业人员等） | AG192: 贵州省雷山县 | AH192: 无 | AI192: 是 | AJ192: 18385812710 | AK192: 18385812710 | AM192: 13628558308 | AN192: 榕江县塔石瑶族水族乡扶贫工作站 | AO192: 13113专业技术岗位 | AP192: 2009年9月-2013年6月在贵州省雷山民族中学就读高中_x000b_2013年9月-2017年6月在福建工程学院就读大学 2017年7月后做各种临时工 | AR192: 1 | AS192: 06 | AT192: 03 | AV192: 21 | AW192: 3 | AX192: 1 | AY192: 05 | AZ192: 1 | BA192: 126130982 | BB192: 126130982113 | BC192: 362019071522613037778 | BE192: 77.65 | BF192: 38.83 | BG192: 74 | BH192: 37.00 | BI192: =RANK(BE192,$BE$191:$BE$193) -> 1 | BJ192: 入围资格复审 | BK192: 2019年8月－9日 | BL192: 合格 | BP192: 75.83 | BQ192: =RANK(BP192,$BP$191:$BP$193) -> 2
B193: 1320190632 | E193: 黄健 | F193: 专业技术岗位 | G193: 《综合知识》类 | H193: T362019071522613017485 | J193: 522427199411090597 | L193: 贵州省黔东南自治州 | M193: 榕江县 | N193: 017485 | P193: 男 | Q193: 1994.11.09 | R193: 贵州威宁 | S193: 汉族 | T193: 中国共产主义青年团团员 | U193: 凯里学院 | W193: 计算机科学与技术 | X193: 大学本科毕业 | Y193: 学士 | AA193: 2019.07 | AB193: 贵州省威宁县草海镇 | AC193: 是 | AD193: 贵州省威宁县草海镇中海村东方红一组 | AE193: 无 | AF193: 其他（临时工、未就业人员等） | AG193: 贵州威宁 | AH193: 2017年9月取得计算机二级考试合格证书 | AI193: 是 | AJ193: 18485502052 | AK193: 18485502052 | AM193: 15885210187 | AN193: 榕江县塔石瑶族水族乡扶贫工作站 | AO193: 13113专业技术岗位 | AP193: 2011.09-2014.06威宁第四中学校 2014.06-2015.06威宁名族中学 2015.10-2019.07凯里学院 至今待业 | AR193: 1 | AS193: 01 | AT193: 03 | AV193: 21 | AW193: 3 | AX193: 1 | AY193: 05 | AZ193: 1 | BA193: 126130982 | BB193: 126130982113 | BC193: 362019071522613017485 | BE193: 76.95 | BF193: 38.48 | BG193: 55.33 | BH193: 27.67 | BI193: =RANK(BE193,$BE$191:$BE$193) -> 2 | BJ193: 入围资格复审 | BK193: 2019年8月－9日 | BL193: 合格 | BP193: 66.14 | BQ193: =RANK(BP193,$BP$191:$BP$193) -> 3
A194: 第七考场 | B194: 1320190701 | E194: 陈涛 | F194: 管理岗位 | G194: 《综合知识》类 | H194: T362019071522613012014 | J194: 510522199407291097 | L194: 贵州省黔东南自治州 | M194: 榕江县 | N194: 012014 | P194: 男 | Q194: 1994.07.29 | R194: 四川省合江县 | S194: 汉族 | T194: 中国共产主义青年团团员 | U194: 贵州财经大学商务学院 | W194: 劳动与社会保障 | X194: 大学本科毕业 | Y194: 学士 | AA194: 2017.06 | AB194: 四川省合江县新屋基村14社 | AC194: 是 | AD194: 四川省合江县新屋基村14社 | AE194: 无 | AF194: 其他（临时工、未就业人员等） | AG194: 四川省合江县 | AH194: 无 | AI194: 是 | AJ194: 15761689117 | AK194: 17785899270 | AM194: 1379012590 | AN194: 榕江县环境卫生服务站 | AO194: 13053管理岗位 | AP194: 2009.09-2013.06在四川省合江县马街中学读高中；2013.09-2017.06在贵州省贵州财经大学商务学院读大学；2017.10-2019.04在贵州省贵州电子商务职业技术学院就职临聘人员；2019.05至今未就业。 | AR194: 1 | AS194: 01 | AT194: 03 | AV194: 21 | AW194: 3 | AX194: 1 | AY194: 05 | AZ194: 1 | BA194: 126130944 | BB194: 126130944053 | BC194: 362019071522613012014 | BE194: 84.85 | BF194: 42.43 | BG194: 80 | BH194: 40.00 | BI194: =RANK(BE194,$BE$194:$BE$199) -> 1 | BJ194: 入围资格复审 | BK194: 2019年8月－9日 | BL194: 合格 | BP194: 82.43 | BQ194: =RANK(BP194,$BP$194:$BP$199) -> 1 | BR194: 入围体检 | BS194: 2019-09-09
B195: 1320190702 | E195: 吴佩佩 | F195: 管理岗位 | G195: 《综合知识》类 | H195: T362019071522613061245 | J195: 522633199407127025 | L195: 贵州省黔东南自治州 | M195: 榕江县 | N195: 061245 | P195: 女 | Q195: 1994.07.12 | R195: 贵州省从江县 | S195: 壮族 | T195: 中国共产主义青年团团员 | U195: 贵州民族大学 | W195: 劳动与社会保障 | X195: 大学本科毕业 | Y195: 学士 | AA195: 201707 | AB195: 贵州省从江县 | AC195: 是 | AD195: 贵州省从江县下江镇顺城路46号 | AE195: 深圳市劲草人才信息咨询服务有限公司 | AF195: 其他（临时工、未就业人员等） | AG195: 贵州省从江县 | AH195: 无 | AI195: 是 | AJ195: 18275150984 | AK195: 00000000 | AM195: 15086230108 | AN195: 榕江县环境卫生服务站 | AO195: 13053管理岗位 | AP195: 2010.09-2013.07从江第一民族中学学习 2013.07-2013.09待业 2013.09-2017.07贵州民族大学劳动与社会保障专业学习 2017.07-2019.04待业 2019.04-至今深圳市劲草人才信息咨询服务有限公司就业 | AR195: 2 | AS195: 08 | AT195: 03 | AV195: 21 | AW195: 3 | AX195: 1 | AY195: 05 | AZ195: 1 | BA195: 126130944 | BB195: 126130944053 | BC195: 362019071522613061245 | BE195: 78.05 | BF195: 39.03 | BG195: 82.83 | BH195: 41.42 | BI195: 3 | BJ195: 入围资格复审 | BK195: 2019年8月－9日 | BL195: 合格 | BP195: 80.44 | BQ195: 2 | BR195: 入围体检 | BS195: 2019-09-09
B196: 1320190703 | E196: 翟春调 | F196: 管理岗位 | G196: 《综合知识》类 | H196: T362019071522613054536 | J196: 522427199111237462 | L196: 贵州省黔东南自治州 | M196: 榕江县 | N196: 054536 | P196: 女 | Q196: 1991.11.23 | R196: 贵州省威宁县 | S196: 汉族 | T196: 中国共产主义青年团团员 | U196: 广西民族师范学院 | W196: 人力资源管理 | X196: 大学本科毕业 | Y196: 学士 | AA196: 2018.07 | AB196: 贵州省威宁县观风海镇果化村炉房组 | AC196: 是 | AD196: 贵州省威宁县观风海镇果化村炉房组 | AE196: 无 | AF196: 其他（临时工、未就业人员等） | AG196: 贵州省威宁县 | AH196: 无 | AI196: 是 | AJ196: 18484609489 | AK196: 18484609489 | AM196: 18386107525 | AN196: 榕江县环境卫生服务站 | AO196: 13053管理岗位 | AP196: 2008.09-2011.06：迤那中学 2011.09-2014.06：中水中学 2014.09-2018.07：广西民族师范学院 2018.07-至今：待业 | AR196: 2 | AS196: 01 | AT196: 03 | AV196: 21 | AW196: 3 | AX196: 1 | AY196: 05 | AZ196: 1 | BA196: 126130944 | BB196: 126130944053 | BC196: 362019071522613054536 | BE196: 80.3 | BF196: 40.15 | BG196: 77.67 | BH196: 38.84 | BI196: 2 | BJ196: 入围资格复审 | BK196: 2019年8月－9日 | BL196: 合格 | BP196: 78.99 | BQ196: 3
B197: 1320190704 | E197: 崔仲 | F197: 管理岗位 | G197: 《综合知识》类 | H197: T362019071522613093038 | J197: 522427199303223495 | L197: 贵州省黔东南自治州 | M197: 榕江县 | N197: 093038 | P197: 男 | Q197: 19930322 | R197: 贵州威宁 | S197: 汉族 | T197: 群众 | U197: 贵州警官职业学院 | W197: 法律事务 | X197: 大学专科毕业 | Y197: 无 | AA197: 201607 | AB197: 贵州省威宁县哲觉镇哲觉村三组 | AC197: 是 | AD197: 贵州省威宁县哲觉镇哲觉村三组 | AE197: 无 | AF197: 其他（临时工、未就业人员等） | AG197: 贵州威宁 | AH197: 无 | AI197: 是 | AJ197: 15761671525 | AK197: 15761671525 | AM197: 13885785887 | AN197: 榕江县环境卫生服务站 | AO197: 13053管理岗位 | AP197: 2010年9月至2013年7月就读于威宁县第四中学 2013年9月至2016年7月就读于贵州警官职业学院 2016年8月至今在家待业 | AR197: 1 | AS197: 01 | AT197: 13 | AV197: 31 | AW197: 4 | AX197: 1 | AY197: 05 | AZ197: 1 | BA197: 126130944 | BB197: 126130944053 | BC197: 362019071522613093038 | BE197: 77.3 | BF197: 38.65 | BG197: 78 | BH197: 39.00 | BI197: 4 | BJ197: 入围资格复审 | BK197: 2019年8月－9日 | BL197: 合格 | BP197: 77.65 | BQ197: 4
B198: 1320190705 | E198: 黄戊 | F198: 管理岗位 | G198: 《综合知识》类 | H198: T362019071522613020334 | J198: 532128199201096511 | L198: 贵州省黔东南自治州 | M198: 榕江县 | N198: 020334 | P198: 男 | Q198: 1992.01.09 | R198: 云南省昭通市 | S198: 汉族 | T198: 中国共产主义青年团团员 | U198: 云南师范大学 | W198: 劳动与社会保障 | X198: 大学本科毕业 | Y198: 学士 | AA198: 2017.07 | AB198: 云南省镇雄县坪上镇 | AC198: 是 | AD198: 云南省昭通市镇雄县坪上镇老场村余寨组1号 | AE198: 无 | AF198: 其他（临时工、未就业人员等） | AG198: 云南省昭通市 | AH198: 无 | AI198: 是 | AJ198: 15770154241 | AK198: 15770154241 | AM198: 15087218964 | AN198: 榕江县环境卫生服务站 | AO198: 13053管理岗位 | AP198: 2010.09-2013.06云南省昭通市实验中学学习；2013.09-2017.07云南师范大学劳动与社会保障专业本科学习；2017.07-2018.03灵活就业；2018.04-2019.02新疆建设兵团第三师41团社保所工作；2019.02-至今在家待业。 | AR198: 1 | AS198: 01 | AT198: 03 | AV198: 21 | AW198: 3 | AX198: 1 | AY198: 05 | AZ198: 1 | BA198: 126130944 | BB198: 126130944053 | BC198: 362019071522613020334 | BE198: 77.1 | BF198: 38.55 | BG198: 77.67 | BH198: 38.84 | BI198: 5 | BJ198: 入围资格复审 | BK198: 2019年8月－9日 | BL198: 合格 | BP198: 77.39 | BQ198: 5
B199: 1320190706 | E199: 田春菲 | F199: 管理岗位 | G199: 《综合知识》类 | H199: T362019071522613022492 | J199: 522632199701218829 | L199: 贵州省黔东南自治州 | M199: 榕江县 | N199: 022492 | P199: 女 | Q199: 1997.01.21 | R199: 贵州省榕江县 | S199: 侗族 | T199: 中国共产主义青年团团员 | U199: 三峡大学 | W199: 人力资源管理 | X199: 大学本科毕业 | Y199: 学士 | AA199: 2018.07 | AB199: 贵州省榕江县新城区三水榕城 | AC199: 是 | AD199: 贵州省榕江县三水榕城3栋3单元501 | AE199: 无 | AF199: 其他（临时工、未就业人员等） | AG199: 贵州省榕江县 | AH199: 无 | AI199: 是 | AJ199: 18785550684 | AK199: 18785550684 | AM199: 15985516501 | AN199: 榕江县环境卫生服务站 | AO199: 13053管理岗位 | AP199: 2011.09-2014.07就读于贵州省凯里一中 2014.09-2018.07就读于湖北省三峡大学 2018.08-2018.12在榕江县政务中心见习 2019.01至今待业 | AR199: 2 | AS199: 12 | AT199: 03 | AV199: 21 | AW199: 3 | AX199: 1 | AY199: 05 | AZ199: 1 | BA199: 126130944 | BB199: 126130944053 | BC199: 362019071522613022492 | BE199: 75.2 | BF199: 37.60 | BG199: 78.83 | BH199: 39.42 | BI199: 6 | BJ199: 递补入围资格复审 | BL199: 合格 | BP199: 77.02 | BQ199: 6
B200: 1320190707 | E200: 潘清怀 | F200: 专业技术岗位 | G200: 《综合知识》类 | H200: T362019071522613026654 | J200: 522632199009140033 | L200: 贵州省黔东南自治州 | M200: 榕江县 | N200: 026654 | P200: 男 | Q200: 1990.09.14 | R200: 贵州榕江县 | S200: 水族 | T200: 群众 | U200: 吉林建筑大学 | W200: 建筑环境与设备工程（城市燃气工程） | X200: 大学本科毕业 | Y200: 学士 | AA200: 2015.06 | AB200: 贵州省榕江县古州镇 | AC200: 是 | AD200: 贵州省榕江县古州镇高兴村八组 | AE200: 凯里民建电脑空调有限责任公司 | AF200: 其他（临时工、未就业人员等） | AG200: 贵州榕江县 | AH200: 无 | AI200: 是 | AJ200: 15885126989 | AK200: 15885126989 | AM200: 15285512545（父亲） | AN200: 榕江县市政公用服务中心 | AO200: 13054专业技术岗位 | AP200: 2007年8月-2010年6月就读于黔东南州振华民族中学 2010年9月-2015年6月就读于吉林建筑大学 205年7月-2016年2月任职于贵州崟生天然气股份有限公司 2016年3月至今任职于凯里民建电脑空调有限责任公司 | AR200: 1 | AS200: 25 | AT200: 13 | AV200: 21 | AW200: 3 | AX200: 1 | AY200: 05 | AZ200: 1 | BA200: 126130945 | BB200: 126130945054 | BC200: 362019071522613026654 | BE200: 82.5 | BF200: =BE200*0.5 -> 41.25 | BG200: 77.67 | BH200: =BG200*0.5 -> 38.84 | BI200: =RANK(BE200,$BE$200:$BE$201) -> 1 | BJ200: 入围资格复审 | BK200: 2019年8月－9日 | BL200: 合格 | BP200: =BF200+BH200 -> 80.09 | BQ200: =RANK(BP200,$BP$200:$BP$201) -> 1 | BR200: 入围体检 | BS200: 2019-09-09
... 249 more rows
